{"text_format":"1","workbook":"xlsx","n_sheets":6,"sheets":["Anleitung","Eingabefeld","Laufliste","Rangliste","Notentabellen","Hilfsregister"],"not_rendered":{"charts":0,"images":0,"macros":1,"external_links":0,"defined_names":0,"comments":0,"pivot_tables":0},"unopened":[],"bounds":{"document_bytes":16777216,"sheet_cells":100000,"rows_first":2000,"rows_last":500,"rows_between":2000,"halvings":0,"cell_chars":16384,"cell_head_chars":4096},"cells_cut":0,"cells_raw":0,"read":"whole","date_system":"1900"}

{"sheet":"Anleitung","index":0,"n_rows":7,"n_cols":1,"rows_kept":7,"cut":false,"hidden":false,"merged":[[6,0,6,18],[3,0,3,18],[4,0,4,18],[0,0,0,11],[1,0,1,18],[2,0,2,18],[5,0,5,18]]}
["Parkour-Hindernislauf-Messtool Anleitung\nerstellt von Roman Marxer (romanmarxer@hotmail.com)"]
["Zweck und Beschreibung des Programms:"]
["Dieses Programm dient der effizienteren Durchführung und Auswertung von Parkours und Hindernisläufen. Das Programm wurde an verschiedenen Klassen getestet und hat sich aus folgenden Gründen bewährt:\n- Einfache Erfassung von Start/Zielzeiten sowie Strafpunkten und Zeitstrafen pro Strafpunkt möglich\n- Errechnet automatisch Laufzeiten, Ranglisten, Noten und Notendurchschnitte\n- Einfügen von Schülerdaten direkt aus bestehenden Listen und dem Lehreroffice\n- Zeiten, Noten und Notendurchschnitte sind ausblendbar; Notenskalen können angepasst werden\n- Export der Daten in Leheroffice, etc. möglich"]
["Gebrauchsanleitung:"]
["1. Füge im Registerblatt \"Eingabefeld\" die Liste der LäuferInnen ein, indem du die Namen in der Spalte \"Name des Läufer/der Läuferin\" notierst. Du kannst die Daten direkt aus einer bestehenden Listen oder dem Lehreroffice hineinkopieren.\n2. Du hast die Möglichkeit den Lernenden beim Durchlaufen des Parkours Strafpunkte zu geben, falls sie Abkürzen oder Geräte unkorrekt überqueren. Die Strafzeit pro Strafpunkt kannst du im Registerblatt \"Eingabefeld\" in der Zelle F4 eingeben (in Sekunden).\n3. Erfasse nun die Startzeit der Läufer im Registerblatt \"Eingabefeld\". Dies kannst du auf zwei Arten machen:\n            - Eingabe via Schaltfläche \"Startzeitenerfassung\"\n            - Durch anklicken der Zelle mit der entsprechenden Startnummer in Spalte C\n    Als Startzeit wird die Systemzeit des Computers genommen. Diese wird automatisch in der Laufliste eingetragen.\n4. Erfasse die Zielzeiten der LäuferInnen, die beim Ziel ankommen. Auch dies kannst du auf zwei Arten machen:\n            - Eingabe via Schaltfläche \"Zielzeitenerfassung\"\n            - Durch anklicken der Zelle mit der entsprechenden Startnummer Spalte D\n    Als Zielzeit wird die Systemzeit des Computers genommen. Diese wird automatisch in der Laufliste eingetragen. \n5. Verteile falls nötig Strafpunkte. Diese kannst du auch im Registerblatt \"Eingabefeld\" in der Spalte E einfügen."]
["Anmerkung: Ich lasse die Lernenden jeweils mit einem Abstand von etwa 20s in den Hindernisparkour starten und nutze die zweite Art der Start- und Zielzeiterfassung. Dieses Vorgehen hat den Vorteil, dass das Durchlaufen des Hindernisparkours insgesamt wesentlich weniger Zeit in Anspruch nimmt. Für 20 Schülerinnen und Schüler dauert das Erfassen des Hindernislaufs so etwa 10 Minuten.\n\n6. Durch wählen der Sekundarstufe und des Geschlechts wird die passende Notentabelle aktiviert. Die Notentabellen können im Blatt \"Notentabellen\" eingesehen und bearbeitet werden.\n5. Die Rangliste mit Noten ist im Registerblatt \"Rangliste\" ersichtlich. Die Noten- und Zeitenspalten können ausgeblendet werden.\n6. Um Noten direkt ins Leheroffice zu kopieren, kannst du im Registerblatt \"Laufliste\" die Noten herauskopieren.\n\nDieses Programm wurde von mir in meiner Freizeit entwickelt und hat mich einige Zeit und Nerven gekostet. Falls dir das Programm bei der Durchführung von Parkours oder Hindernisläufen hilft und du es regelmässig einsetzt, würde ich mich über eine kleine Spende von dir, deiner Schule oder deinem Verein freuen! Vielen Dank!\n\nRoman Marxer, IBAN: CH74 0070 0112 3000 7491 9, Konto-Nr.: 1123-0074.919 , Zahlungszweck: Spende Parkour-Hindernislauf-Messtool\n\nBei Fragen, Anmerkungen und Verbesserungsvorschlägen kannst du mich gerne per Mail kontaktieren: romanmarxer@hotmail.com\n\n"]
["Version 2.0, Juni 2017"]

{"sheet":"Eingabefeld","index":1,"n_rows":103,"n_cols":6,"rows_kept":103,"cut":false,"hidden":false,"merged":[[1,0,1,3],[0,0,0,3]]}
["Eingabefeld\nerstellt von Roman Marxer (romanmarxer@hotmail.com)"]
["Bemerkung/Anleitung: Hier werden alle relevanten Daten wie LäuferInnen, Start-, und Zielzeiten sowie Strafzeiten und Strafpunkte erfasst. Alle Daten werden automatisch in der Laufliste und der Rangliste aktualisiert.\n\nDie Erfassung der Start und Zielzeit kann auf zwei Arten erfolgen:\n1. Eingabe via Schaltflächen rechts\n2. Durch anklicken der Zelle mit der entsprechenden Startnummer in Spalte C bzw. Spalte D (Wenn Zeit gesetzt, wird Zelle grün)\n\nDurch wählen der Sekundarstufe und des Geschlechts wird  die passende Notentabelle aktiviert. Die Notentabellen können im Blatt \"Notentabellen\" bearbeitet werden. Die Ranglisten sind in den entsprechenden Registerblättern ersichtlich!\n\n\n",null,null,null,"Sekundarstufe durch anklicken wählen","Geschlecht durch anklicken wählen"]
["Startnummer","Name des Läufers/der Läuferin","Klicke auf die Nummern in dieser Spalte, um die Startzeit zu setzten","Klicke auf die Nummern in dieser Spalte, um die Zielzeit zu setzten!","Anzahl Strafpunkte des Läufers/der Läuferin","Zeitstrafe pro Strafpunkt in Sekunden in Zelle unten einfügen"]
[1,null,1,1,null,5]
[2,null,2,2]
[3,null,3,3]
[4,null,4,4]
[5,null,5,5]
[6,null,6,6]
[7,null,7,7]
[8,null,8,8]
[9,null,9,9]
[10,null,10,10]
[11,null,11,11]
[12,null,12,12]
[13,null,13,13]
[14,null,14,14]
[15,null,15,15]
[16,null,16,16]
[17,null,17,17]
[18,null,18,18]
[19,null,19,19]
[20,null,20,20]
[21,null,21,21]
[22,null,22,22]
[23,null,23,23]
[24,null,24,24]
[25,null,25,25]
[26,null,26,26]
[27,null,27,27]
[28,null,28,28]
[29,null,29,29]
[30,null,30,30]
[31,null,31,31]
[32,null,32,32]
[33,null,33,33]
[34,null,34,34]
[35,null,35,35]
[36,null,36,36]
[37,null,37,37]
[38,null,38,38]
[39,null,39,39]
[40,null,40,40]
[41,null,41,41]
[42,null,42,42]
[43,null,43,43]
[44,null,44,44]
[45,null,45,45]
[46,null,46,46]
[47,null,47,47]
[48,null,48,48]
[49,null,49,49]
[50,null,50,50]
[51,null,51,51]
[52,null,52,52]
[53,null,53,53]
[54,null,54,54]
[55,null,55,55]
[56,null,56,56]
[57,null,57,57]
[58,null,58,58]
[59,null,59,59]
[60,null,60,60]
[61,null,61,61]
[62,null,62,62]
[63,null,63,63]
[64,null,64,64]
[65,null,65,65]
[66,null,66,66]
[67,null,67,67]
[68,null,68,68]
[69,null,69,69]
[70,null,70,70]
[71,null,71,71]
[72,null,72,72]
[73,null,73,73]
[74,null,74,74]
[75,null,75,75]
[76,null,76,76]
[77,null,77,77]
[78,null,78,78]
[79,null,79,79]
[80,null,80,80]
[81,null,81,81]
[82,null,82,82]
[83,null,83,83]
[84,null,84,84]
[85,null,85,85]
[86,null,86,86]
[87,null,87,87]
[88,null,88,88]
[89,null,89,89]
[90,null,90,90]
[91,null,91,91]
[92,null,92,92]
[93,null,93,93]
[94,null,94,94]
[95,null,95,95]
[96,null,96,96]
[97,null,97,97]
[98,null,98,98]
[99,null,99,99]
[100,null,100,100]

{"sheet":"Laufliste","index":2,"n_rows":102,"n_cols":9,"rows_kept":102,"cut":false,"hidden":false,"merged":[[0,0,0,3]]}
["Laufliste\nerstellt von Roman Marxer (romanmarxer@hotmail.com)"]
["Nr.","Läufer/in","Startzeit","Zielzeit","Strafpunke","Zeitstrafe in Sekunden","Laufzeit + Strafzeit","Note","Notendurchschnitt"]
[1,{"$f":"IF(Eingabefeld!B4= \"\", \" \",INDEX(Eingabefeld!B:B,MATCH(A:A,Eingabefeld!A:A,0)))","v":" "},null,null,{"$f":"IF(Eingabefeld!E4=\"\",0,Eingabefeld!E4)","v":0},{"$f":"E3*Eingabefeld!$F$4","v":0},{"$f":"IF(OR(C3<0,D3=0,D3-C3<0),\"\",D3-C3+F3/24/60/60)","v":""},{"$f":"IF(G3 = \"\", \" \", IF(AND(Notentabellen!$J$3=1,Notentabellen!$L$3=1),INDEX(Notentabellen!B:B,MATCH(G:G,Notentabellen!A:A,1)),IF(AND(Notentabellen!$J$3=1,Notentabellen!$L$3=2),INDEX(Notentabellen!C:C,MATCH(G:G,Notentabellen!A:A,1)),IF(AND(Notentabellen!$J$3=2,Notentabellen!$L$3=1),INDEX(Notentabellen!D:D,MATCH(G:G,Notentabellen!A:A,1)),IF(AND(Notentabellen!$J$3=2,Notentabellen!$L$3=2),INDEX(Notentabellen!E:E,MATCH(G:G,Notentabellen!A:A,1)),IF(AND(Notentabellen!$J$3 =3,Notentabellen!$L$3=1), INDEX(Notentabellen!F:F,MATCH(G:G,Notentabellen!A:A,1)), IF(AND(Notentabellen!$J$3 =3,Notentabellen!$L$3=2), INDEX(Notentabellen!G:G,MATCH(G:G,Notentabellen!A:A,1)))))))))","v":" "},{"$f":"AVERAGE(H3:H102)","v":{"$error":"#DIV/0!"}}]
[2,{"$f":"IF(Eingabefeld!B5= \"\", \" \",INDEX(Eingabefeld!B:B,MATCH(A:A,Eingabefeld!A:A,0)))","v":" "},null,null,{"$f":"IF(Eingabefeld!E5=\"\",0,Eingabefeld!E5)","v":0},{"$f":"E4*Eingabefeld!$F$4","v":0},{"$f":"IF(OR(C4<0,D4=0,D4-C4<0),\"\",D4-C4+F4/24/60/60)","v":""},{"$f":"IF(G4 = \"\", \" \", IF(AND(Notentabellen!$J$3=1,Notentabellen!$L$3=1),INDEX(Notentabellen!B:B,MATCH(G:G,Notentabellen!A:A,1)),IF(AND(Notentabellen!$J$3=1,Notentabellen!$L$3=2),INDEX(Notentabellen!C:C,MATCH(G:G,Notentabellen!A:A,1)),IF(AND(Notentabellen!$J$3=2,Notentabellen!$L$3=1),INDEX(Notentabellen!D:D,MATCH(G:G,Notentabellen!A:A,1)),IF(AND(Notentabellen!$J$3=2,Notentabellen!$L$3=2),INDEX(Notentabellen!E:E,MATCH(G:G,Notentabellen!A:A,1)),IF(AND(Notentabellen!$J$3 =3,Notentabellen!$L$3=1), INDEX(Notentabellen!F:F,MATCH(G:G,Notentabellen!A:A,1)), IF(AND(Notentabellen!$J$3 =3,Notentabellen!$L$3=2), INDEX(Notentabellen!G:G,MATCH(G:G,Notentabellen!A:A,1)))))))))","v":" "}]
[3,{"$f":"IF(Eingabefeld!B6= \"\", \" \",INDEX(Eingabefeld!B:B,MATCH(A:A,Eingabefeld!A:A,0)))","v":" "},null,null,{"$f":"IF(Eingabefeld!E6=\"\",0,Eingabefeld!E6)","v":0},{"$f":"E5*Eingabefeld!$F$4","v":0},"",{"$f":"IF(G5 = \"\", \" \", IF(AND(Notentabellen!$J$3=1,Notentabellen!$L$3=1),INDEX(Notentabellen!B:B,MATCH(G:G,Notentabellen!A:A,1)),IF(AND(Notentabellen!$J$3=1,Notentabellen!$L$3=2),INDEX(Notentabellen!C:C,MATCH(G:G,Notentabellen!A:A,1)),IF(AND(Notentabellen!$J$3=2,Notentabellen!$L$3=1),INDEX(Notentabellen!D:D,MATCH(G:G,Notentabellen!A:A,1)),IF(AND(Notentabellen!$J$3=2,Notentabellen!$L$3=2),INDEX(Notentabellen!E:E,MATCH(G:G,Notentabellen!A:A,1)),IF(AND(Notentabellen!$J$3 =3,Notentabellen!$L$3=1), INDEX(Notentabellen!F:F,MATCH(G:G,Notentabellen!A:A,1)), IF(AND(Notentabellen!$J$3 =3,Notentabellen!$L$3=2), INDEX(Notentabellen!G:G,MATCH(G:G,Notentabellen!A:A,1)))))))))","v":" "}]
[4,{"$f":"IF(Eingabefeld!B7= \"\", \" \",INDEX(Eingabefeld!B:B,MATCH(A:A,Eingabefeld!A:A,0)))","v":" "},null,null,{"$f":"IF(Eingabefeld!E7=\"\",0,Eingabefeld!E7)","v":0},{"$f":"E6*Eingabefeld!$F$4","v":0},"",{"$f":"IF(G6 = \"\", \" \", IF(AND(Notentabellen!$J$3=1,Notentabellen!$L$3=1),INDEX(Notentabellen!B:B,MATCH(G:G,Notentabellen!A:A,1)),IF(AND(Notentabellen!$J$3=1,Notentabellen!$L$3=2),INDEX(Notentabellen!C:C,MATCH(G:G,Notentabellen!A:A,1)),IF(AND(Notentabellen!$J$3=2,Notentabellen!$L$3=1),INDEX(Notentabellen!D:D,MATCH(G:G,Notentabellen!A:A,1)),IF(AND(Notentabellen!$J$3=2,Notentabellen!$L$3=2),INDEX(Notentabellen!E:E,MATCH(G:G,Notentabellen!A:A,1)),IF(AND(Notentabellen!$J$3 =3,Notentabellen!$L$3=1), INDEX(Notentabellen!F:F,MATCH(G:G,Notentabellen!A:A,1)), IF(AND(Notentabellen!$J$3 =3,Notentabellen!$L$3=2), INDEX(Notentabellen!G:G,MATCH(G:G,Notentabellen!A:A,1)))))))))","v":" "}]
[5,{"$f":"IF(Eingabefeld!B8= \"\", \" \",INDEX(Eingabefeld!B:B,MATCH(A:A,Eingabefeld!A:A,0)))","v":" "},null,null,{"$f":"IF(Eingabefeld!E8=\"\",0,Eingabefeld!E8)","v":0},{"$f":"E7*Eingabefeld!$F$4","v":0},"",{"$f":"IF(G7 = \"\", \" \", IF(AND(Notentabellen!$J$3=1,Notentabellen!$L$3=1),INDEX(Notentabellen!B:B,MATCH(G:G,Notentabellen!A:A,1)),IF(AND(Notentabellen!$J$3=1,Notentabellen!$L$3=2),INDEX(Notentabellen!C:C,MATCH(G:G,Notentabellen!A:A,1)),IF(AND(Notentabellen!$J$3=2,Notentabellen!$L$3=1),INDEX(Notentabellen!D:D,MATCH(G:G,Notentabellen!A:A,1)),IF(AND(Notentabellen!$J$3=2,Notentabellen!$L$3=2),INDEX(Notentabellen!E:E,MATCH(G:G,Notentabellen!A:A,1)),IF(AND(Notentabellen!$J$3 =3,Notentabellen!$L$3=1), INDEX(Notentabellen!F:F,MATCH(G:G,Notentabellen!A:A,1)), IF(AND(Notentabellen!$J$3 =3,Notentabellen!$L$3=2), INDEX(Notentabellen!G:G,MATCH(G:G,Notentabellen!A:A,1)))))))))","v":" "}]
[6,{"$f":"IF(Eingabefeld!B9= \"\", \" \",INDEX(Eingabefeld!B:B,MATCH(A:A,Eingabefeld!A:A,0)))","v":" "},null,null,{"$f":"IF(Eingabefeld!E9=\"\",0,Eingabefeld!E9)","v":0},{"$f":"E8*Eingabefeld!$F$4","v":0},"",{"$f":"IF(G8 = \"\", \" \", IF(AND(Notentabellen!$J$3=1,Notentabellen!$L$3=1),INDEX(Notentabellen!B:B,MATCH(G:G,Notentabellen!A:A,1)),IF(AND(Notentabellen!$J$3=1,Notentabellen!$L$3=2),INDEX(Notentabellen!C:C,MATCH(G:G,Notentabellen!A:A,1)),IF(AND(Notentabellen!$J$3=2,Notentabellen!$L$3=1),INDEX(Notentabellen!D:D,MATCH(G:G,Notentabellen!A:A,1)),IF(AND(Notentabellen!$J$3=2,Notentabellen!$L$3=2),INDEX(Notentabellen!E:E,MATCH(G:G,Notentabellen!A:A,1)),IF(AND(Notentabellen!$J$3 =3,Notentabellen!$L$3=1), INDEX(Notentabellen!F:F,MATCH(G:G,Notentabellen!A:A,1)), IF(AND(Notentabellen!$J$3 =3,Notentabellen!$L$3=2), INDEX(Notentabellen!G:G,MATCH(G:G,Notentabellen!A:A,1)))))))))","v":" "}]
[7,{"$f":"IF(Eingabefeld!B10= \"\", \" \",INDEX(Eingabefeld!B:B,MATCH(A:A,Eingabefeld!A:A,0)))","v":" "},null,null,{"$f":"IF(Eingabefeld!E10=\"\",0,Eingabefeld!E10)","v":0},{"$f":"E9*Eingabefeld!$F$4","v":0},"",{"$f":"IF(G9 = \"\", \" \", IF(AND(Notentabellen!$J$3=1,Notentabellen!$L$3=1),INDEX(Notentabellen!B:B,MATCH(G:G,Notentabellen!A:A,1)),IF(AND(Notentabellen!$J$3=1,Notentabellen!$L$3=2),INDEX(Notentabellen!C:C,MATCH(G:G,Notentabellen!A:A,1)),IF(AND(Notentabellen!$J$3=2,Notentabellen!$L$3=1),INDEX(Notentabellen!D:D,MATCH(G:G,Notentabellen!A:A,1)),IF(AND(Notentabellen!$J$3=2,Notentabellen!$L$3=2),INDEX(Notentabellen!E:E,MATCH(G:G,Notentabellen!A:A,1)),IF(AND(Notentabellen!$J$3 =3,Notentabellen!$L$3=1), INDEX(Notentabellen!F:F,MATCH(G:G,Notentabellen!A:A,1)), IF(AND(Notentabellen!$J$3 =3,Notentabellen!$L$3=2), INDEX(Notentabellen!G:G,MATCH(G:G,Notentabellen!A:A,1)))))))))","v":" "}]
[8,{"$f":"IF(Eingabefeld!B11= \"\", \" \",INDEX(Eingabefeld!B:B,MATCH(A:A,Eingabefeld!A:A,0)))","v":" "},null,null,{"$f":"IF(Eingabefeld!E11=\"\",0,Eingabefeld!E11)","v":0},{"$f":"E10*Eingabefeld!$F$4","v":0},"",{"$f":"IF(G10 = \"\", \" \", IF(AND(Notentabellen!$J$3=1,Notentabellen!$L$3=1),INDEX(Notentabellen!B:B,MATCH(G:G,Notentabellen!A:A,1)),IF(AND(Notentabellen!$J$3=1,Notentabellen!$L$3=2),INDEX(Notentabellen!C:C,MATCH(G:G,Notentabellen!A:A,1)),IF(AND(Notentabellen!$J$3=2,Notentabellen!$L$3=1),INDEX(Notentabellen!D:D,MATCH(G:G,Notentabellen!A:A,1)),IF(AND(Notentabellen!$J$3=2,Notentabellen!$L$3=2),INDEX(Notentabellen!E:E,MATCH(G:G,Notentabellen!A:A,1)),IF(AND(Notentabellen!$J$3 =3,Notentabellen!$L$3=1), INDEX(Notentabellen!F:F,MATCH(G:G,Notentabellen!A:A,1)), IF(AND(Notentabellen!$J$3 =3,Notentabellen!$L$3=2), INDEX(Notentabellen!G:G,MATCH(G:G,Notentabellen!A:A,1)))))))))","v":" "}]
[9,{"$f":"IF(Eingabefeld!B12= \"\", \" \",INDEX(Eingabefeld!B:B,MATCH(A:A,Eingabefeld!A:A,0)))","v":" "},null,null,{"$f":"IF(Eingabefeld!E12=\"\",0,Eingabefeld!E12)","v":0},{"$f":"E11*Eingabefeld!$F$4","v":0},"",{"$f":"IF(G11 = \"\", \" \", IF(AND(Notentabellen!$J$3=1,Notentabellen!$L$3=1),INDEX(Notentabellen!B:B,MATCH(G:G,Notentabellen!A:A,1)),IF(AND(Notentabellen!$J$3=1,Notentabellen!$L$3=2),INDEX(Notentabellen!C:C,MATCH(G:G,Notentabellen!A:A,1)),IF(AND(Notentabellen!$J$3=2,Notentabellen!$L$3=1),INDEX(Notentabellen!D:D,MATCH(G:G,Notentabellen!A:A,1)),IF(AND(Notentabellen!$J$3=2,Notentabellen!$L$3=2),INDEX(Notentabellen!E:E,MATCH(G:G,Notentabellen!A:A,1)),IF(AND(Notentabellen!$J$3 =3,Notentabellen!$L$3=1), INDEX(Notentabellen!F:F,MATCH(G:G,Notentabellen!A:A,1)), IF(AND(Notentabellen!$J$3 =3,Notentabellen!$L$3=2), INDEX(Notentabellen!G:G,MATCH(G:G,Notentabellen!A:A,1)))))))))","v":" "}]
[10,{"$f":"IF(Eingabefeld!B13= \"\", \" \",INDEX(Eingabefeld!B:B,MATCH(A:A,Eingabefeld!A:A,0)))","v":" "},null,null,{"$f":"IF(Eingabefeld!E13=\"\",0,Eingabefeld!E13)","v":0},{"$f":"E12*Eingabefeld!$F$4","v":0},"",{"$f":"IF(G12 = \"\", \" \", IF(AND(Notentabellen!$J$3=1,Notentabellen!$L$3=1),INDEX(Notentabellen!B:B,MATCH(G:G,Notentabellen!A:A,1)),IF(AND(Notentabellen!$J$3=1,Notentabellen!$L$3=2),INDEX(Notentabellen!C:C,MATCH(G:G,Notentabellen!A:A,1)),IF(AND(Notentabellen!$J$3=2,Notentabellen!$L$3=1),INDEX(Notentabellen!D:D,MATCH(G:G,Notentabellen!A:A,1)),IF(AND(Notentabellen!$J$3=2,Notentabellen!$L$3=2),INDEX(Notentabellen!E:E,MATCH(G:G,Notentabellen!A:A,1)),IF(AND(Notentabellen!$J$3 =3,Notentabellen!$L$3=1), INDEX(Notentabellen!F:F,MATCH(G:G,Notentabellen!A:A,1)), IF(AND(Notentabellen!$J$3 =3,Notentabellen!$L$3=2), INDEX(Notentabellen!G:G,MATCH(G:G,Notentabellen!A:A,1)))))))))","v":" "}]
[11,{"$f":"IF(Eingabefeld!B14= \"\", \" \",INDEX(Eingabefeld!B:B,MATCH(A:A,Eingabefeld!A:A,0)))","v":" "},null,null,{"$f":"IF(Eingabefeld!E14=\"\",0,Eingabefeld!E14)","v":0},{"$f":"E13*Eingabefeld!$F$4","v":0},"",{"$f":"IF(G13 = \"\", \" \", IF(AND(Notentabellen!$J$3=1,Notentabellen!$L$3=1),INDEX(Notentabellen!B:B,MATCH(G:G,Notentabellen!A:A,1)),IF(AND(Notentabellen!$J$3=1,Notentabellen!$L$3=2),INDEX(Notentabellen!C:C,MATCH(G:G,Notentabellen!A:A,1)),IF(AND(Notentabellen!$J$3=2,Notentabellen!$L$3=1),INDEX(Notentabellen!D:D,MATCH(G:G,Notentabellen!A:A,1)),IF(AND(Notentabellen!$J$3=2,Notentabellen!$L$3=2),INDEX(Notentabellen!E:E,MATCH(G:G,Notentabellen!A:A,1)),IF(AND(Notentabellen!$J$3 =3,Notentabellen!$L$3=1), INDEX(Notentabellen!F:F,MATCH(G:G,Notentabellen!A:A,1)), IF(AND(Notentabellen!$J$3 =3,Notentabellen!$L$3=2), INDEX(Notentabellen!G:G,MATCH(G:G,Notentabellen!A:A,1)))))))))","v":" "}]
[12,{"$f":"IF(Eingabefeld!B15= \"\", \" \",INDEX(Eingabefeld!B:B,MATCH(A:A,Eingabefeld!A:A,0)))","v":" "},null,null,{"$f":"IF(Eingabefeld!E15=\"\",0,Eingabefeld!E15)","v":0},{"$f":"E14*Eingabefeld!$F$4","v":0},"",{"$f":"IF(G14 = \"\", \" \", IF(AND(Notentabellen!$J$3=1,Notentabellen!$L$3=1),INDEX(Notentabellen!B:B,MATCH(G:G,Notentabellen!A:A,1)),IF(AND(Notentabellen!$J$3=1,Notentabellen!$L$3=2),INDEX(Notentabellen!C:C,MATCH(G:G,Notentabellen!A:A,1)),IF(AND(Notentabellen!$J$3=2,Notentabellen!$L$3=1),INDEX(Notentabellen!D:D,MATCH(G:G,Notentabellen!A:A,1)),IF(AND(Notentabellen!$J$3=2,Notentabellen!$L$3=2),INDEX(Notentabellen!E:E,MATCH(G:G,Notentabellen!A:A,1)),IF(AND(Notentabellen!$J$3 =3,Notentabellen!$L$3=1), INDEX(Notentabellen!F:F,MATCH(G:G,Notentabellen!A:A,1)), IF(AND(Notentabellen!$J$3 =3,Notentabellen!$L$3=2), INDEX(Notentabellen!G:G,MATCH(G:G,Notentabellen!A:A,1)))))))))","v":" "}]
[13,{"$f":"IF(Eingabefeld!B16= \"\", \" \",INDEX(Eingabefeld!B:B,MATCH(A:A,Eingabefeld!A:A,0)))","v":" "},null,null,{"$f":"IF(Eingabefeld!E16=\"\",0,Eingabefeld!E16)","v":0},{"$f":"E15*Eingabefeld!$F$4","v":0},"",{"$f":"IF(G15 = \"\", \" \", IF(AND(Notentabellen!$J$3=1,Notentabellen!$L$3=1),INDEX(Notentabellen!B:B,MATCH(G:G,Notentabellen!A:A,1)),IF(AND(Notentabellen!$J$3=1,Notentabellen!$L$3=2),INDEX(Notentabellen!C:C,MATCH(G:G,Notentabellen!A:A,1)),IF(AND(Notentabellen!$J$3=2,Notentabellen!$L$3=1),INDEX(Notentabellen!D:D,MATCH(G:G,Notentabellen!A:A,1)),IF(AND(Notentabellen!$J$3=2,Notentabellen!$L$3=2),INDEX(Notentabellen!E:E,MATCH(G:G,Notentabellen!A:A,1)),IF(AND(Notentabellen!$J$3 =3,Notentabellen!$L$3=1), INDEX(Notentabellen!F:F,MATCH(G:G,Notentabellen!A:A,1)), IF(AND(Notentabellen!$J$3 =3,Notentabellen!$L$3=2), INDEX(Notentabellen!G:G,MATCH(G:G,Notentabellen!A:A,1)))))))))","v":" "}]
[14,{"$f":"IF(Eingabefeld!B17= \"\", \" \",INDEX(Eingabefeld!B:B,MATCH(A:A,Eingabefeld!A:A,0)))","v":" "},null,null,{"$f":"IF(Eingabefeld!E17=\"\",0,Eingabefeld!E17)","v":0},{"$f":"E16*Eingabefeld!$F$4","v":0},"",{"$f":"IF(G16 = \"\", \" \", IF(AND(Notentabellen!$J$3=1,Notentabellen!$L$3=1),INDEX(Notentabellen!B:B,MATCH(G:G,Notentabellen!A:A,1)),IF(AND(Notentabellen!$J$3=1,Notentabellen!$L$3=2),INDEX(Notentabellen!C:C,MATCH(G:G,Notentabellen!A:A,1)),IF(AND(Notentabellen!$J$3=2,Notentabellen!$L$3=1),INDEX(Notentabellen!D:D,MATCH(G:G,Notentabellen!A:A,1)),IF(AND(Notentabellen!$J$3=2,Notentabellen!$L$3=2),INDEX(Notentabellen!E:E,MATCH(G:G,Notentabellen!A:A,1)),IF(AND(Notentabellen!$J$3 =3,Notentabellen!$L$3=1), INDEX(Notentabellen!F:F,MATCH(G:G,Notentabellen!A:A,1)), IF(AND(Notentabellen!$J$3 =3,Notentabellen!$L$3=2), INDEX(Notentabellen!G:G,MATCH(G:G,Notentabellen!A:A,1)))))))))","v":" "}]
[15,{"$f":"IF(Eingabefeld!B18= \"\", \" \",INDEX(Eingabefeld!B:B,MATCH(A:A,Eingabefeld!A:A,0)))","v":" "},null,null,{"$f":"IF(Eingabefeld!E18=\"\",0,Eingabefeld!E18)","v":0},{"$f":"E17*Eingabefeld!$F$4","v":0},"",{"$f":"IF(G17 = \"\", \" \", IF(AND(Notentabellen!$J$3=1,Notentabellen!$L$3=1),INDEX(Notentabellen!B:B,MATCH(G:G,Notentabellen!A:A,1)),IF(AND(Notentabellen!$J$3=1,Notentabellen!$L$3=2),INDEX(Notentabellen!C:C,MATCH(G:G,Notentabellen!A:A,1)),IF(AND(Notentabellen!$J$3=2,Notentabellen!$L$3=1),INDEX(Notentabellen!D:D,MATCH(G:G,Notentabellen!A:A,1)),IF(AND(Notentabellen!$J$3=2,Notentabellen!$L$3=2),INDEX(Notentabellen!E:E,MATCH(G:G,Notentabellen!A:A,1)),IF(AND(Notentabellen!$J$3 =3,Notentabellen!$L$3=1), INDEX(Notentabellen!F:F,MATCH(G:G,Notentabellen!A:A,1)), IF(AND(Notentabellen!$J$3 =3,Notentabellen!$L$3=2), INDEX(Notentabellen!G:G,MATCH(G:G,Notentabellen!A:A,1)))))))))","v":" "}]
[16,{"$f":"IF(Eingabefeld!B19= \"\", \" \",INDEX(Eingabefeld!B:B,MATCH(A:A,Eingabefeld!A:A,0)))","v":" "},null,null,{"$f":"IF(Eingabefeld!E19=\"\",0,Eingabefeld!E19)","v":0},{"$f":"E18*Eingabefeld!$F$4","v":0},"",{"$f":"IF(G18 = \"\", \" \", IF(AND(Notentabellen!$J$3=1,Notentabellen!$L$3=1),INDEX(Notentabellen!B:B,MATCH(G:G,Notentabellen!A:A,1)),IF(AND(Notentabellen!$J$3=1,Notentabellen!$L$3=2),INDEX(Notentabellen!C:C,MATCH(G:G,Notentabellen!A:A,1)),IF(AND(Notentabellen!$J$3=2,Notentabellen!$L$3=1),INDEX(Notentabellen!D:D,MATCH(G:G,Notentabellen!A:A,1)),IF(AND(Notentabellen!$J$3=2,Notentabellen!$L$3=2),INDEX(Notentabellen!E:E,MATCH(G:G,Notentabellen!A:A,1)),IF(AND(Notentabellen!$J$3 =3,Notentabellen!$L$3=1), INDEX(Notentabellen!F:F,MATCH(G:G,Notentabellen!A:A,1)), IF(AND(Notentabellen!$J$3 =3,Notentabellen!$L$3=2), INDEX(Notentabellen!G:G,MATCH(G:G,Notentabellen!A:A,1)))))))))","v":" "}]
[17,{"$f":"IF(Eingabefeld!B20= \"\", \" \",INDEX(Eingabefeld!B:B,MATCH(A:A,Eingabefeld!A:A,0)))","v":" "},null,null,{"$f":"IF(Eingabefeld!E20=\"\",0,Eingabefeld!E20)","v":0},{"$f":"E19*Eingabefeld!$F$4","v":0},"",{"$f":"IF(G19 = \"\", \" \", IF(AND(Notentabellen!$J$3=1,Notentabellen!$L$3=1),INDEX(Notentabellen!B:B,MATCH(G:G,Notentabellen!A:A,1)),IF(AND(Notentabellen!$J$3=1,Notentabellen!$L$3=2),INDEX(Notentabellen!C:C,MATCH(G:G,Notentabellen!A:A,1)),IF(AND(Notentabellen!$J$3=2,Notentabellen!$L$3=1),INDEX(Notentabellen!D:D,MATCH(G:G,Notentabellen!A:A,1)),IF(AND(Notentabellen!$J$3=2,Notentabellen!$L$3=2),INDEX(Notentabellen!E:E,MATCH(G:G,Notentabellen!A:A,1)),IF(AND(Notentabellen!$J$3 =3,Notentabellen!$L$3=1), INDEX(Notentabellen!F:F,MATCH(G:G,Notentabellen!A:A,1)), IF(AND(Notentabellen!$J$3 =3,Notentabellen!$L$3=2), INDEX(Notentabellen!G:G,MATCH(G:G,Notentabellen!A:A,1)))))))))","v":" "}]
[18,{"$f":"IF(Eingabefeld!B21= \"\", \" \",INDEX(Eingabefeld!B:B,MATCH(A:A,Eingabefeld!A:A,0)))","v":" "},null,null,{"$f":"IF(Eingabefeld!E21=\"\",0,Eingabefeld!E21)","v":0},{"$f":"E20*Eingabefeld!$F$4","v":0},"",{"$f":"IF(G20 = \"\", \" \", IF(AND(Notentabellen!$J$3=1,Notentabellen!$L$3=1),INDEX(Notentabellen!B:B,MATCH(G:G,Notentabellen!A:A,1)),IF(AND(Notentabellen!$J$3=1,Notentabellen!$L$3=2),INDEX(Notentabellen!C:C,MATCH(G:G,Notentabellen!A:A,1)),IF(AND(Notentabellen!$J$3=2,Notentabellen!$L$3=1),INDEX(Notentabellen!D:D,MATCH(G:G,Notentabellen!A:A,1)),IF(AND(Notentabellen!$J$3=2,Notentabellen!$L$3=2),INDEX(Notentabellen!E:E,MATCH(G:G,Notentabellen!A:A,1)),IF(AND(Notentabellen!$J$3 =3,Notentabellen!$L$3=1), INDEX(Notentabellen!F:F,MATCH(G:G,Notentabellen!A:A,1)), IF(AND(Notentabellen!$J$3 =3,Notentabellen!$L$3=2), INDEX(Notentabellen!G:G,MATCH(G:G,Notentabellen!A:A,1)))))))))","v":" "}]
[19,{"$f":"IF(Eingabefeld!B22= \"\", \" \",INDEX(Eingabefeld!B:B,MATCH(A:A,Eingabefeld!A:A,0)))","v":" "},null,null,{"$f":"IF(Eingabefeld!E22=\"\",0,Eingabefeld!E22)","v":0},{"$f":"E21*Eingabefeld!$F$4","v":0},"",{"$f":"IF(G21 = \"\", \" \", IF(AND(Notentabellen!$J$3=1,Notentabellen!$L$3=1),INDEX(Notentabellen!B:B,MATCH(G:G,Notentabellen!A:A,1)),IF(AND(Notentabellen!$J$3=1,Notentabellen!$L$3=2),INDEX(Notentabellen!C:C,MATCH(G:G,Notentabellen!A:A,1)),IF(AND(Notentabellen!$J$3=2,Notentabellen!$L$3=1),INDEX(Notentabellen!D:D,MATCH(G:G,Notentabellen!A:A,1)),IF(AND(Notentabellen!$J$3=2,Notentabellen!$L$3=2),INDEX(Notentabellen!E:E,MATCH(G:G,Notentabellen!A:A,1)),IF(AND(Notentabellen!$J$3 =3,Notentabellen!$L$3=1), INDEX(Notentabellen!F:F,MATCH(G:G,Notentabellen!A:A,1)), IF(AND(Notentabellen!$J$3 =3,Notentabellen!$L$3=2), INDEX(Notentabellen!G:G,MATCH(G:G,Notentabellen!A:A,1)))))))))","v":" "}]
[20,{"$f":"IF(Eingabefeld!B23= \"\", \" \",INDEX(Eingabefeld!B:B,MATCH(A:A,Eingabefeld!A:A,0)))","v":" "},null,null,{"$f":"IF(Eingabefeld!E23=\"\",0,Eingabefeld!E23)","v":0},{"$f":"E22*Eingabefeld!$F$4","v":0},"",{"$f":"IF(G22 = \"\", \" \", IF(AND(Notentabellen!$J$3=1,Notentabellen!$L$3=1),INDEX(Notentabellen!B:B,MATCH(G:G,Notentabellen!A:A,1)),IF(AND(Notentabellen!$J$3=1,Notentabellen!$L$3=2),INDEX(Notentabellen!C:C,MATCH(G:G,Notentabellen!A:A,1)),IF(AND(Notentabellen!$J$3=2,Notentabellen!$L$3=1),INDEX(Notentabellen!D:D,MATCH(G:G,Notentabellen!A:A,1)),IF(AND(Notentabellen!$J$3=2,Notentabellen!$L$3=2),INDEX(Notentabellen!E:E,MATCH(G:G,Notentabellen!A:A,1)),IF(AND(Notentabellen!$J$3 =3,Notentabellen!$L$3=1), INDEX(Notentabellen!F:F,MATCH(G:G,Notentabellen!A:A,1)), IF(AND(Notentabellen!$J$3 =3,Notentabellen!$L$3=2), INDEX(Notentabellen!G:G,MATCH(G:G,Notentabellen!A:A,1)))))))))","v":" "}]
[21,{"$f":"IF(Eingabefeld!B24= \"\", \" \",INDEX(Eingabefeld!B:B,MATCH(A:A,Eingabefeld!A:A,0)))","v":" "},null,null,{"$f":"IF(Eingabefeld!E24=\"\",0,Eingabefeld!E24)","v":0},{"$f":"E23*Eingabefeld!$F$4","v":0},"",{"$f":"IF(G23 = \"\", \" \", IF(AND(Notentabellen!$J$3=1,Notentabellen!$L$3=1),INDEX(Notentabellen!B:B,MATCH(G:G,Notentabellen!A:A,1)),IF(AND(Notentabellen!$J$3=1,Notentabellen!$L$3=2),INDEX(Notentabellen!C:C,MATCH(G:G,Notentabellen!A:A,1)),IF(AND(Notentabellen!$J$3=2,Notentabellen!$L$3=1),INDEX(Notentabellen!D:D,MATCH(G:G,Notentabellen!A:A,1)),IF(AND(Notentabellen!$J$3=2,Notentabellen!$L$3=2),INDEX(Notentabellen!E:E,MATCH(G:G,Notentabellen!A:A,1)),IF(AND(Notentabellen!$J$3 =3,Notentabellen!$L$3=1), INDEX(Notentabellen!F:F,MATCH(G:G,Notentabellen!A:A,1)), IF(AND(Notentabellen!$J$3 =3,Notentabellen!$L$3=2), INDEX(Notentabellen!G:G,MATCH(G:G,Notentabellen!A:A,1)))))))))","v":" "}]
[22,{"$f":"IF(Eingabefeld!B25= \"\", \" \",INDEX(Eingabefeld!B:B,MATCH(A:A,Eingabefeld!A:A,0)))","v":" "},null,null,{"$f":"IF(Eingabefeld!E25=\"\",0,Eingabefeld!E25)","v":0},{"$f":"E24*Eingabefeld!$F$4","v":0},"",{"$f":"IF(G24 = \"\", \" \", IF(AND(Notentabellen!$J$3=1,Notentabellen!$L$3=1),INDEX(Notentabellen!B:B,MATCH(G:G,Notentabellen!A:A,1)),IF(AND(Notentabellen!$J$3=1,Notentabellen!$L$3=2),INDEX(Notentabellen!C:C,MATCH(G:G,Notentabellen!A:A,1)),IF(AND(Notentabellen!$J$3=2,Notentabellen!$L$3=1),INDEX(Notentabellen!D:D,MATCH(G:G,Notentabellen!A:A,1)),IF(AND(Notentabellen!$J$3=2,Notentabellen!$L$3=2),INDEX(Notentabellen!E:E,MATCH(G:G,Notentabellen!A:A,1)),IF(AND(Notentabellen!$J$3 =3,Notentabellen!$L$3=1), INDEX(Notentabellen!F:F,MATCH(G:G,Notentabellen!A:A,1)), IF(AND(Notentabellen!$J$3 =3,Notentabellen!$L$3=2), INDEX(Notentabellen!G:G,MATCH(G:G,Notentabellen!A:A,1)))))))))","v":" "}]
[23,{"$f":"IF(Eingabefeld!B26= \"\", \" \",INDEX(Eingabefeld!B:B,MATCH(A:A,Eingabefeld!A:A,0)))","v":" "},null,null,{"$f":"IF(Eingabefeld!E26=\"\",0,Eingabefeld!E26)","v":0},{"$f":"E25*Eingabefeld!$F$4","v":0},"",{"$f":"IF(G25 = \"\", \" \", IF(AND(Notentabellen!$J$3=1,Notentabellen!$L$3=1),INDEX(Notentabellen!B:B,MATCH(G:G,Notentabellen!A:A,1)),IF(AND(Notentabellen!$J$3=1,Notentabellen!$L$3=2),INDEX(Notentabellen!C:C,MATCH(G:G,Notentabellen!A:A,1)),IF(AND(Notentabellen!$J$3=2,Notentabellen!$L$3=1),INDEX(Notentabellen!D:D,MATCH(G:G,Notentabellen!A:A,1)),IF(AND(Notentabellen!$J$3=2,Notentabellen!$L$3=2),INDEX(Notentabellen!E:E,MATCH(G:G,Notentabellen!A:A,1)),IF(AND(Notentabellen!$J$3 =3,Notentabellen!$L$3=1), INDEX(Notentabellen!F:F,MATCH(G:G,Notentabellen!A:A,1)), IF(AND(Notentabellen!$J$3 =3,Notentabellen!$L$3=2), INDEX(Notentabellen!G:G,MATCH(G:G,Notentabellen!A:A,1)))))))))","v":" "}]
[24,{"$f":"IF(Eingabefeld!B27= \"\", \" \",INDEX(Eingabefeld!B:B,MATCH(A:A,Eingabefeld!A:A,0)))","v":" "},null,null,{"$f":"IF(Eingabefeld!E27=\"\",0,Eingabefeld!E27)","v":0},{"$f":"E26*Eingabefeld!$F$4","v":0},"",{"$f":"IF(G26 = \"\", \" \", IF(AND(Notentabellen!$J$3=1,Notentabellen!$L$3=1),INDEX(Notentabellen!B:B,MATCH(G:G,Notentabellen!A:A,1)),IF(AND(Notentabellen!$J$3=1,Notentabellen!$L$3=2),INDEX(Notentabellen!C:C,MATCH(G:G,Notentabellen!A:A,1)),IF(AND(Notentabellen!$J$3=2,Notentabellen!$L$3=1),INDEX(Notentabellen!D:D,MATCH(G:G,Notentabellen!A:A,1)),IF(AND(Notentabellen!$J$3=2,Notentabellen!$L$3=2),INDEX(Notentabellen!E:E,MATCH(G:G,Notentabellen!A:A,1)),IF(AND(Notentabellen!$J$3 =3,Notentabellen!$L$3=1), INDEX(Notentabellen!F:F,MATCH(G:G,Notentabellen!A:A,1)), IF(AND(Notentabellen!$J$3 =3,Notentabellen!$L$3=2), INDEX(Notentabellen!G:G,MATCH(G:G,Notentabellen!A:A,1)))))))))","v":" "}]
[25,{"$f":"IF(Eingabefeld!B28= \"\", \" \",INDEX(Eingabefeld!B:B,MATCH(A:A,Eingabefeld!A:A,0)))","v":" "},null,null,{"$f":"IF(Eingabefeld!E28=\"\",0,Eingabefeld!E28)","v":0},{"$f":"E27*Eingabefeld!$F$4","v":0},"",{"$f":"IF(G27 = \"\", \" \", IF(AND(Notentabellen!$J$3=1,Notentabellen!$L$3=1),INDEX(Notentabellen!B:B,MATCH(G:G,Notentabellen!A:A,1)),IF(AND(Notentabellen!$J$3=1,Notentabellen!$L$3=2),INDEX(Notentabellen!C:C,MATCH(G:G,Notentabellen!A:A,1)),IF(AND(Notentabellen!$J$3=2,Notentabellen!$L$3=1),INDEX(Notentabellen!D:D,MATCH(G:G,Notentabellen!A:A,1)),IF(AND(Notentabellen!$J$3=2,Notentabellen!$L$3=2),INDEX(Notentabellen!E:E,MATCH(G:G,Notentabellen!A:A,1)),IF(AND(Notentabellen!$J$3 =3,Notentabellen!$L$3=1), INDEX(Notentabellen!F:F,MATCH(G:G,Notentabellen!A:A,1)), IF(AND(Notentabellen!$J$3 =3,Notentabellen!$L$3=2), INDEX(Notentabellen!G:G,MATCH(G:G,Notentabellen!A:A,1)))))))))","v":" "}]
[26,{"$f":"IF(Eingabefeld!B29= \"\", \" \",INDEX(Eingabefeld!B:B,MATCH(A:A,Eingabefeld!A:A,0)))","v":" "},null,null,{"$f":"IF(Eingabefeld!E29=\"\",0,Eingabefeld!E29)","v":0},{"$f":"E28*Eingabefeld!$F$4","v":0},"",{"$f":"IF(G28 = \"\", \" \", IF(AND(Notentabellen!$J$3=1,Notentabellen!$L$3=1),INDEX(Notentabellen!B:B,MATCH(G:G,Notentabellen!A:A,1)),IF(AND(Notentabellen!$J$3=1,Notentabellen!$L$3=2),INDEX(Notentabellen!C:C,MATCH(G:G,Notentabellen!A:A,1)),IF(AND(Notentabellen!$J$3=2,Notentabellen!$L$3=1),INDEX(Notentabellen!D:D,MATCH(G:G,Notentabellen!A:A,1)),IF(AND(Notentabellen!$J$3=2,Notentabellen!$L$3=2),INDEX(Notentabellen!E:E,MATCH(G:G,Notentabellen!A:A,1)),IF(AND(Notentabellen!$J$3 =3,Notentabellen!$L$3=1), INDEX(Notentabellen!F:F,MATCH(G:G,Notentabellen!A:A,1)), IF(AND(Notentabellen!$J$3 =3,Notentabellen!$L$3=2), INDEX(Notentabellen!G:G,MATCH(G:G,Notentabellen!A:A,1)))))))))","v":" "}]
[27,{"$f":"IF(Eingabefeld!B30= \"\", \" \",INDEX(Eingabefeld!B:B,MATCH(A:A,Eingabefeld!A:A,0)))","v":" "},null,null,{"$f":"IF(Eingabefeld!E30=\"\",0,Eingabefeld!E30)","v":0},{"$f":"E29*Eingabefeld!$F$4","v":0},"",{"$f":"IF(G29 = \"\", \" \", IF(AND(Notentabellen!$J$3=1,Notentabellen!$L$3=1),INDEX(Notentabellen!B:B,MATCH(G:G,Notentabellen!A:A,1)),IF(AND(Notentabellen!$J$3=1,Notentabellen!$L$3=2),INDEX(Notentabellen!C:C,MATCH(G:G,Notentabellen!A:A,1)),IF(AND(Notentabellen!$J$3=2,Notentabellen!$L$3=1),INDEX(Notentabellen!D:D,MATCH(G:G,Notentabellen!A:A,1)),IF(AND(Notentabellen!$J$3=2,Notentabellen!$L$3=2),INDEX(Notentabellen!E:E,MATCH(G:G,Notentabellen!A:A,1)),IF(AND(Notentabellen!$J$3 =3,Notentabellen!$L$3=1), INDEX(Notentabellen!F:F,MATCH(G:G,Notentabellen!A:A,1)), IF(AND(Notentabellen!$J$3 =3,Notentabellen!$L$3=2), INDEX(Notentabellen!G:G,MATCH(G:G,Notentabellen!A:A,1)))))))))","v":" "}]
[28,{"$f":"IF(Eingabefeld!B31= \"\", \" \",INDEX(Eingabefeld!B:B,MATCH(A:A,Eingabefeld!A:A,0)))","v":" "},null,null,{"$f":"IF(Eingabefeld!E31=\"\",0,Eingabefeld!E31)","v":0},{"$f":"E30*Eingabefeld!$F$4","v":0},"",{"$f":"IF(G30 = \"\", \" \", IF(AND(Notentabellen!$J$3=1,Notentabellen!$L$3=1),INDEX(Notentabellen!B:B,MATCH(G:G,Notentabellen!A:A,1)),IF(AND(Notentabellen!$J$3=1,Notentabellen!$L$3=2),INDEX(Notentabellen!C:C,MATCH(G:G,Notentabellen!A:A,1)),IF(AND(Notentabellen!$J$3=2,Notentabellen!$L$3=1),INDEX(Notentabellen!D:D,MATCH(G:G,Notentabellen!A:A,1)),IF(AND(Notentabellen!$J$3=2,Notentabellen!$L$3=2),INDEX(Notentabellen!E:E,MATCH(G:G,Notentabellen!A:A,1)),IF(AND(Notentabellen!$J$3 =3,Notentabellen!$L$3=1), INDEX(Notentabellen!F:F,MATCH(G:G,Notentabellen!A:A,1)), IF(AND(Notentabellen!$J$3 =3,Notentabellen!$L$3=2), INDEX(Notentabellen!G:G,MATCH(G:G,Notentabellen!A:A,1)))))))))","v":" "}]
[29,{"$f":"IF(Eingabefeld!B32= \"\", \" \",INDEX(Eingabefeld!B:B,MATCH(A:A,Eingabefeld!A:A,0)))","v":" "},null,null,{"$f":"IF(Eingabefeld!E32=\"\",0,Eingabefeld!E32)","v":0},{"$f":"E31*Eingabefeld!$F$4","v":0},"",{"$f":"IF(G31 = \"\", \" \", IF(AND(Notentabellen!$J$3=1,Notentabellen!$L$3=1),INDEX(Notentabellen!B:B,MATCH(G:G,Notentabellen!A:A,1)),IF(AND(Notentabellen!$J$3=1,Notentabellen!$L$3=2),INDEX(Notentabellen!C:C,MATCH(G:G,Notentabellen!A:A,1)),IF(AND(Notentabellen!$J$3=2,Notentabellen!$L$3=1),INDEX(Notentabellen!D:D,MATCH(G:G,Notentabellen!A:A,1)),IF(AND(Notentabellen!$J$3=2,Notentabellen!$L$3=2),INDEX(Notentabellen!E:E,MATCH(G:G,Notentabellen!A:A,1)),IF(AND(Notentabellen!$J$3 =3,Notentabellen!$L$3=1), INDEX(Notentabellen!F:F,MATCH(G:G,Notentabellen!A:A,1)), IF(AND(Notentabellen!$J$3 =3,Notentabellen!$L$3=2), INDEX(Notentabellen!G:G,MATCH(G:G,Notentabellen!A:A,1)))))))))","v":" "}]
[30,{"$f":"IF(Eingabefeld!B33= \"\", \" \",INDEX(Eingabefeld!B:B,MATCH(A:A,Eingabefeld!A:A,0)))","v":" "},null,null,{"$f":"IF(Eingabefeld!E33=\"\",0,Eingabefeld!E33)","v":0},{"$f":"E32*Eingabefeld!$F$4","v":0},"",{"$f":"IF(G32 = \"\", \" \", IF(AND(Notentabellen!$J$3=1,Notentabellen!$L$3=1),INDEX(Notentabellen!B:B,MATCH(G:G,Notentabellen!A:A,1)),IF(AND(Notentabellen!$J$3=1,Notentabellen!$L$3=2),INDEX(Notentabellen!C:C,MATCH(G:G,Notentabellen!A:A,1)),IF(AND(Notentabellen!$J$3=2,Notentabellen!$L$3=1),INDEX(Notentabellen!D:D,MATCH(G:G,Notentabellen!A:A,1)),IF(AND(Notentabellen!$J$3=2,Notentabellen!$L$3=2),INDEX(Notentabellen!E:E,MATCH(G:G,Notentabellen!A:A,1)),IF(AND(Notentabellen!$J$3 =3,Notentabellen!$L$3=1), INDEX(Notentabellen!F:F,MATCH(G:G,Notentabellen!A:A,1)), IF(AND(Notentabellen!$J$3 =3,Notentabellen!$L$3=2), INDEX(Notentabellen!G:G,MATCH(G:G,Notentabellen!A:A,1)))))))))","v":" "}]
[31,{"$f":"IF(Eingabefeld!B34= \"\", \" \",INDEX(Eingabefeld!B:B,MATCH(A:A,Eingabefeld!A:A,0)))","v":" "},null,null,{"$f":"IF(Eingabefeld!E34=\"\",0,Eingabefeld!E34)","v":0},{"$f":"E33*Eingabefeld!$F$4","v":0},"",{"$f":"IF(G33 = \"\", \" \", IF(AND(Notentabellen!$J$3=1,Notentabellen!$L$3=1),INDEX(Notentabellen!B:B,MATCH(G:G,Notentabellen!A:A,1)),IF(AND(Notentabellen!$J$3=1,Notentabellen!$L$3=2),INDEX(Notentabellen!C:C,MATCH(G:G,Notentabellen!A:A,1)),IF(AND(Notentabellen!$J$3=2,Notentabellen!$L$3=1),INDEX(Notentabellen!D:D,MATCH(G:G,Notentabellen!A:A,1)),IF(AND(Notentabellen!$J$3=2,Notentabellen!$L$3=2),INDEX(Notentabellen!E:E,MATCH(G:G,Notentabellen!A:A,1)),IF(AND(Notentabellen!$J$3 =3,Notentabellen!$L$3=1), INDEX(Notentabellen!F:F,MATCH(G:G,Notentabellen!A:A,1)), IF(AND(Notentabellen!$J$3 =3,Notentabellen!$L$3=2), INDEX(Notentabellen!G:G,MATCH(G:G,Notentabellen!A:A,1)))))))))","v":" "}]
[32,{"$f":"IF(Eingabefeld!B35= \"\", \" \",INDEX(Eingabefeld!B:B,MATCH(A:A,Eingabefeld!A:A,0)))","v":" "},null,null,{"$f":"IF(Eingabefeld!E35=\"\",0,Eingabefeld!E35)","v":0},{"$f":"E34*Eingabefeld!$F$4","v":0},"",{"$f":"IF(G34 = \"\", \" \", IF(AND(Notentabellen!$J$3=1,Notentabellen!$L$3=1),INDEX(Notentabellen!B:B,MATCH(G:G,Notentabellen!A:A,1)),IF(AND(Notentabellen!$J$3=1,Notentabellen!$L$3=2),INDEX(Notentabellen!C:C,MATCH(G:G,Notentabellen!A:A,1)),IF(AND(Notentabellen!$J$3=2,Notentabellen!$L$3=1),INDEX(Notentabellen!D:D,MATCH(G:G,Notentabellen!A:A,1)),IF(AND(Notentabellen!$J$3=2,Notentabellen!$L$3=2),INDEX(Notentabellen!E:E,MATCH(G:G,Notentabellen!A:A,1)),IF(AND(Notentabellen!$J$3 =3,Notentabellen!$L$3=1), INDEX(Notentabellen!F:F,MATCH(G:G,Notentabellen!A:A,1)), IF(AND(Notentabellen!$J$3 =3,Notentabellen!$L$3=2), INDEX(Notentabellen!G:G,MATCH(G:G,Notentabellen!A:A,1)))))))))","v":" "}]
[33,{"$f":"IF(Eingabefeld!B36= \"\", \" \",INDEX(Eingabefeld!B:B,MATCH(A:A,Eingabefeld!A:A,0)))","v":" "},null,null,{"$f":"IF(Eingabefeld!E36=\"\",0,Eingabefeld!E36)","v":0},{"$f":"E35*Eingabefeld!$F$4","v":0},"",{"$f":"IF(G35 = \"\", \" \", IF(AND(Notentabellen!$J$3=1,Notentabellen!$L$3=1),INDEX(Notentabellen!B:B,MATCH(G:G,Notentabellen!A:A,1)),IF(AND(Notentabellen!$J$3=1,Notentabellen!$L$3=2),INDEX(Notentabellen!C:C,MATCH(G:G,Notentabellen!A:A,1)),IF(AND(Notentabellen!$J$3=2,Notentabellen!$L$3=1),INDEX(Notentabellen!D:D,MATCH(G:G,Notentabellen!A:A,1)),IF(AND(Notentabellen!$J$3=2,Notentabellen!$L$3=2),INDEX(Notentabellen!E:E,MATCH(G:G,Notentabellen!A:A,1)),IF(AND(Notentabellen!$J$3 =3,Notentabellen!$L$3=1), INDEX(Notentabellen!F:F,MATCH(G:G,Notentabellen!A:A,1)), IF(AND(Notentabellen!$J$3 =3,Notentabellen!$L$3=2), INDEX(Notentabellen!G:G,MATCH(G:G,Notentabellen!A:A,1)))))))))","v":" "}]
[34,{"$f":"IF(Eingabefeld!B37= \"\", \" \",INDEX(Eingabefeld!B:B,MATCH(A:A,Eingabefeld!A:A,0)))","v":" "},null,null,{"$f":"IF(Eingabefeld!E37=\"\",0,Eingabefeld!E37)","v":0},{"$f":"E36*Eingabefeld!$F$4","v":0},"",{"$f":"IF(G36 = \"\", \" \", IF(AND(Notentabellen!$J$3=1,Notentabellen!$L$3=1),INDEX(Notentabellen!B:B,MATCH(G:G,Notentabellen!A:A,1)),IF(AND(Notentabellen!$J$3=1,Notentabellen!$L$3=2),INDEX(Notentabellen!C:C,MATCH(G:G,Notentabellen!A:A,1)),IF(AND(Notentabellen!$J$3=2,Notentabellen!$L$3=1),INDEX(Notentabellen!D:D,MATCH(G:G,Notentabellen!A:A,1)),IF(AND(Notentabellen!$J$3=2,Notentabellen!$L$3=2),INDEX(Notentabellen!E:E,MATCH(G:G,Notentabellen!A:A,1)),IF(AND(Notentabellen!$J$3 =3,Notentabellen!$L$3=1), INDEX(Notentabellen!F:F,MATCH(G:G,Notentabellen!A:A,1)), IF(AND(Notentabellen!$J$3 =3,Notentabellen!$L$3=2), INDEX(Notentabellen!G:G,MATCH(G:G,Notentabellen!A:A,1)))))))))","v":" "}]
[35,{"$f":"IF(Eingabefeld!B38= \"\", \" \",INDEX(Eingabefeld!B:B,MATCH(A:A,Eingabefeld!A:A,0)))","v":" "},null,null,{"$f":"IF(Eingabefeld!E38=\"\",0,Eingabefeld!E38)","v":0},{"$f":"E37*Eingabefeld!$F$4","v":0},"",{"$f":"IF(G37 = \"\", \" \", IF(AND(Notentabellen!$J$3=1,Notentabellen!$L$3=1),INDEX(Notentabellen!B:B,MATCH(G:G,Notentabellen!A:A,1)),IF(AND(Notentabellen!$J$3=1,Notentabellen!$L$3=2),INDEX(Notentabellen!C:C,MATCH(G:G,Notentabellen!A:A,1)),IF(AND(Notentabellen!$J$3=2,Notentabellen!$L$3=1),INDEX(Notentabellen!D:D,MATCH(G:G,Notentabellen!A:A,1)),IF(AND(Notentabellen!$J$3=2,Notentabellen!$L$3=2),INDEX(Notentabellen!E:E,MATCH(G:G,Notentabellen!A:A,1)),IF(AND(Notentabellen!$J$3 =3,Notentabellen!$L$3=1), INDEX(Notentabellen!F:F,MATCH(G:G,Notentabellen!A:A,1)), IF(AND(Notentabellen!$J$3 =3,Notentabellen!$L$3=2), INDEX(Notentabellen!G:G,MATCH(G:G,Notentabellen!A:A,1)))))))))","v":" "}]
[36,{"$f":"IF(Eingabefeld!B39= \"\", \" \",INDEX(Eingabefeld!B:B,MATCH(A:A,Eingabefeld!A:A,0)))","v":" "},null,null,{"$f":"IF(Eingabefeld!E39=\"\",0,Eingabefeld!E39)","v":0},{"$f":"E38*Eingabefeld!$F$4","v":0},"",{"$f":"IF(G38 = \"\", \" \", IF(AND(Notentabellen!$J$3=1,Notentabellen!$L$3=1),INDEX(Notentabellen!B:B,MATCH(G:G,Notentabellen!A:A,1)),IF(AND(Notentabellen!$J$3=1,Notentabellen!$L$3=2),INDEX(Notentabellen!C:C,MATCH(G:G,Notentabellen!A:A,1)),IF(AND(Notentabellen!$J$3=2,Notentabellen!$L$3=1),INDEX(Notentabellen!D:D,MATCH(G:G,Notentabellen!A:A,1)),IF(AND(Notentabellen!$J$3=2,Notentabellen!$L$3=2),INDEX(Notentabellen!E:E,MATCH(G:G,Notentabellen!A:A,1)),IF(AND(Notentabellen!$J$3 =3,Notentabellen!$L$3=1), INDEX(Notentabellen!F:F,MATCH(G:G,Notentabellen!A:A,1)), IF(AND(Notentabellen!$J$3 =3,Notentabellen!$L$3=2), INDEX(Notentabellen!G:G,MATCH(G:G,Notentabellen!A:A,1)))))))))","v":" "}]
[37,{"$f":"IF(Eingabefeld!B40= \"\", \" \",INDEX(Eingabefeld!B:B,MATCH(A:A,Eingabefeld!A:A,0)))","v":" "},null,null,{"$f":"IF(Eingabefeld!E40=\"\",0,Eingabefeld!E40)","v":0},{"$f":"E39*Eingabefeld!$F$4","v":0},"",{"$f":"IF(G39 = \"\", \" \", IF(AND(Notentabellen!$J$3=1,Notentabellen!$L$3=1),INDEX(Notentabellen!B:B,MATCH(G:G,Notentabellen!A:A,1)),IF(AND(Notentabellen!$J$3=1,Notentabellen!$L$3=2),INDEX(Notentabellen!C:C,MATCH(G:G,Notentabellen!A:A,1)),IF(AND(Notentabellen!$J$3=2,Notentabellen!$L$3=1),INDEX(Notentabellen!D:D,MATCH(G:G,Notentabellen!A:A,1)),IF(AND(Notentabellen!$J$3=2,Notentabellen!$L$3=2),INDEX(Notentabellen!E:E,MATCH(G:G,Notentabellen!A:A,1)),IF(AND(Notentabellen!$J$3 =3,Notentabellen!$L$3=1), INDEX(Notentabellen!F:F,MATCH(G:G,Notentabellen!A:A,1)), IF(AND(Notentabellen!$J$3 =3,Notentabellen!$L$3=2), INDEX(Notentabellen!G:G,MATCH(G:G,Notentabellen!A:A,1)))))))))","v":" "}]
[38,{"$f":"IF(Eingabefeld!B41= \"\", \" \",INDEX(Eingabefeld!B:B,MATCH(A:A,Eingabefeld!A:A,0)))","v":" "},null,null,{"$f":"IF(Eingabefeld!E41=\"\",0,Eingabefeld!E41)","v":0},{"$f":"E40*Eingabefeld!$F$4","v":0},"",{"$f":"IF(G40 = \"\", \" \", IF(AND(Notentabellen!$J$3=1,Notentabellen!$L$3=1),INDEX(Notentabellen!B:B,MATCH(G:G,Notentabellen!A:A,1)),IF(AND(Notentabellen!$J$3=1,Notentabellen!$L$3=2),INDEX(Notentabellen!C:C,MATCH(G:G,Notentabellen!A:A,1)),IF(AND(Notentabellen!$J$3=2,Notentabellen!$L$3=1),INDEX(Notentabellen!D:D,MATCH(G:G,Notentabellen!A:A,1)),IF(AND(Notentabellen!$J$3=2,Notentabellen!$L$3=2),INDEX(Notentabellen!E:E,MATCH(G:G,Notentabellen!A:A,1)),IF(AND(Notentabellen!$J$3 =3,Notentabellen!$L$3=1), INDEX(Notentabellen!F:F,MATCH(G:G,Notentabellen!A:A,1)), IF(AND(Notentabellen!$J$3 =3,Notentabellen!$L$3=2), INDEX(Notentabellen!G:G,MATCH(G:G,Notentabellen!A:A,1)))))))))","v":" "}]
[39,{"$f":"IF(Eingabefeld!B42= \"\", \" \",INDEX(Eingabefeld!B:B,MATCH(A:A,Eingabefeld!A:A,0)))","v":" "},null,null,{"$f":"IF(Eingabefeld!E42=\"\",0,Eingabefeld!E42)","v":0},{"$f":"E41*Eingabefeld!$F$4","v":0},"",{"$f":"IF(G41 = \"\", \" \", IF(AND(Notentabellen!$J$3=1,Notentabellen!$L$3=1),INDEX(Notentabellen!B:B,MATCH(G:G,Notentabellen!A:A,1)),IF(AND(Notentabellen!$J$3=1,Notentabellen!$L$3=2),INDEX(Notentabellen!C:C,MATCH(G:G,Notentabellen!A:A,1)),IF(AND(Notentabellen!$J$3=2,Notentabellen!$L$3=1),INDEX(Notentabellen!D:D,MATCH(G:G,Notentabellen!A:A,1)),IF(AND(Notentabellen!$J$3=2,Notentabellen!$L$3=2),INDEX(Notentabellen!E:E,MATCH(G:G,Notentabellen!A:A,1)),IF(AND(Notentabellen!$J$3 =3,Notentabellen!$L$3=1), INDEX(Notentabellen!F:F,MATCH(G:G,Notentabellen!A:A,1)), IF(AND(Notentabellen!$J$3 =3,Notentabellen!$L$3=2), INDEX(Notentabellen!G:G,MATCH(G:G,Notentabellen!A:A,1)))))))))","v":" "}]
[40,{"$f":"IF(Eingabefeld!B43= \"\", \" \",INDEX(Eingabefeld!B:B,MATCH(A:A,Eingabefeld!A:A,0)))","v":" "},null,null,{"$f":"IF(Eingabefeld!E43=\"\",0,Eingabefeld!E43)","v":0},{"$f":"E42*Eingabefeld!$F$4","v":0},"",{"$f":"IF(G42 = \"\", \" \", IF(AND(Notentabellen!$J$3=1,Notentabellen!$L$3=1),INDEX(Notentabellen!B:B,MATCH(G:G,Notentabellen!A:A,1)),IF(AND(Notentabellen!$J$3=1,Notentabellen!$L$3=2),INDEX(Notentabellen!C:C,MATCH(G:G,Notentabellen!A:A,1)),IF(AND(Notentabellen!$J$3=2,Notentabellen!$L$3=1),INDEX(Notentabellen!D:D,MATCH(G:G,Notentabellen!A:A,1)),IF(AND(Notentabellen!$J$3=2,Notentabellen!$L$3=2),INDEX(Notentabellen!E:E,MATCH(G:G,Notentabellen!A:A,1)),IF(AND(Notentabellen!$J$3 =3,Notentabellen!$L$3=1), INDEX(Notentabellen!F:F,MATCH(G:G,Notentabellen!A:A,1)), IF(AND(Notentabellen!$J$3 =3,Notentabellen!$L$3=2), INDEX(Notentabellen!G:G,MATCH(G:G,Notentabellen!A:A,1)))))))))","v":" "}]
[41,{"$f":"IF(Eingabefeld!B44= \"\", \" \",INDEX(Eingabefeld!B:B,MATCH(A:A,Eingabefeld!A:A,0)))","v":" "},null,null,{"$f":"IF(Eingabefeld!E44=\"\",0,Eingabefeld!E44)","v":0},{"$f":"E43*Eingabefeld!$F$4","v":0},"",{"$f":"IF(G43 = \"\", \" \", IF(AND(Notentabellen!$J$3=1,Notentabellen!$L$3=1),INDEX(Notentabellen!B:B,MATCH(G:G,Notentabellen!A:A,1)),IF(AND(Notentabellen!$J$3=1,Notentabellen!$L$3=2),INDEX(Notentabellen!C:C,MATCH(G:G,Notentabellen!A:A,1)),IF(AND(Notentabellen!$J$3=2,Notentabellen!$L$3=1),INDEX(Notentabellen!D:D,MATCH(G:G,Notentabellen!A:A,1)),IF(AND(Notentabellen!$J$3=2,Notentabellen!$L$3=2),INDEX(Notentabellen!E:E,MATCH(G:G,Notentabellen!A:A,1)),IF(AND(Notentabellen!$J$3 =3,Notentabellen!$L$3=1), INDEX(Notentabellen!F:F,MATCH(G:G,Notentabellen!A:A,1)), IF(AND(Notentabellen!$J$3 =3,Notentabellen!$L$3=2), INDEX(Notentabellen!G:G,MATCH(G:G,Notentabellen!A:A,1)))))))))","v":" "}]
[42,{"$f":"IF(Eingabefeld!B45= \"\", \" \",INDEX(Eingabefeld!B:B,MATCH(A:A,Eingabefeld!A:A,0)))","v":" "},null,null,{"$f":"IF(Eingabefeld!E45=\"\",0,Eingabefeld!E45)","v":0},{"$f":"E44*Eingabefeld!$F$4","v":0},"",{"$f":"IF(G44 = \"\", \" \", IF(AND(Notentabellen!$J$3=1,Notentabellen!$L$3=1),INDEX(Notentabellen!B:B,MATCH(G:G,Notentabellen!A:A,1)),IF(AND(Notentabellen!$J$3=1,Notentabellen!$L$3=2),INDEX(Notentabellen!C:C,MATCH(G:G,Notentabellen!A:A,1)),IF(AND(Notentabellen!$J$3=2,Notentabellen!$L$3=1),INDEX(Notentabellen!D:D,MATCH(G:G,Notentabellen!A:A,1)),IF(AND(Notentabellen!$J$3=2,Notentabellen!$L$3=2),INDEX(Notentabellen!E:E,MATCH(G:G,Notentabellen!A:A,1)),IF(AND(Notentabellen!$J$3 =3,Notentabellen!$L$3=1), INDEX(Notentabellen!F:F,MATCH(G:G,Notentabellen!A:A,1)), IF(AND(Notentabellen!$J$3 =3,Notentabellen!$L$3=2), INDEX(Notentabellen!G:G,MATCH(G:G,Notentabellen!A:A,1)))))))))","v":" "}]
[43,{"$f":"IF(Eingabefeld!B46= \"\", \" \",INDEX(Eingabefeld!B:B,MATCH(A:A,Eingabefeld!A:A,0)))","v":" "},null,null,{"$f":"IF(Eingabefeld!E46=\"\",0,Eingabefeld!E46)","v":0},{"$f":"E45*Eingabefeld!$F$4","v":0},"",{"$f":"IF(G45 = \"\", \" \", IF(AND(Notentabellen!$J$3=1,Notentabellen!$L$3=1),INDEX(Notentabellen!B:B,MATCH(G:G,Notentabellen!A:A,1)),IF(AND(Notentabellen!$J$3=1,Notentabellen!$L$3=2),INDEX(Notentabellen!C:C,MATCH(G:G,Notentabellen!A:A,1)),IF(AND(Notentabellen!$J$3=2,Notentabellen!$L$3=1),INDEX(Notentabellen!D:D,MATCH(G:G,Notentabellen!A:A,1)),IF(AND(Notentabellen!$J$3=2,Notentabellen!$L$3=2),INDEX(Notentabellen!E:E,MATCH(G:G,Notentabellen!A:A,1)),IF(AND(Notentabellen!$J$3 =3,Notentabellen!$L$3=1), INDEX(Notentabellen!F:F,MATCH(G:G,Notentabellen!A:A,1)), IF(AND(Notentabellen!$J$3 =3,Notentabellen!$L$3=2), INDEX(Notentabellen!G:G,MATCH(G:G,Notentabellen!A:A,1)))))))))","v":" "}]
[44,{"$f":"IF(Eingabefeld!B47= \"\", \" \",INDEX(Eingabefeld!B:B,MATCH(A:A,Eingabefeld!A:A,0)))","v":" "},null,null,{"$f":"IF(Eingabefeld!E47=\"\",0,Eingabefeld!E47)","v":0},{"$f":"E46*Eingabefeld!$F$4","v":0},"",{"$f":"IF(G46 = \"\", \" \", IF(AND(Notentabellen!$J$3=1,Notentabellen!$L$3=1),INDEX(Notentabellen!B:B,MATCH(G:G,Notentabellen!A:A,1)),IF(AND(Notentabellen!$J$3=1,Notentabellen!$L$3=2),INDEX(Notentabellen!C:C,MATCH(G:G,Notentabellen!A:A,1)),IF(AND(Notentabellen!$J$3=2,Notentabellen!$L$3=1),INDEX(Notentabellen!D:D,MATCH(G:G,Notentabellen!A:A,1)),IF(AND(Notentabellen!$J$3=2,Notentabellen!$L$3=2),INDEX(Notentabellen!E:E,MATCH(G:G,Notentabellen!A:A,1)),IF(AND(Notentabellen!$J$3 =3,Notentabellen!$L$3=1), INDEX(Notentabellen!F:F,MATCH(G:G,Notentabellen!A:A,1)), IF(AND(Notentabellen!$J$3 =3,Notentabellen!$L$3=2), INDEX(Notentabellen!G:G,MATCH(G:G,Notentabellen!A:A,1)))))))))","v":" "}]
[45,{"$f":"IF(Eingabefeld!B48= \"\", \" \",INDEX(Eingabefeld!B:B,MATCH(A:A,Eingabefeld!A:A,0)))","v":" "},null,null,{"$f":"IF(Eingabefeld!E48=\"\",0,Eingabefeld!E48)","v":0},{"$f":"E47*Eingabefeld!$F$4","v":0},"",{"$f":"IF(G47 = \"\", \" \", IF(AND(Notentabellen!$J$3=1,Notentabellen!$L$3=1),INDEX(Notentabellen!B:B,MATCH(G:G,Notentabellen!A:A,1)),IF(AND(Notentabellen!$J$3=1,Notentabellen!$L$3=2),INDEX(Notentabellen!C:C,MATCH(G:G,Notentabellen!A:A,1)),IF(AND(Notentabellen!$J$3=2,Notentabellen!$L$3=1),INDEX(Notentabellen!D:D,MATCH(G:G,Notentabellen!A:A,1)),IF(AND(Notentabellen!$J$3=2,Notentabellen!$L$3=2),INDEX(Notentabellen!E:E,MATCH(G:G,Notentabellen!A:A,1)),IF(AND(Notentabellen!$J$3 =3,Notentabellen!$L$3=1), INDEX(Notentabellen!F:F,MATCH(G:G,Notentabellen!A:A,1)), IF(AND(Notentabellen!$J$3 =3,Notentabellen!$L$3=2), INDEX(Notentabellen!G:G,MATCH(G:G,Notentabellen!A:A,1)))))))))","v":" "}]
[46,{"$f":"IF(Eingabefeld!B49= \"\", \" \",INDEX(Eingabefeld!B:B,MATCH(A:A,Eingabefeld!A:A,0)))","v":" "},null,null,{"$f":"IF(Eingabefeld!E49=\"\",0,Eingabefeld!E49)","v":0},{"$f":"E48*Eingabefeld!$F$4","v":0},"",{"$f":"IF(G48 = \"\", \" \", IF(AND(Notentabellen!$J$3=1,Notentabellen!$L$3=1),INDEX(Notentabellen!B:B,MATCH(G:G,Notentabellen!A:A,1)),IF(AND(Notentabellen!$J$3=1,Notentabellen!$L$3=2),INDEX(Notentabellen!C:C,MATCH(G:G,Notentabellen!A:A,1)),IF(AND(Notentabellen!$J$3=2,Notentabellen!$L$3=1),INDEX(Notentabellen!D:D,MATCH(G:G,Notentabellen!A:A,1)),IF(AND(Notentabellen!$J$3=2,Notentabellen!$L$3=2),INDEX(Notentabellen!E:E,MATCH(G:G,Notentabellen!A:A,1)),IF(AND(Notentabellen!$J$3 =3,Notentabellen!$L$3=1), INDEX(Notentabellen!F:F,MATCH(G:G,Notentabellen!A:A,1)), IF(AND(Notentabellen!$J$3 =3,Notentabellen!$L$3=2), INDEX(Notentabellen!G:G,MATCH(G:G,Notentabellen!A:A,1)))))))))","v":" "}]
[47,{"$f":"IF(Eingabefeld!B50= \"\", \" \",INDEX(Eingabefeld!B:B,MATCH(A:A,Eingabefeld!A:A,0)))","v":" "},null,null,{"$f":"IF(Eingabefeld!E50=\"\",0,Eingabefeld!E50)","v":0},{"$f":"E49*Eingabefeld!$F$4","v":0},"",{"$f":"IF(G49 = \"\", \" \", IF(AND(Notentabellen!$J$3=1,Notentabellen!$L$3=1),INDEX(Notentabellen!B:B,MATCH(G:G,Notentabellen!A:A,1)),IF(AND(Notentabellen!$J$3=1,Notentabellen!$L$3=2),INDEX(Notentabellen!C:C,MATCH(G:G,Notentabellen!A:A,1)),IF(AND(Notentabellen!$J$3=2,Notentabellen!$L$3=1),INDEX(Notentabellen!D:D,MATCH(G:G,Notentabellen!A:A,1)),IF(AND(Notentabellen!$J$3=2,Notentabellen!$L$3=2),INDEX(Notentabellen!E:E,MATCH(G:G,Notentabellen!A:A,1)),IF(AND(Notentabellen!$J$3 =3,Notentabellen!$L$3=1), INDEX(Notentabellen!F:F,MATCH(G:G,Notentabellen!A:A,1)), IF(AND(Notentabellen!$J$3 =3,Notentabellen!$L$3=2), INDEX(Notentabellen!G:G,MATCH(G:G,Notentabellen!A:A,1)))))))))","v":" "}]
[48,{"$f":"IF(Eingabefeld!B51= \"\", \" \",INDEX(Eingabefeld!B:B,MATCH(A:A,Eingabefeld!A:A,0)))","v":" "},null,null,{"$f":"IF(Eingabefeld!E51=\"\",0,Eingabefeld!E51)","v":0},{"$f":"E50*Eingabefeld!$F$4","v":0},"",{"$f":"IF(G50 = \"\", \" \", IF(AND(Notentabellen!$J$3=1,Notentabellen!$L$3=1),INDEX(Notentabellen!B:B,MATCH(G:G,Notentabellen!A:A,1)),IF(AND(Notentabellen!$J$3=1,Notentabellen!$L$3=2),INDEX(Notentabellen!C:C,MATCH(G:G,Notentabellen!A:A,1)),IF(AND(Notentabellen!$J$3=2,Notentabellen!$L$3=1),INDEX(Notentabellen!D:D,MATCH(G:G,Notentabellen!A:A,1)),IF(AND(Notentabellen!$J$3=2,Notentabellen!$L$3=2),INDEX(Notentabellen!E:E,MATCH(G:G,Notentabellen!A:A,1)),IF(AND(Notentabellen!$J$3 =3,Notentabellen!$L$3=1), INDEX(Notentabellen!F:F,MATCH(G:G,Notentabellen!A:A,1)), IF(AND(Notentabellen!$J$3 =3,Notentabellen!$L$3=2), INDEX(Notentabellen!G:G,MATCH(G:G,Notentabellen!A:A,1)))))))))","v":" "}]
[49,{"$f":"IF(Eingabefeld!B52= \"\", \" \",INDEX(Eingabefeld!B:B,MATCH(A:A,Eingabefeld!A:A,0)))","v":" "},null,null,{"$f":"IF(Eingabefeld!E52=\"\",0,Eingabefeld!E52)","v":0},{"$f":"E51*Eingabefeld!$F$4","v":0},"",{"$f":"IF(G51 = \"\", \" \", IF(AND(Notentabellen!$J$3=1,Notentabellen!$L$3=1),INDEX(Notentabellen!B:B,MATCH(G:G,Notentabellen!A:A,1)),IF(AND(Notentabellen!$J$3=1,Notentabellen!$L$3=2),INDEX(Notentabellen!C:C,MATCH(G:G,Notentabellen!A:A,1)),IF(AND(Notentabellen!$J$3=2,Notentabellen!$L$3=1),INDEX(Notentabellen!D:D,MATCH(G:G,Notentabellen!A:A,1)),IF(AND(Notentabellen!$J$3=2,Notentabellen!$L$3=2),INDEX(Notentabellen!E:E,MATCH(G:G,Notentabellen!A:A,1)),IF(AND(Notentabellen!$J$3 =3,Notentabellen!$L$3=1), INDEX(Notentabellen!F:F,MATCH(G:G,Notentabellen!A:A,1)), IF(AND(Notentabellen!$J$3 =3,Notentabellen!$L$3=2), INDEX(Notentabellen!G:G,MATCH(G:G,Notentabellen!A:A,1)))))))))","v":" "}]
[50,{"$f":"IF(Eingabefeld!B53= \"\", \" \",INDEX(Eingabefeld!B:B,MATCH(A:A,Eingabefeld!A:A,0)))","v":" "},null,null,{"$f":"IF(Eingabefeld!E53=\"\",0,Eingabefeld!E53)","v":0},{"$f":"E52*Eingabefeld!$F$4","v":0},"",{"$f":"IF(G52 = \"\", \" \", IF(AND(Notentabellen!$J$3=1,Notentabellen!$L$3=1),INDEX(Notentabellen!B:B,MATCH(G:G,Notentabellen!A:A,1)),IF(AND(Notentabellen!$J$3=1,Notentabellen!$L$3=2),INDEX(Notentabellen!C:C,MATCH(G:G,Notentabellen!A:A,1)),IF(AND(Notentabellen!$J$3=2,Notentabellen!$L$3=1),INDEX(Notentabellen!D:D,MATCH(G:G,Notentabellen!A:A,1)),IF(AND(Notentabellen!$J$3=2,Notentabellen!$L$3=2),INDEX(Notentabellen!E:E,MATCH(G:G,Notentabellen!A:A,1)),IF(AND(Notentabellen!$J$3 =3,Notentabellen!$L$3=1), INDEX(Notentabellen!F:F,MATCH(G:G,Notentabellen!A:A,1)), IF(AND(Notentabellen!$J$3 =3,Notentabellen!$L$3=2), INDEX(Notentabellen!G:G,MATCH(G:G,Notentabellen!A:A,1)))))))))","v":" "}]
[51,{"$f":"IF(Eingabefeld!B54= \"\", \" \",INDEX(Eingabefeld!B:B,MATCH(A:A,Eingabefeld!A:A,0)))","v":" "},null,null,{"$f":"IF(Eingabefeld!E54=\"\",0,Eingabefeld!E54)","v":0},{"$f":"E53*Eingabefeld!$F$4","v":0},"",{"$f":"IF(G53 = \"\", \" \", IF(AND(Notentabellen!$J$3=1,Notentabellen!$L$3=1),INDEX(Notentabellen!B:B,MATCH(G:G,Notentabellen!A:A,1)),IF(AND(Notentabellen!$J$3=1,Notentabellen!$L$3=2),INDEX(Notentabellen!C:C,MATCH(G:G,Notentabellen!A:A,1)),IF(AND(Notentabellen!$J$3=2,Notentabellen!$L$3=1),INDEX(Notentabellen!D:D,MATCH(G:G,Notentabellen!A:A,1)),IF(AND(Notentabellen!$J$3=2,Notentabellen!$L$3=2),INDEX(Notentabellen!E:E,MATCH(G:G,Notentabellen!A:A,1)),IF(AND(Notentabellen!$J$3 =3,Notentabellen!$L$3=1), INDEX(Notentabellen!F:F,MATCH(G:G,Notentabellen!A:A,1)), IF(AND(Notentabellen!$J$3 =3,Notentabellen!$L$3=2), INDEX(Notentabellen!G:G,MATCH(G:G,Notentabellen!A:A,1)))))))))","v":" "}]
[52,{"$f":"IF(Eingabefeld!B55= \"\", \" \",INDEX(Eingabefeld!B:B,MATCH(A:A,Eingabefeld!A:A,0)))","v":" "},null,null,{"$f":"IF(Eingabefeld!E55=\"\",0,Eingabefeld!E55)","v":0},{"$f":"E54*Eingabefeld!$F$4","v":0},"",{"$f":"IF(G54 = \"\", \" \", IF(AND(Notentabellen!$J$3=1,Notentabellen!$L$3=1),INDEX(Notentabellen!B:B,MATCH(G:G,Notentabellen!A:A,1)),IF(AND(Notentabellen!$J$3=1,Notentabellen!$L$3=2),INDEX(Notentabellen!C:C,MATCH(G:G,Notentabellen!A:A,1)),IF(AND(Notentabellen!$J$3=2,Notentabellen!$L$3=1),INDEX(Notentabellen!D:D,MATCH(G:G,Notentabellen!A:A,1)),IF(AND(Notentabellen!$J$3=2,Notentabellen!$L$3=2),INDEX(Notentabellen!E:E,MATCH(G:G,Notentabellen!A:A,1)),IF(AND(Notentabellen!$J$3 =3,Notentabellen!$L$3=1), INDEX(Notentabellen!F:F,MATCH(G:G,Notentabellen!A:A,1)), IF(AND(Notentabellen!$J$3 =3,Notentabellen!$L$3=2), INDEX(Notentabellen!G:G,MATCH(G:G,Notentabellen!A:A,1)))))))))","v":" "}]
[53,{"$f":"IF(Eingabefeld!B56= \"\", \" \",INDEX(Eingabefeld!B:B,MATCH(A:A,Eingabefeld!A:A,0)))","v":" "},null,null,{"$f":"IF(Eingabefeld!E56=\"\",0,Eingabefeld!E56)","v":0},{"$f":"E55*Eingabefeld!$F$4","v":0},"",{"$f":"IF(G55 = \"\", \" \", IF(AND(Notentabellen!$J$3=1,Notentabellen!$L$3=1),INDEX(Notentabellen!B:B,MATCH(G:G,Notentabellen!A:A,1)),IF(AND(Notentabellen!$J$3=1,Notentabellen!$L$3=2),INDEX(Notentabellen!C:C,MATCH(G:G,Notentabellen!A:A,1)),IF(AND(Notentabellen!$J$3=2,Notentabellen!$L$3=1),INDEX(Notentabellen!D:D,MATCH(G:G,Notentabellen!A:A,1)),IF(AND(Notentabellen!$J$3=2,Notentabellen!$L$3=2),INDEX(Notentabellen!E:E,MATCH(G:G,Notentabellen!A:A,1)),IF(AND(Notentabellen!$J$3 =3,Notentabellen!$L$3=1), INDEX(Notentabellen!F:F,MATCH(G:G,Notentabellen!A:A,1)), IF(AND(Notentabellen!$J$3 =3,Notentabellen!$L$3=2), INDEX(Notentabellen!G:G,MATCH(G:G,Notentabellen!A:A,1)))))))))","v":" "}]
[54,{"$f":"IF(Eingabefeld!B57= \"\", \" \",INDEX(Eingabefeld!B:B,MATCH(A:A,Eingabefeld!A:A,0)))","v":" "},null,null,{"$f":"IF(Eingabefeld!E57=\"\",0,Eingabefeld!E57)","v":0},{"$f":"E56*Eingabefeld!$F$4","v":0},"",{"$f":"IF(G56 = \"\", \" \", IF(AND(Notentabellen!$J$3=1,Notentabellen!$L$3=1),INDEX(Notentabellen!B:B,MATCH(G:G,Notentabellen!A:A,1)),IF(AND(Notentabellen!$J$3=1,Notentabellen!$L$3=2),INDEX(Notentabellen!C:C,MATCH(G:G,Notentabellen!A:A,1)),IF(AND(Notentabellen!$J$3=2,Notentabellen!$L$3=1),INDEX(Notentabellen!D:D,MATCH(G:G,Notentabellen!A:A,1)),IF(AND(Notentabellen!$J$3=2,Notentabellen!$L$3=2),INDEX(Notentabellen!E:E,MATCH(G:G,Notentabellen!A:A,1)),IF(AND(Notentabellen!$J$3 =3,Notentabellen!$L$3=1), INDEX(Notentabellen!F:F,MATCH(G:G,Notentabellen!A:A,1)), IF(AND(Notentabellen!$J$3 =3,Notentabellen!$L$3=2), INDEX(Notentabellen!G:G,MATCH(G:G,Notentabellen!A:A,1)))))))))","v":" "}]
[55,{"$f":"IF(Eingabefeld!B58= \"\", \" \",INDEX(Eingabefeld!B:B,MATCH(A:A,Eingabefeld!A:A,0)))","v":" "},null,null,{"$f":"IF(Eingabefeld!E58=\"\",0,Eingabefeld!E58)","v":0},{"$f":"E57*Eingabefeld!$F$4","v":0},"",{"$f":"IF(G57 = \"\", \" \", IF(AND(Notentabellen!$J$3=1,Notentabellen!$L$3=1),INDEX(Notentabellen!B:B,MATCH(G:G,Notentabellen!A:A,1)),IF(AND(Notentabellen!$J$3=1,Notentabellen!$L$3=2),INDEX(Notentabellen!C:C,MATCH(G:G,Notentabellen!A:A,1)),IF(AND(Notentabellen!$J$3=2,Notentabellen!$L$3=1),INDEX(Notentabellen!D:D,MATCH(G:G,Notentabellen!A:A,1)),IF(AND(Notentabellen!$J$3=2,Notentabellen!$L$3=2),INDEX(Notentabellen!E:E,MATCH(G:G,Notentabellen!A:A,1)),IF(AND(Notentabellen!$J$3 =3,Notentabellen!$L$3=1), INDEX(Notentabellen!F:F,MATCH(G:G,Notentabellen!A:A,1)), IF(AND(Notentabellen!$J$3 =3,Notentabellen!$L$3=2), INDEX(Notentabellen!G:G,MATCH(G:G,Notentabellen!A:A,1)))))))))","v":" "}]
[56,{"$f":"IF(Eingabefeld!B59= \"\", \" \",INDEX(Eingabefeld!B:B,MATCH(A:A,Eingabefeld!A:A,0)))","v":" "},null,null,{"$f":"IF(Eingabefeld!E59=\"\",0,Eingabefeld!E59)","v":0},{"$f":"E58*Eingabefeld!$F$4","v":0},"",{"$f":"IF(G58 = \"\", \" \", IF(AND(Notentabellen!$J$3=1,Notentabellen!$L$3=1),INDEX(Notentabellen!B:B,MATCH(G:G,Notentabellen!A:A,1)),IF(AND(Notentabellen!$J$3=1,Notentabellen!$L$3=2),INDEX(Notentabellen!C:C,MATCH(G:G,Notentabellen!A:A,1)),IF(AND(Notentabellen!$J$3=2,Notentabellen!$L$3=1),INDEX(Notentabellen!D:D,MATCH(G:G,Notentabellen!A:A,1)),IF(AND(Notentabellen!$J$3=2,Notentabellen!$L$3=2),INDEX(Notentabellen!E:E,MATCH(G:G,Notentabellen!A:A,1)),IF(AND(Notentabellen!$J$3 =3,Notentabellen!$L$3=1), INDEX(Notentabellen!F:F,MATCH(G:G,Notentabellen!A:A,1)), IF(AND(Notentabellen!$J$3 =3,Notentabellen!$L$3=2), INDEX(Notentabellen!G:G,MATCH(G:G,Notentabellen!A:A,1)))))))))","v":" "}]
[57,{"$f":"IF(Eingabefeld!B60= \"\", \" \",INDEX(Eingabefeld!B:B,MATCH(A:A,Eingabefeld!A:A,0)))","v":" "},null,null,{"$f":"IF(Eingabefeld!E60=\"\",0,Eingabefeld!E60)","v":0},{"$f":"E59*Eingabefeld!$F$4","v":0},"",{"$f":"IF(G59 = \"\", \" \", IF(AND(Notentabellen!$J$3=1,Notentabellen!$L$3=1),INDEX(Notentabellen!B:B,MATCH(G:G,Notentabellen!A:A,1)),IF(AND(Notentabellen!$J$3=1,Notentabellen!$L$3=2),INDEX(Notentabellen!C:C,MATCH(G:G,Notentabellen!A:A,1)),IF(AND(Notentabellen!$J$3=2,Notentabellen!$L$3=1),INDEX(Notentabellen!D:D,MATCH(G:G,Notentabellen!A:A,1)),IF(AND(Notentabellen!$J$3=2,Notentabellen!$L$3=2),INDEX(Notentabellen!E:E,MATCH(G:G,Notentabellen!A:A,1)),IF(AND(Notentabellen!$J$3 =3,Notentabellen!$L$3=1), INDEX(Notentabellen!F:F,MATCH(G:G,Notentabellen!A:A,1)), IF(AND(Notentabellen!$J$3 =3,Notentabellen!$L$3=2), INDEX(Notentabellen!G:G,MATCH(G:G,Notentabellen!A:A,1)))))))))","v":" "}]
[58,{"$f":"IF(Eingabefeld!B61= \"\", \" \",INDEX(Eingabefeld!B:B,MATCH(A:A,Eingabefeld!A:A,0)))","v":" "},null,null,{"$f":"IF(Eingabefeld!E61=\"\",0,Eingabefeld!E61)","v":0},{"$f":"E60*Eingabefeld!$F$4","v":0},"",{"$f":"IF(G60 = \"\", \" \", IF(AND(Notentabellen!$J$3=1,Notentabellen!$L$3=1),INDEX(Notentabellen!B:B,MATCH(G:G,Notentabellen!A:A,1)),IF(AND(Notentabellen!$J$3=1,Notentabellen!$L$3=2),INDEX(Notentabellen!C:C,MATCH(G:G,Notentabellen!A:A,1)),IF(AND(Notentabellen!$J$3=2,Notentabellen!$L$3=1),INDEX(Notentabellen!D:D,MATCH(G:G,Notentabellen!A:A,1)),IF(AND(Notentabellen!$J$3=2,Notentabellen!$L$3=2),INDEX(Notentabellen!E:E,MATCH(G:G,Notentabellen!A:A,1)),IF(AND(Notentabellen!$J$3 =3,Notentabellen!$L$3=1), INDEX(Notentabellen!F:F,MATCH(G:G,Notentabellen!A:A,1)), IF(AND(Notentabellen!$J$3 =3,Notentabellen!$L$3=2), INDEX(Notentabellen!G:G,MATCH(G:G,Notentabellen!A:A,1)))))))))","v":" "}]
[59,{"$f":"IF(Eingabefeld!B62= \"\", \" \",INDEX(Eingabefeld!B:B,MATCH(A:A,Eingabefeld!A:A,0)))","v":" "},null,null,{"$f":"IF(Eingabefeld!E62=\"\",0,Eingabefeld!E62)","v":0},{"$f":"E61*Eingabefeld!$F$4","v":0},"",{"$f":"IF(G61 = \"\", \" \", IF(AND(Notentabellen!$J$3=1,Notentabellen!$L$3=1),INDEX(Notentabellen!B:B,MATCH(G:G,Notentabellen!A:A,1)),IF(AND(Notentabellen!$J$3=1,Notentabellen!$L$3=2),INDEX(Notentabellen!C:C,MATCH(G:G,Notentabellen!A:A,1)),IF(AND(Notentabellen!$J$3=2,Notentabellen!$L$3=1),INDEX(Notentabellen!D:D,MATCH(G:G,Notentabellen!A:A,1)),IF(AND(Notentabellen!$J$3=2,Notentabellen!$L$3=2),INDEX(Notentabellen!E:E,MATCH(G:G,Notentabellen!A:A,1)),IF(AND(Notentabellen!$J$3 =3,Notentabellen!$L$3=1), INDEX(Notentabellen!F:F,MATCH(G:G,Notentabellen!A:A,1)), IF(AND(Notentabellen!$J$3 =3,Notentabellen!$L$3=2), INDEX(Notentabellen!G:G,MATCH(G:G,Notentabellen!A:A,1)))))))))","v":" "}]
[60,{"$f":"IF(Eingabefeld!B63= \"\", \" \",INDEX(Eingabefeld!B:B,MATCH(A:A,Eingabefeld!A:A,0)))","v":" "},null,null,{"$f":"IF(Eingabefeld!E63=\"\",0,Eingabefeld!E63)","v":0},{"$f":"E62*Eingabefeld!$F$4","v":0},"",{"$f":"IF(G62 = \"\", \" \", IF(AND(Notentabellen!$J$3=1,Notentabellen!$L$3=1),INDEX(Notentabellen!B:B,MATCH(G:G,Notentabellen!A:A,1)),IF(AND(Notentabellen!$J$3=1,Notentabellen!$L$3=2),INDEX(Notentabellen!C:C,MATCH(G:G,Notentabellen!A:A,1)),IF(AND(Notentabellen!$J$3=2,Notentabellen!$L$3=1),INDEX(Notentabellen!D:D,MATCH(G:G,Notentabellen!A:A,1)),IF(AND(Notentabellen!$J$3=2,Notentabellen!$L$3=2),INDEX(Notentabellen!E:E,MATCH(G:G,Notentabellen!A:A,1)),IF(AND(Notentabellen!$J$3 =3,Notentabellen!$L$3=1), INDEX(Notentabellen!F:F,MATCH(G:G,Notentabellen!A:A,1)), IF(AND(Notentabellen!$J$3 =3,Notentabellen!$L$3=2), INDEX(Notentabellen!G:G,MATCH(G:G,Notentabellen!A:A,1)))))))))","v":" "}]
[61,{"$f":"IF(Eingabefeld!B64= \"\", \" \",INDEX(Eingabefeld!B:B,MATCH(A:A,Eingabefeld!A:A,0)))","v":" "},null,null,{"$f":"IF(Eingabefeld!E64=\"\",0,Eingabefeld!E64)","v":0},{"$f":"E63*Eingabefeld!$F$4","v":0},"",{"$f":"IF(G63 = \"\", \" \", IF(AND(Notentabellen!$J$3=1,Notentabellen!$L$3=1),INDEX(Notentabellen!B:B,MATCH(G:G,Notentabellen!A:A,1)),IF(AND(Notentabellen!$J$3=1,Notentabellen!$L$3=2),INDEX(Notentabellen!C:C,MATCH(G:G,Notentabellen!A:A,1)),IF(AND(Notentabellen!$J$3=2,Notentabellen!$L$3=1),INDEX(Notentabellen!D:D,MATCH(G:G,Notentabellen!A:A,1)),IF(AND(Notentabellen!$J$3=2,Notentabellen!$L$3=2),INDEX(Notentabellen!E:E,MATCH(G:G,Notentabellen!A:A,1)),IF(AND(Notentabellen!$J$3 =3,Notentabellen!$L$3=1), INDEX(Notentabellen!F:F,MATCH(G:G,Notentabellen!A:A,1)), IF(AND(Notentabellen!$J$3 =3,Notentabellen!$L$3=2), INDEX(Notentabellen!G:G,MATCH(G:G,Notentabellen!A:A,1)))))))))","v":" "}]
[62,{"$f":"IF(Eingabefeld!B65= \"\", \" \",INDEX(Eingabefeld!B:B,MATCH(A:A,Eingabefeld!A:A,0)))","v":" "},null,null,{"$f":"IF(Eingabefeld!E65=\"\",0,Eingabefeld!E65)","v":0},{"$f":"E64*Eingabefeld!$F$4","v":0},"",{"$f":"IF(G64 = \"\", \" \", IF(AND(Notentabellen!$J$3=1,Notentabellen!$L$3=1),INDEX(Notentabellen!B:B,MATCH(G:G,Notentabellen!A:A,1)),IF(AND(Notentabellen!$J$3=1,Notentabellen!$L$3=2),INDEX(Notentabellen!C:C,MATCH(G:G,Notentabellen!A:A,1)),IF(AND(Notentabellen!$J$3=2,Notentabellen!$L$3=1),INDEX(Notentabellen!D:D,MATCH(G:G,Notentabellen!A:A,1)),IF(AND(Notentabellen!$J$3=2,Notentabellen!$L$3=2),INDEX(Notentabellen!E:E,MATCH(G:G,Notentabellen!A:A,1)),IF(AND(Notentabellen!$J$3 =3,Notentabellen!$L$3=1), INDEX(Notentabellen!F:F,MATCH(G:G,Notentabellen!A:A,1)), IF(AND(Notentabellen!$J$3 =3,Notentabellen!$L$3=2), INDEX(Notentabellen!G:G,MATCH(G:G,Notentabellen!A:A,1)))))))))","v":" "}]
[63,{"$f":"IF(Eingabefeld!B66= \"\", \" \",INDEX(Eingabefeld!B:B,MATCH(A:A,Eingabefeld!A:A,0)))","v":" "},null,null,{"$f":"IF(Eingabefeld!E66=\"\",0,Eingabefeld!E66)","v":0},{"$f":"E65*Eingabefeld!$F$4","v":0},"",{"$f":"IF(G65 = \"\", \" \", IF(AND(Notentabellen!$J$3=1,Notentabellen!$L$3=1),INDEX(Notentabellen!B:B,MATCH(G:G,Notentabellen!A:A,1)),IF(AND(Notentabellen!$J$3=1,Notentabellen!$L$3=2),INDEX(Notentabellen!C:C,MATCH(G:G,Notentabellen!A:A,1)),IF(AND(Notentabellen!$J$3=2,Notentabellen!$L$3=1),INDEX(Notentabellen!D:D,MATCH(G:G,Notentabellen!A:A,1)),IF(AND(Notentabellen!$J$3=2,Notentabellen!$L$3=2),INDEX(Notentabellen!E:E,MATCH(G:G,Notentabellen!A:A,1)),IF(AND(Notentabellen!$J$3 =3,Notentabellen!$L$3=1), INDEX(Notentabellen!F:F,MATCH(G:G,Notentabellen!A:A,1)), IF(AND(Notentabellen!$J$3 =3,Notentabellen!$L$3=2), INDEX(Notentabellen!G:G,MATCH(G:G,Notentabellen!A:A,1)))))))))","v":" "}]
[64,{"$f":"IF(Eingabefeld!B67= \"\", \" \",INDEX(Eingabefeld!B:B,MATCH(A:A,Eingabefeld!A:A,0)))","v":" "},null,null,{"$f":"IF(Eingabefeld!E67=\"\",0,Eingabefeld!E67)","v":0},{"$f":"E66*Eingabefeld!$F$4","v":0},"",{"$f":"IF(G66 = \"\", \" \", IF(AND(Notentabellen!$J$3=1,Notentabellen!$L$3=1),INDEX(Notentabellen!B:B,MATCH(G:G,Notentabellen!A:A,1)),IF(AND(Notentabellen!$J$3=1,Notentabellen!$L$3=2),INDEX(Notentabellen!C:C,MATCH(G:G,Notentabellen!A:A,1)),IF(AND(Notentabellen!$J$3=2,Notentabellen!$L$3=1),INDEX(Notentabellen!D:D,MATCH(G:G,Notentabellen!A:A,1)),IF(AND(Notentabellen!$J$3=2,Notentabellen!$L$3=2),INDEX(Notentabellen!E:E,MATCH(G:G,Notentabellen!A:A,1)),IF(AND(Notentabellen!$J$3 =3,Notentabellen!$L$3=1), INDEX(Notentabellen!F:F,MATCH(G:G,Notentabellen!A:A,1)), IF(AND(Notentabellen!$J$3 =3,Notentabellen!$L$3=2), INDEX(Notentabellen!G:G,MATCH(G:G,Notentabellen!A:A,1)))))))))","v":" "}]
[65,{"$f":"IF(Eingabefeld!B68= \"\", \" \",INDEX(Eingabefeld!B:B,MATCH(A:A,Eingabefeld!A:A,0)))","v":" "},null,null,{"$f":"IF(Eingabefeld!E68=\"\",0,Eingabefeld!E68)","v":0},{"$f":"E67*Eingabefeld!$F$4","v":0},"",{"$f":"IF(G67 = \"\", \" \", IF(AND(Notentabellen!$J$3=1,Notentabellen!$L$3=1),INDEX(Notentabellen!B:B,MATCH(G:G,Notentabellen!A:A,1)),IF(AND(Notentabellen!$J$3=1,Notentabellen!$L$3=2),INDEX(Notentabellen!C:C,MATCH(G:G,Notentabellen!A:A,1)),IF(AND(Notentabellen!$J$3=2,Notentabellen!$L$3=1),INDEX(Notentabellen!D:D,MATCH(G:G,Notentabellen!A:A,1)),IF(AND(Notentabellen!$J$3=2,Notentabellen!$L$3=2),INDEX(Notentabellen!E:E,MATCH(G:G,Notentabellen!A:A,1)),IF(AND(Notentabellen!$J$3 =3,Notentabellen!$L$3=1), INDEX(Notentabellen!F:F,MATCH(G:G,Notentabellen!A:A,1)), IF(AND(Notentabellen!$J$3 =3,Notentabellen!$L$3=2), INDEX(Notentabellen!G:G,MATCH(G:G,Notentabellen!A:A,1)))))))))","v":" "}]
[66,{"$f":"IF(Eingabefeld!B69= \"\", \" \",INDEX(Eingabefeld!B:B,MATCH(A:A,Eingabefeld!A:A,0)))","v":" "},null,null,{"$f":"IF(Eingabefeld!E69=\"\",0,Eingabefeld!E69)","v":0},{"$f":"E68*Eingabefeld!$F$4","v":0},{"$f":"IF(OR(C68<0,D68=0,D68-C68<0),\"\",D68-C68+F68/24/60/60)","v":""},{"$f":"IF(G68 = \"\", \" \", IF(AND(Notentabellen!$J$3=1,Notentabellen!$L$3=1),INDEX(Notentabellen!B:B,MATCH(G:G,Notentabellen!A:A,1)),IF(AND(Notentabellen!$J$3=1,Notentabellen!$L$3=2),INDEX(Notentabellen!C:C,MATCH(G:G,Notentabellen!A:A,1)),IF(AND(Notentabellen!$J$3=2,Notentabellen!$L$3=1),INDEX(Notentabellen!D:D,MATCH(G:G,Notentabellen!A:A,1)),IF(AND(Notentabellen!$J$3=2,Notentabellen!$L$3=2),INDEX(Notentabellen!E:E,MATCH(G:G,Notentabellen!A:A,1)),IF(AND(Notentabellen!$J$3 =3,Notentabellen!$L$3=1), INDEX(Notentabellen!F:F,MATCH(G:G,Notentabellen!A:A,1)), IF(AND(Notentabellen!$J$3 =3,Notentabellen!$L$3=2), INDEX(Notentabellen!G:G,MATCH(G:G,Notentabellen!A:A,1)))))))))","v":" "}]
[67,{"$f":"IF(Eingabefeld!B70= \"\", \" \",INDEX(Eingabefeld!B:B,MATCH(A:A,Eingabefeld!A:A,0)))","v":" "},null,null,{"$f":"IF(Eingabefeld!E70=\"\",0,Eingabefeld!E70)","v":0},{"$f":"E69*Eingabefeld!$F$4","v":0},"",{"$f":"IF(G69 = \"\", \" \", IF(AND(Notentabellen!$J$3=1,Notentabellen!$L$3=1),INDEX(Notentabellen!B:B,MATCH(G:G,Notentabellen!A:A,1)),IF(AND(Notentabellen!$J$3=1,Notentabellen!$L$3=2),INDEX(Notentabellen!C:C,MATCH(G:G,Notentabellen!A:A,1)),IF(AND(Notentabellen!$J$3=2,Notentabellen!$L$3=1),INDEX(Notentabellen!D:D,MATCH(G:G,Notentabellen!A:A,1)),IF(AND(Notentabellen!$J$3=2,Notentabellen!$L$3=2),INDEX(Notentabellen!E:E,MATCH(G:G,Notentabellen!A:A,1)),IF(AND(Notentabellen!$J$3 =3,Notentabellen!$L$3=1), INDEX(Notentabellen!F:F,MATCH(G:G,Notentabellen!A:A,1)), IF(AND(Notentabellen!$J$3 =3,Notentabellen!$L$3=2), INDEX(Notentabellen!G:G,MATCH(G:G,Notentabellen!A:A,1)))))))))","v":" "}]
[68,{"$f":"IF(Eingabefeld!B71= \"\", \" \",INDEX(Eingabefeld!B:B,MATCH(A:A,Eingabefeld!A:A,0)))","v":" "},null,null,{"$f":"IF(Eingabefeld!E71=\"\",0,Eingabefeld!E71)","v":0},{"$f":"E70*Eingabefeld!$F$4","v":0},"",{"$f":"IF(G70 = \"\", \" \", IF(AND(Notentabellen!$J$3=1,Notentabellen!$L$3=1),INDEX(Notentabellen!B:B,MATCH(G:G,Notentabellen!A:A,1)),IF(AND(Notentabellen!$J$3=1,Notentabellen!$L$3=2),INDEX(Notentabellen!C:C,MATCH(G:G,Notentabellen!A:A,1)),IF(AND(Notentabellen!$J$3=2,Notentabellen!$L$3=1),INDEX(Notentabellen!D:D,MATCH(G:G,Notentabellen!A:A,1)),IF(AND(Notentabellen!$J$3=2,Notentabellen!$L$3=2),INDEX(Notentabellen!E:E,MATCH(G:G,Notentabellen!A:A,1)),IF(AND(Notentabellen!$J$3 =3,Notentabellen!$L$3=1), INDEX(Notentabellen!F:F,MATCH(G:G,Notentabellen!A:A,1)), IF(AND(Notentabellen!$J$3 =3,Notentabellen!$L$3=2), INDEX(Notentabellen!G:G,MATCH(G:G,Notentabellen!A:A,1)))))))))","v":" "}]
[69,{"$f":"IF(Eingabefeld!B72= \"\", \" \",INDEX(Eingabefeld!B:B,MATCH(A:A,Eingabefeld!A:A,0)))","v":" "},null,null,{"$f":"IF(Eingabefeld!E72=\"\",0,Eingabefeld!E72)","v":0},{"$f":"E71*Eingabefeld!$F$4","v":0},"",{"$f":"IF(G71 = \"\", \" \", IF(AND(Notentabellen!$J$3=1,Notentabellen!$L$3=1),INDEX(Notentabellen!B:B,MATCH(G:G,Notentabellen!A:A,1)),IF(AND(Notentabellen!$J$3=1,Notentabellen!$L$3=2),INDEX(Notentabellen!C:C,MATCH(G:G,Notentabellen!A:A,1)),IF(AND(Notentabellen!$J$3=2,Notentabellen!$L$3=1),INDEX(Notentabellen!D:D,MATCH(G:G,Notentabellen!A:A,1)),IF(AND(Notentabellen!$J$3=2,Notentabellen!$L$3=2),INDEX(Notentabellen!E:E,MATCH(G:G,Notentabellen!A:A,1)),IF(AND(Notentabellen!$J$3 =3,Notentabellen!$L$3=1), INDEX(Notentabellen!F:F,MATCH(G:G,Notentabellen!A:A,1)), IF(AND(Notentabellen!$J$3 =3,Notentabellen!$L$3=2), INDEX(Notentabellen!G:G,MATCH(G:G,Notentabellen!A:A,1)))))))))","v":" "}]
[70,{"$f":"IF(Eingabefeld!B73= \"\", \" \",INDEX(Eingabefeld!B:B,MATCH(A:A,Eingabefeld!A:A,0)))","v":" "},null,null,{"$f":"IF(Eingabefeld!E73=\"\",0,Eingabefeld!E73)","v":0},{"$f":"E72*Eingabefeld!$F$4","v":0},"",{"$f":"IF(G72 = \"\", \" \", IF(AND(Notentabellen!$J$3=1,Notentabellen!$L$3=1),INDEX(Notentabellen!B:B,MATCH(G:G,Notentabellen!A:A,1)),IF(AND(Notentabellen!$J$3=1,Notentabellen!$L$3=2),INDEX(Notentabellen!C:C,MATCH(G:G,Notentabellen!A:A,1)),IF(AND(Notentabellen!$J$3=2,Notentabellen!$L$3=1),INDEX(Notentabellen!D:D,MATCH(G:G,Notentabellen!A:A,1)),IF(AND(Notentabellen!$J$3=2,Notentabellen!$L$3=2),INDEX(Notentabellen!E:E,MATCH(G:G,Notentabellen!A:A,1)),IF(AND(Notentabellen!$J$3 =3,Notentabellen!$L$3=1), INDEX(Notentabellen!F:F,MATCH(G:G,Notentabellen!A:A,1)), IF(AND(Notentabellen!$J$3 =3,Notentabellen!$L$3=2), INDEX(Notentabellen!G:G,MATCH(G:G,Notentabellen!A:A,1)))))))))","v":" "}]
[71,{"$f":"IF(Eingabefeld!B74= \"\", \" \",INDEX(Eingabefeld!B:B,MATCH(A:A,Eingabefeld!A:A,0)))","v":" "},null,null,{"$f":"IF(Eingabefeld!E74=\"\",0,Eingabefeld!E74)","v":0},{"$f":"E73*Eingabefeld!$F$4","v":0},"",{"$f":"IF(G73 = \"\", \" \", IF(AND(Notentabellen!$J$3=1,Notentabellen!$L$3=1),INDEX(Notentabellen!B:B,MATCH(G:G,Notentabellen!A:A,1)),IF(AND(Notentabellen!$J$3=1,Notentabellen!$L$3=2),INDEX(Notentabellen!C:C,MATCH(G:G,Notentabellen!A:A,1)),IF(AND(Notentabellen!$J$3=2,Notentabellen!$L$3=1),INDEX(Notentabellen!D:D,MATCH(G:G,Notentabellen!A:A,1)),IF(AND(Notentabellen!$J$3=2,Notentabellen!$L$3=2),INDEX(Notentabellen!E:E,MATCH(G:G,Notentabellen!A:A,1)),IF(AND(Notentabellen!$J$3 =3,Notentabellen!$L$3=1), INDEX(Notentabellen!F:F,MATCH(G:G,Notentabellen!A:A,1)), IF(AND(Notentabellen!$J$3 =3,Notentabellen!$L$3=2), INDEX(Notentabellen!G:G,MATCH(G:G,Notentabellen!A:A,1)))))))))","v":" "}]
[72,{"$f":"IF(Eingabefeld!B75= \"\", \" \",INDEX(Eingabefeld!B:B,MATCH(A:A,Eingabefeld!A:A,0)))","v":" "},null,null,{"$f":"IF(Eingabefeld!E75=\"\",0,Eingabefeld!E75)","v":0},{"$f":"E74*Eingabefeld!$F$4","v":0},"",{"$f":"IF(G74 = \"\", \" \", IF(AND(Notentabellen!$J$3=1,Notentabellen!$L$3=1),INDEX(Notentabellen!B:B,MATCH(G:G,Notentabellen!A:A,1)),IF(AND(Notentabellen!$J$3=1,Notentabellen!$L$3=2),INDEX(Notentabellen!C:C,MATCH(G:G,Notentabellen!A:A,1)),IF(AND(Notentabellen!$J$3=2,Notentabellen!$L$3=1),INDEX(Notentabellen!D:D,MATCH(G:G,Notentabellen!A:A,1)),IF(AND(Notentabellen!$J$3=2,Notentabellen!$L$3=2),INDEX(Notentabellen!E:E,MATCH(G:G,Notentabellen!A:A,1)),IF(AND(Notentabellen!$J$3 =3,Notentabellen!$L$3=1), INDEX(Notentabellen!F:F,MATCH(G:G,Notentabellen!A:A,1)), IF(AND(Notentabellen!$J$3 =3,Notentabellen!$L$3=2), INDEX(Notentabellen!G:G,MATCH(G:G,Notentabellen!A:A,1)))))))))","v":" "}]
[73,{"$f":"IF(Eingabefeld!B76= \"\", \" \",INDEX(Eingabefeld!B:B,MATCH(A:A,Eingabefeld!A:A,0)))","v":" "},null,null,{"$f":"IF(Eingabefeld!E76=\"\",0,Eingabefeld!E76)","v":0},{"$f":"E75*Eingabefeld!$F$4","v":0},"",{"$f":"IF(G75 = \"\", \" \", IF(AND(Notentabellen!$J$3=1,Notentabellen!$L$3=1),INDEX(Notentabellen!B:B,MATCH(G:G,Notentabellen!A:A,1)),IF(AND(Notentabellen!$J$3=1,Notentabellen!$L$3=2),INDEX(Notentabellen!C:C,MATCH(G:G,Notentabellen!A:A,1)),IF(AND(Notentabellen!$J$3=2,Notentabellen!$L$3=1),INDEX(Notentabellen!D:D,MATCH(G:G,Notentabellen!A:A,1)),IF(AND(Notentabellen!$J$3=2,Notentabellen!$L$3=2),INDEX(Notentabellen!E:E,MATCH(G:G,Notentabellen!A:A,1)),IF(AND(Notentabellen!$J$3 =3,Notentabellen!$L$3=1), INDEX(Notentabellen!F:F,MATCH(G:G,Notentabellen!A:A,1)), IF(AND(Notentabellen!$J$3 =3,Notentabellen!$L$3=2), INDEX(Notentabellen!G:G,MATCH(G:G,Notentabellen!A:A,1)))))))))","v":" "}]
[74,{"$f":"IF(Eingabefeld!B77= \"\", \" \",INDEX(Eingabefeld!B:B,MATCH(A:A,Eingabefeld!A:A,0)))","v":" "},null,null,{"$f":"IF(Eingabefeld!E77=\"\",0,Eingabefeld!E77)","v":0},{"$f":"E76*Eingabefeld!$F$4","v":0},"",{"$f":"IF(G76 = \"\", \" \", IF(AND(Notentabellen!$J$3=1,Notentabellen!$L$3=1),INDEX(Notentabellen!B:B,MATCH(G:G,Notentabellen!A:A,1)),IF(AND(Notentabellen!$J$3=1,Notentabellen!$L$3=2),INDEX(Notentabellen!C:C,MATCH(G:G,Notentabellen!A:A,1)),IF(AND(Notentabellen!$J$3=2,Notentabellen!$L$3=1),INDEX(Notentabellen!D:D,MATCH(G:G,Notentabellen!A:A,1)),IF(AND(Notentabellen!$J$3=2,Notentabellen!$L$3=2),INDEX(Notentabellen!E:E,MATCH(G:G,Notentabellen!A:A,1)),IF(AND(Notentabellen!$J$3 =3,Notentabellen!$L$3=1), INDEX(Notentabellen!F:F,MATCH(G:G,Notentabellen!A:A,1)), IF(AND(Notentabellen!$J$3 =3,Notentabellen!$L$3=2), INDEX(Notentabellen!G:G,MATCH(G:G,Notentabellen!A:A,1)))))))))","v":" "}]
[75,{"$f":"IF(Eingabefeld!B78= \"\", \" \",INDEX(Eingabefeld!B:B,MATCH(A:A,Eingabefeld!A:A,0)))","v":" "},null,null,{"$f":"IF(Eingabefeld!E78=\"\",0,Eingabefeld!E78)","v":0},{"$f":"E77*Eingabefeld!$F$4","v":0},"",{"$f":"IF(G77 = \"\", \" \", IF(AND(Notentabellen!$J$3=1,Notentabellen!$L$3=1),INDEX(Notentabellen!B:B,MATCH(G:G,Notentabellen!A:A,1)),IF(AND(Notentabellen!$J$3=1,Notentabellen!$L$3=2),INDEX(Notentabellen!C:C,MATCH(G:G,Notentabellen!A:A,1)),IF(AND(Notentabellen!$J$3=2,Notentabellen!$L$3=1),INDEX(Notentabellen!D:D,MATCH(G:G,Notentabellen!A:A,1)),IF(AND(Notentabellen!$J$3=2,Notentabellen!$L$3=2),INDEX(Notentabellen!E:E,MATCH(G:G,Notentabellen!A:A,1)),IF(AND(Notentabellen!$J$3 =3,Notentabellen!$L$3=1), INDEX(Notentabellen!F:F,MATCH(G:G,Notentabellen!A:A,1)), IF(AND(Notentabellen!$J$3 =3,Notentabellen!$L$3=2), INDEX(Notentabellen!G:G,MATCH(G:G,Notentabellen!A:A,1)))))))))","v":" "}]
[76,{"$f":"IF(Eingabefeld!B79= \"\", \" \",INDEX(Eingabefeld!B:B,MATCH(A:A,Eingabefeld!A:A,0)))","v":" "},null,null,{"$f":"IF(Eingabefeld!E79=\"\",0,Eingabefeld!E79)","v":0},{"$f":"E78*Eingabefeld!$F$4","v":0},"",{"$f":"IF(G78 = \"\", \" \", IF(AND(Notentabellen!$J$3=1,Notentabellen!$L$3=1),INDEX(Notentabellen!B:B,MATCH(G:G,Notentabellen!A:A,1)),IF(AND(Notentabellen!$J$3=1,Notentabellen!$L$3=2),INDEX(Notentabellen!C:C,MATCH(G:G,Notentabellen!A:A,1)),IF(AND(Notentabellen!$J$3=2,Notentabellen!$L$3=1),INDEX(Notentabellen!D:D,MATCH(G:G,Notentabellen!A:A,1)),IF(AND(Notentabellen!$J$3=2,Notentabellen!$L$3=2),INDEX(Notentabellen!E:E,MATCH(G:G,Notentabellen!A:A,1)),IF(AND(Notentabellen!$J$3 =3,Notentabellen!$L$3=1), INDEX(Notentabellen!F:F,MATCH(G:G,Notentabellen!A:A,1)), IF(AND(Notentabellen!$J$3 =3,Notentabellen!$L$3=2), INDEX(Notentabellen!G:G,MATCH(G:G,Notentabellen!A:A,1)))))))))","v":" "}]
[77,{"$f":"IF(Eingabefeld!B80= \"\", \" \",INDEX(Eingabefeld!B:B,MATCH(A:A,Eingabefeld!A:A,0)))","v":" "},null,null,{"$f":"IF(Eingabefeld!E80=\"\",0,Eingabefeld!E80)","v":0},{"$f":"E79*Eingabefeld!$F$4","v":0},"",{"$f":"IF(G79 = \"\", \" \", IF(AND(Notentabellen!$J$3=1,Notentabellen!$L$3=1),INDEX(Notentabellen!B:B,MATCH(G:G,Notentabellen!A:A,1)),IF(AND(Notentabellen!$J$3=1,Notentabellen!$L$3=2),INDEX(Notentabellen!C:C,MATCH(G:G,Notentabellen!A:A,1)),IF(AND(Notentabellen!$J$3=2,Notentabellen!$L$3=1),INDEX(Notentabellen!D:D,MATCH(G:G,Notentabellen!A:A,1)),IF(AND(Notentabellen!$J$3=2,Notentabellen!$L$3=2),INDEX(Notentabellen!E:E,MATCH(G:G,Notentabellen!A:A,1)),IF(AND(Notentabellen!$J$3 =3,Notentabellen!$L$3=1), INDEX(Notentabellen!F:F,MATCH(G:G,Notentabellen!A:A,1)), IF(AND(Notentabellen!$J$3 =3,Notentabellen!$L$3=2), INDEX(Notentabellen!G:G,MATCH(G:G,Notentabellen!A:A,1)))))))))","v":" "}]
[78,{"$f":"IF(Eingabefeld!B81= \"\", \" \",INDEX(Eingabefeld!B:B,MATCH(A:A,Eingabefeld!A:A,0)))","v":" "},null,null,{"$f":"IF(Eingabefeld!E81=\"\",0,Eingabefeld!E81)","v":0},{"$f":"E80*Eingabefeld!$F$4","v":0},"",{"$f":"IF(G80 = \"\", \" \", IF(AND(Notentabellen!$J$3=1,Notentabellen!$L$3=1),INDEX(Notentabellen!B:B,MATCH(G:G,Notentabellen!A:A,1)),IF(AND(Notentabellen!$J$3=1,Notentabellen!$L$3=2),INDEX(Notentabellen!C:C,MATCH(G:G,Notentabellen!A:A,1)),IF(AND(Notentabellen!$J$3=2,Notentabellen!$L$3=1),INDEX(Notentabellen!D:D,MATCH(G:G,Notentabellen!A:A,1)),IF(AND(Notentabellen!$J$3=2,Notentabellen!$L$3=2),INDEX(Notentabellen!E:E,MATCH(G:G,Notentabellen!A:A,1)),IF(AND(Notentabellen!$J$3 =3,Notentabellen!$L$3=1), INDEX(Notentabellen!F:F,MATCH(G:G,Notentabellen!A:A,1)), IF(AND(Notentabellen!$J$3 =3,Notentabellen!$L$3=2), INDEX(Notentabellen!G:G,MATCH(G:G,Notentabellen!A:A,1)))))))))","v":" "}]
[79,{"$f":"IF(Eingabefeld!B82= \"\", \" \",INDEX(Eingabefeld!B:B,MATCH(A:A,Eingabefeld!A:A,0)))","v":" "},null,null,{"$f":"IF(Eingabefeld!E82=\"\",0,Eingabefeld!E82)","v":0},{"$f":"E81*Eingabefeld!$F$4","v":0},"",{"$f":"IF(G81 = \"\", \" \", IF(AND(Notentabellen!$J$3=1,Notentabellen!$L$3=1),INDEX(Notentabellen!B:B,MATCH(G:G,Notentabellen!A:A,1)),IF(AND(Notentabellen!$J$3=1,Notentabellen!$L$3=2),INDEX(Notentabellen!C:C,MATCH(G:G,Notentabellen!A:A,1)),IF(AND(Notentabellen!$J$3=2,Notentabellen!$L$3=1),INDEX(Notentabellen!D:D,MATCH(G:G,Notentabellen!A:A,1)),IF(AND(Notentabellen!$J$3=2,Notentabellen!$L$3=2),INDEX(Notentabellen!E:E,MATCH(G:G,Notentabellen!A:A,1)),IF(AND(Notentabellen!$J$3 =3,Notentabellen!$L$3=1), INDEX(Notentabellen!F:F,MATCH(G:G,Notentabellen!A:A,1)), IF(AND(Notentabellen!$J$3 =3,Notentabellen!$L$3=2), INDEX(Notentabellen!G:G,MATCH(G:G,Notentabellen!A:A,1)))))))))","v":" "}]
[80,{"$f":"IF(Eingabefeld!B83= \"\", \" \",INDEX(Eingabefeld!B:B,MATCH(A:A,Eingabefeld!A:A,0)))","v":" "},null,null,{"$f":"IF(Eingabefeld!E83=\"\",0,Eingabefeld!E83)","v":0},{"$f":"E82*Eingabefeld!$F$4","v":0},"",{"$f":"IF(G82 = \"\", \" \", IF(AND(Notentabellen!$J$3=1,Notentabellen!$L$3=1),INDEX(Notentabellen!B:B,MATCH(G:G,Notentabellen!A:A,1)),IF(AND(Notentabellen!$J$3=1,Notentabellen!$L$3=2),INDEX(Notentabellen!C:C,MATCH(G:G,Notentabellen!A:A,1)),IF(AND(Notentabellen!$J$3=2,Notentabellen!$L$3=1),INDEX(Notentabellen!D:D,MATCH(G:G,Notentabellen!A:A,1)),IF(AND(Notentabellen!$J$3=2,Notentabellen!$L$3=2),INDEX(Notentabellen!E:E,MATCH(G:G,Notentabellen!A:A,1)),IF(AND(Notentabellen!$J$3 =3,Notentabellen!$L$3=1), INDEX(Notentabellen!F:F,MATCH(G:G,Notentabellen!A:A,1)), IF(AND(Notentabellen!$J$3 =3,Notentabellen!$L$3=2), INDEX(Notentabellen!G:G,MATCH(G:G,Notentabellen!A:A,1)))))))))","v":" "}]
[81,{"$f":"IF(Eingabefeld!B84= \"\", \" \",INDEX(Eingabefeld!B:B,MATCH(A:A,Eingabefeld!A:A,0)))","v":" "},null,null,{"$f":"IF(Eingabefeld!E84=\"\",0,Eingabefeld!E84)","v":0},{"$f":"E83*Eingabefeld!$F$4","v":0},"",{"$f":"IF(G83 = \"\", \" \", IF(AND(Notentabellen!$J$3=1,Notentabellen!$L$3=1),INDEX(Notentabellen!B:B,MATCH(G:G,Notentabellen!A:A,1)),IF(AND(Notentabellen!$J$3=1,Notentabellen!$L$3=2),INDEX(Notentabellen!C:C,MATCH(G:G,Notentabellen!A:A,1)),IF(AND(Notentabellen!$J$3=2,Notentabellen!$L$3=1),INDEX(Notentabellen!D:D,MATCH(G:G,Notentabellen!A:A,1)),IF(AND(Notentabellen!$J$3=2,Notentabellen!$L$3=2),INDEX(Notentabellen!E:E,MATCH(G:G,Notentabellen!A:A,1)),IF(AND(Notentabellen!$J$3 =3,Notentabellen!$L$3=1), INDEX(Notentabellen!F:F,MATCH(G:G,Notentabellen!A:A,1)), IF(AND(Notentabellen!$J$3 =3,Notentabellen!$L$3=2), INDEX(Notentabellen!G:G,MATCH(G:G,Notentabellen!A:A,1)))))))))","v":" "}]
[82,{"$f":"IF(Eingabefeld!B85= \"\", \" \",INDEX(Eingabefeld!B:B,MATCH(A:A,Eingabefeld!A:A,0)))","v":" "},null,null,{"$f":"IF(Eingabefeld!E85=\"\",0,Eingabefeld!E85)","v":0},{"$f":"E84*Eingabefeld!$F$4","v":0},"",{"$f":"IF(G84 = \"\", \" \", IF(AND(Notentabellen!$J$3=1,Notentabellen!$L$3=1),INDEX(Notentabellen!B:B,MATCH(G:G,Notentabellen!A:A,1)),IF(AND(Notentabellen!$J$3=1,Notentabellen!$L$3=2),INDEX(Notentabellen!C:C,MATCH(G:G,Notentabellen!A:A,1)),IF(AND(Notentabellen!$J$3=2,Notentabellen!$L$3=1),INDEX(Notentabellen!D:D,MATCH(G:G,Notentabellen!A:A,1)),IF(AND(Notentabellen!$J$3=2,Notentabellen!$L$3=2),INDEX(Notentabellen!E:E,MATCH(G:G,Notentabellen!A:A,1)),IF(AND(Notentabellen!$J$3 =3,Notentabellen!$L$3=1), INDEX(Notentabellen!F:F,MATCH(G:G,Notentabellen!A:A,1)), IF(AND(Notentabellen!$J$3 =3,Notentabellen!$L$3=2), INDEX(Notentabellen!G:G,MATCH(G:G,Notentabellen!A:A,1)))))))))","v":" "}]
[83,{"$f":"IF(Eingabefeld!B86= \"\", \" \",INDEX(Eingabefeld!B:B,MATCH(A:A,Eingabefeld!A:A,0)))","v":" "},null,null,{"$f":"IF(Eingabefeld!E86=\"\",0,Eingabefeld!E86)","v":0},{"$f":"E85*Eingabefeld!$F$4","v":0},"",{"$f":"IF(G85 = \"\", \" \", IF(AND(Notentabellen!$J$3=1,Notentabellen!$L$3=1),INDEX(Notentabellen!B:B,MATCH(G:G,Notentabellen!A:A,1)),IF(AND(Notentabellen!$J$3=1,Notentabellen!$L$3=2),INDEX(Notentabellen!C:C,MATCH(G:G,Notentabellen!A:A,1)),IF(AND(Notentabellen!$J$3=2,Notentabellen!$L$3=1),INDEX(Notentabellen!D:D,MATCH(G:G,Notentabellen!A:A,1)),IF(AND(Notentabellen!$J$3=2,Notentabellen!$L$3=2),INDEX(Notentabellen!E:E,MATCH(G:G,Notentabellen!A:A,1)),IF(AND(Notentabellen!$J$3 =3,Notentabellen!$L$3=1), INDEX(Notentabellen!F:F,MATCH(G:G,Notentabellen!A:A,1)), IF(AND(Notentabellen!$J$3 =3,Notentabellen!$L$3=2), INDEX(Notentabellen!G:G,MATCH(G:G,Notentabellen!A:A,1)))))))))","v":" "}]
[84,{"$f":"IF(Eingabefeld!B87= \"\", \" \",INDEX(Eingabefeld!B:B,MATCH(A:A,Eingabefeld!A:A,0)))","v":" "},null,null,{"$f":"IF(Eingabefeld!E87=\"\",0,Eingabefeld!E87)","v":0},{"$f":"E86*Eingabefeld!$F$4","v":0},"",{"$f":"IF(G86 = \"\", \" \", IF(AND(Notentabellen!$J$3=1,Notentabellen!$L$3=1),INDEX(Notentabellen!B:B,MATCH(G:G,Notentabellen!A:A,1)),IF(AND(Notentabellen!$J$3=1,Notentabellen!$L$3=2),INDEX(Notentabellen!C:C,MATCH(G:G,Notentabellen!A:A,1)),IF(AND(Notentabellen!$J$3=2,Notentabellen!$L$3=1),INDEX(Notentabellen!D:D,MATCH(G:G,Notentabellen!A:A,1)),IF(AND(Notentabellen!$J$3=2,Notentabellen!$L$3=2),INDEX(Notentabellen!E:E,MATCH(G:G,Notentabellen!A:A,1)),IF(AND(Notentabellen!$J$3 =3,Notentabellen!$L$3=1), INDEX(Notentabellen!F:F,MATCH(G:G,Notentabellen!A:A,1)), IF(AND(Notentabellen!$J$3 =3,Notentabellen!$L$3=2), INDEX(Notentabellen!G:G,MATCH(G:G,Notentabellen!A:A,1)))))))))","v":" "}]
[85,{"$f":"IF(Eingabefeld!B88= \"\", \" \",INDEX(Eingabefeld!B:B,MATCH(A:A,Eingabefeld!A:A,0)))","v":" "},null,null,{"$f":"IF(Eingabefeld!E88=\"\",0,Eingabefeld!E88)","v":0},{"$f":"E87*Eingabefeld!$F$4","v":0},"",{"$f":"IF(G87 = \"\", \" \", IF(AND(Notentabellen!$J$3=1,Notentabellen!$L$3=1),INDEX(Notentabellen!B:B,MATCH(G:G,Notentabellen!A:A,1)),IF(AND(Notentabellen!$J$3=1,Notentabellen!$L$3=2),INDEX(Notentabellen!C:C,MATCH(G:G,Notentabellen!A:A,1)),IF(AND(Notentabellen!$J$3=2,Notentabellen!$L$3=1),INDEX(Notentabellen!D:D,MATCH(G:G,Notentabellen!A:A,1)),IF(AND(Notentabellen!$J$3=2,Notentabellen!$L$3=2),INDEX(Notentabellen!E:E,MATCH(G:G,Notentabellen!A:A,1)),IF(AND(Notentabellen!$J$3 =3,Notentabellen!$L$3=1), INDEX(Notentabellen!F:F,MATCH(G:G,Notentabellen!A:A,1)), IF(AND(Notentabellen!$J$3 =3,Notentabellen!$L$3=2), INDEX(Notentabellen!G:G,MATCH(G:G,Notentabellen!A:A,1)))))))))","v":" "}]
[86,{"$f":"IF(Eingabefeld!B89= \"\", \" \",INDEX(Eingabefeld!B:B,MATCH(A:A,Eingabefeld!A:A,0)))","v":" "},null,null,{"$f":"IF(Eingabefeld!E89=\"\",0,Eingabefeld!E89)","v":0},{"$f":"E88*Eingabefeld!$F$4","v":0},"",{"$f":"IF(G88 = \"\", \" \", IF(AND(Notentabellen!$J$3=1,Notentabellen!$L$3=1),INDEX(Notentabellen!B:B,MATCH(G:G,Notentabellen!A:A,1)),IF(AND(Notentabellen!$J$3=1,Notentabellen!$L$3=2),INDEX(Notentabellen!C:C,MATCH(G:G,Notentabellen!A:A,1)),IF(AND(Notentabellen!$J$3=2,Notentabellen!$L$3=1),INDEX(Notentabellen!D:D,MATCH(G:G,Notentabellen!A:A,1)),IF(AND(Notentabellen!$J$3=2,Notentabellen!$L$3=2),INDEX(Notentabellen!E:E,MATCH(G:G,Notentabellen!A:A,1)),IF(AND(Notentabellen!$J$3 =3,Notentabellen!$L$3=1), INDEX(Notentabellen!F:F,MATCH(G:G,Notentabellen!A:A,1)), IF(AND(Notentabellen!$J$3 =3,Notentabellen!$L$3=2), INDEX(Notentabellen!G:G,MATCH(G:G,Notentabellen!A:A,1)))))))))","v":" "}]
[87,{"$f":"IF(Eingabefeld!B90= \"\", \" \",INDEX(Eingabefeld!B:B,MATCH(A:A,Eingabefeld!A:A,0)))","v":" "},null,null,{"$f":"IF(Eingabefeld!E90=\"\",0,Eingabefeld!E90)","v":0},{"$f":"E89*Eingabefeld!$F$4","v":0},"",{"$f":"IF(G89 = \"\", \" \", IF(AND(Notentabellen!$J$3=1,Notentabellen!$L$3=1),INDEX(Notentabellen!B:B,MATCH(G:G,Notentabellen!A:A,1)),IF(AND(Notentabellen!$J$3=1,Notentabellen!$L$3=2),INDEX(Notentabellen!C:C,MATCH(G:G,Notentabellen!A:A,1)),IF(AND(Notentabellen!$J$3=2,Notentabellen!$L$3=1),INDEX(Notentabellen!D:D,MATCH(G:G,Notentabellen!A:A,1)),IF(AND(Notentabellen!$J$3=2,Notentabellen!$L$3=2),INDEX(Notentabellen!E:E,MATCH(G:G,Notentabellen!A:A,1)),IF(AND(Notentabellen!$J$3 =3,Notentabellen!$L$3=1), INDEX(Notentabellen!F:F,MATCH(G:G,Notentabellen!A:A,1)), IF(AND(Notentabellen!$J$3 =3,Notentabellen!$L$3=2), INDEX(Notentabellen!G:G,MATCH(G:G,Notentabellen!A:A,1)))))))))","v":" "}]
[88,{"$f":"IF(Eingabefeld!B91= \"\", \" \",INDEX(Eingabefeld!B:B,MATCH(A:A,Eingabefeld!A:A,0)))","v":" "},null,null,{"$f":"IF(Eingabefeld!E91=\"\",0,Eingabefeld!E91)","v":0},{"$f":"E90*Eingabefeld!$F$4","v":0},"",{"$f":"IF(G90 = \"\", \" \", IF(AND(Notentabellen!$J$3=1,Notentabellen!$L$3=1),INDEX(Notentabellen!B:B,MATCH(G:G,Notentabellen!A:A,1)),IF(AND(Notentabellen!$J$3=1,Notentabellen!$L$3=2),INDEX(Notentabellen!C:C,MATCH(G:G,Notentabellen!A:A,1)),IF(AND(Notentabellen!$J$3=2,Notentabellen!$L$3=1),INDEX(Notentabellen!D:D,MATCH(G:G,Notentabellen!A:A,1)),IF(AND(Notentabellen!$J$3=2,Notentabellen!$L$3=2),INDEX(Notentabellen!E:E,MATCH(G:G,Notentabellen!A:A,1)),IF(AND(Notentabellen!$J$3 =3,Notentabellen!$L$3=1), INDEX(Notentabellen!F:F,MATCH(G:G,Notentabellen!A:A,1)), IF(AND(Notentabellen!$J$3 =3,Notentabellen!$L$3=2), INDEX(Notentabellen!G:G,MATCH(G:G,Notentabellen!A:A,1)))))))))","v":" "}]
[89,{"$f":"IF(Eingabefeld!B92= \"\", \" \",INDEX(Eingabefeld!B:B,MATCH(A:A,Eingabefeld!A:A,0)))","v":" "},null,null,{"$f":"IF(Eingabefeld!E92=\"\",0,Eingabefeld!E92)","v":0},{"$f":"E91*Eingabefeld!$F$4","v":0},"",{"$f":"IF(G91 = \"\", \" \", IF(AND(Notentabellen!$J$3=1,Notentabellen!$L$3=1),INDEX(Notentabellen!B:B,MATCH(G:G,Notentabellen!A:A,1)),IF(AND(Notentabellen!$J$3=1,Notentabellen!$L$3=2),INDEX(Notentabellen!C:C,MATCH(G:G,Notentabellen!A:A,1)),IF(AND(Notentabellen!$J$3=2,Notentabellen!$L$3=1),INDEX(Notentabellen!D:D,MATCH(G:G,Notentabellen!A:A,1)),IF(AND(Notentabellen!$J$3=2,Notentabellen!$L$3=2),INDEX(Notentabellen!E:E,MATCH(G:G,Notentabellen!A:A,1)),IF(AND(Notentabellen!$J$3 =3,Notentabellen!$L$3=1), INDEX(Notentabellen!F:F,MATCH(G:G,Notentabellen!A:A,1)), IF(AND(Notentabellen!$J$3 =3,Notentabellen!$L$3=2), INDEX(Notentabellen!G:G,MATCH(G:G,Notentabellen!A:A,1)))))))))","v":" "}]
[90,{"$f":"IF(Eingabefeld!B93= \"\", \" \",INDEX(Eingabefeld!B:B,MATCH(A:A,Eingabefeld!A:A,0)))","v":" "},null,null,{"$f":"IF(Eingabefeld!E93=\"\",0,Eingabefeld!E93)","v":0},{"$f":"E92*Eingabefeld!$F$4","v":0},"",{"$f":"IF(G92 = \"\", \" \", IF(AND(Notentabellen!$J$3=1,Notentabellen!$L$3=1),INDEX(Notentabellen!B:B,MATCH(G:G,Notentabellen!A:A,1)),IF(AND(Notentabellen!$J$3=1,Notentabellen!$L$3=2),INDEX(Notentabellen!C:C,MATCH(G:G,Notentabellen!A:A,1)),IF(AND(Notentabellen!$J$3=2,Notentabellen!$L$3=1),INDEX(Notentabellen!D:D,MATCH(G:G,Notentabellen!A:A,1)),IF(AND(Notentabellen!$J$3=2,Notentabellen!$L$3=2),INDEX(Notentabellen!E:E,MATCH(G:G,Notentabellen!A:A,1)),IF(AND(Notentabellen!$J$3 =3,Notentabellen!$L$3=1), INDEX(Notentabellen!F:F,MATCH(G:G,Notentabellen!A:A,1)), IF(AND(Notentabellen!$J$3 =3,Notentabellen!$L$3=2), INDEX(Notentabellen!G:G,MATCH(G:G,Notentabellen!A:A,1)))))))))","v":" "}]
[91,{"$f":"IF(Eingabefeld!B94= \"\", \" \",INDEX(Eingabefeld!B:B,MATCH(A:A,Eingabefeld!A:A,0)))","v":" "},null,null,{"$f":"IF(Eingabefeld!E94=\"\",0,Eingabefeld!E94)","v":0},{"$f":"E93*Eingabefeld!$F$4","v":0},"",{"$f":"IF(G93 = \"\", \" \", IF(AND(Notentabellen!$J$3=1,Notentabellen!$L$3=1),INDEX(Notentabellen!B:B,MATCH(G:G,Notentabellen!A:A,1)),IF(AND(Notentabellen!$J$3=1,Notentabellen!$L$3=2),INDEX(Notentabellen!C:C,MATCH(G:G,Notentabellen!A:A,1)),IF(AND(Notentabellen!$J$3=2,Notentabellen!$L$3=1),INDEX(Notentabellen!D:D,MATCH(G:G,Notentabellen!A:A,1)),IF(AND(Notentabellen!$J$3=2,Notentabellen!$L$3=2),INDEX(Notentabellen!E:E,MATCH(G:G,Notentabellen!A:A,1)),IF(AND(Notentabellen!$J$3 =3,Notentabellen!$L$3=1), INDEX(Notentabellen!F:F,MATCH(G:G,Notentabellen!A:A,1)), IF(AND(Notentabellen!$J$3 =3,Notentabellen!$L$3=2), INDEX(Notentabellen!G:G,MATCH(G:G,Notentabellen!A:A,1)))))))))","v":" "}]
[92,{"$f":"IF(Eingabefeld!B95= \"\", \" \",INDEX(Eingabefeld!B:B,MATCH(A:A,Eingabefeld!A:A,0)))","v":" "},null,null,{"$f":"IF(Eingabefeld!E95=\"\",0,Eingabefeld!E95)","v":0},{"$f":"E94*Eingabefeld!$F$4","v":0},"",{"$f":"IF(G94 = \"\", \" \", IF(AND(Notentabellen!$J$3=1,Notentabellen!$L$3=1),INDEX(Notentabellen!B:B,MATCH(G:G,Notentabellen!A:A,1)),IF(AND(Notentabellen!$J$3=1,Notentabellen!$L$3=2),INDEX(Notentabellen!C:C,MATCH(G:G,Notentabellen!A:A,1)),IF(AND(Notentabellen!$J$3=2,Notentabellen!$L$3=1),INDEX(Notentabellen!D:D,MATCH(G:G,Notentabellen!A:A,1)),IF(AND(Notentabellen!$J$3=2,Notentabellen!$L$3=2),INDEX(Notentabellen!E:E,MATCH(G:G,Notentabellen!A:A,1)),IF(AND(Notentabellen!$J$3 =3,Notentabellen!$L$3=1), INDEX(Notentabellen!F:F,MATCH(G:G,Notentabellen!A:A,1)), IF(AND(Notentabellen!$J$3 =3,Notentabellen!$L$3=2), INDEX(Notentabellen!G:G,MATCH(G:G,Notentabellen!A:A,1)))))))))","v":" "}]
[93,{"$f":"IF(Eingabefeld!B96= \"\", \" \",INDEX(Eingabefeld!B:B,MATCH(A:A,Eingabefeld!A:A,0)))","v":" "},null,null,{"$f":"IF(Eingabefeld!E96=\"\",0,Eingabefeld!E96)","v":0},{"$f":"E95*Eingabefeld!$F$4","v":0},"",{"$f":"IF(G95 = \"\", \" \", IF(AND(Notentabellen!$J$3=1,Notentabellen!$L$3=1),INDEX(Notentabellen!B:B,MATCH(G:G,Notentabellen!A:A,1)),IF(AND(Notentabellen!$J$3=1,Notentabellen!$L$3=2),INDEX(Notentabellen!C:C,MATCH(G:G,Notentabellen!A:A,1)),IF(AND(Notentabellen!$J$3=2,Notentabellen!$L$3=1),INDEX(Notentabellen!D:D,MATCH(G:G,Notentabellen!A:A,1)),IF(AND(Notentabellen!$J$3=2,Notentabellen!$L$3=2),INDEX(Notentabellen!E:E,MATCH(G:G,Notentabellen!A:A,1)),IF(AND(Notentabellen!$J$3 =3,Notentabellen!$L$3=1), INDEX(Notentabellen!F:F,MATCH(G:G,Notentabellen!A:A,1)), IF(AND(Notentabellen!$J$3 =3,Notentabellen!$L$3=2), INDEX(Notentabellen!G:G,MATCH(G:G,Notentabellen!A:A,1)))))))))","v":" "}]
[94,{"$f":"IF(Eingabefeld!B97= \"\", \" \",INDEX(Eingabefeld!B:B,MATCH(A:A,Eingabefeld!A:A,0)))","v":" "},null,null,{"$f":"IF(Eingabefeld!E97=\"\",0,Eingabefeld!E97)","v":0},{"$f":"E96*Eingabefeld!$F$4","v":0},"",{"$f":"IF(G96 = \"\", \" \", IF(AND(Notentabellen!$J$3=1,Notentabellen!$L$3=1),INDEX(Notentabellen!B:B,MATCH(G:G,Notentabellen!A:A,1)),IF(AND(Notentabellen!$J$3=1,Notentabellen!$L$3=2),INDEX(Notentabellen!C:C,MATCH(G:G,Notentabellen!A:A,1)),IF(AND(Notentabellen!$J$3=2,Notentabellen!$L$3=1),INDEX(Notentabellen!D:D,MATCH(G:G,Notentabellen!A:A,1)),IF(AND(Notentabellen!$J$3=2,Notentabellen!$L$3=2),INDEX(Notentabellen!E:E,MATCH(G:G,Notentabellen!A:A,1)),IF(AND(Notentabellen!$J$3 =3,Notentabellen!$L$3=1), INDEX(Notentabellen!F:F,MATCH(G:G,Notentabellen!A:A,1)), IF(AND(Notentabellen!$J$3 =3,Notentabellen!$L$3=2), INDEX(Notentabellen!G:G,MATCH(G:G,Notentabellen!A:A,1)))))))))","v":" "}]
[95,{"$f":"IF(Eingabefeld!B98= \"\", \" \",INDEX(Eingabefeld!B:B,MATCH(A:A,Eingabefeld!A:A,0)))","v":" "},null,null,{"$f":"IF(Eingabefeld!E98=\"\",0,Eingabefeld!E98)","v":0},{"$f":"E97*Eingabefeld!$F$4","v":0},"",{"$f":"IF(G97 = \"\", \" \", IF(AND(Notentabellen!$J$3=1,Notentabellen!$L$3=1),INDEX(Notentabellen!B:B,MATCH(G:G,Notentabellen!A:A,1)),IF(AND(Notentabellen!$J$3=1,Notentabellen!$L$3=2),INDEX(Notentabellen!C:C,MATCH(G:G,Notentabellen!A:A,1)),IF(AND(Notentabellen!$J$3=2,Notentabellen!$L$3=1),INDEX(Notentabellen!D:D,MATCH(G:G,Notentabellen!A:A,1)),IF(AND(Notentabellen!$J$3=2,Notentabellen!$L$3=2),INDEX(Notentabellen!E:E,MATCH(G:G,Notentabellen!A:A,1)),IF(AND(Notentabellen!$J$3 =3,Notentabellen!$L$3=1), INDEX(Notentabellen!F:F,MATCH(G:G,Notentabellen!A:A,1)), IF(AND(Notentabellen!$J$3 =3,Notentabellen!$L$3=2), INDEX(Notentabellen!G:G,MATCH(G:G,Notentabellen!A:A,1)))))))))","v":" "}]
[96,{"$f":"IF(Eingabefeld!B99= \"\", \" \",INDEX(Eingabefeld!B:B,MATCH(A:A,Eingabefeld!A:A,0)))","v":" "},null,null,{"$f":"IF(Eingabefeld!E99=\"\",0,Eingabefeld!E99)","v":0},{"$f":"E98*Eingabefeld!$F$4","v":0},"",{"$f":"IF(G98 = \"\", \" \", IF(AND(Notentabellen!$J$3=1,Notentabellen!$L$3=1),INDEX(Notentabellen!B:B,MATCH(G:G,Notentabellen!A:A,1)),IF(AND(Notentabellen!$J$3=1,Notentabellen!$L$3=2),INDEX(Notentabellen!C:C,MATCH(G:G,Notentabellen!A:A,1)),IF(AND(Notentabellen!$J$3=2,Notentabellen!$L$3=1),INDEX(Notentabellen!D:D,MATCH(G:G,Notentabellen!A:A,1)),IF(AND(Notentabellen!$J$3=2,Notentabellen!$L$3=2),INDEX(Notentabellen!E:E,MATCH(G:G,Notentabellen!A:A,1)),IF(AND(Notentabellen!$J$3 =3,Notentabellen!$L$3=1), INDEX(Notentabellen!F:F,MATCH(G:G,Notentabellen!A:A,1)), IF(AND(Notentabellen!$J$3 =3,Notentabellen!$L$3=2), INDEX(Notentabellen!G:G,MATCH(G:G,Notentabellen!A:A,1)))))))))","v":" "}]
[97,{"$f":"IF(Eingabefeld!B100= \"\", \" \",INDEX(Eingabefeld!B:B,MATCH(A:A,Eingabefeld!A:A,0)))","v":" "},null,null,{"$f":"IF(Eingabefeld!E100=\"\",0,Eingabefeld!E100)","v":0},{"$f":"E99*Eingabefeld!$F$4","v":0},"",{"$f":"IF(G99 = \"\", \" \", IF(AND(Notentabellen!$J$3=1,Notentabellen!$L$3=1),INDEX(Notentabellen!B:B,MATCH(G:G,Notentabellen!A:A,1)),IF(AND(Notentabellen!$J$3=1,Notentabellen!$L$3=2),INDEX(Notentabellen!C:C,MATCH(G:G,Notentabellen!A:A,1)),IF(AND(Notentabellen!$J$3=2,Notentabellen!$L$3=1),INDEX(Notentabellen!D:D,MATCH(G:G,Notentabellen!A:A,1)),IF(AND(Notentabellen!$J$3=2,Notentabellen!$L$3=2),INDEX(Notentabellen!E:E,MATCH(G:G,Notentabellen!A:A,1)),IF(AND(Notentabellen!$J$3 =3,Notentabellen!$L$3=1), INDEX(Notentabellen!F:F,MATCH(G:G,Notentabellen!A:A,1)), IF(AND(Notentabellen!$J$3 =3,Notentabellen!$L$3=2), INDEX(Notentabellen!G:G,MATCH(G:G,Notentabellen!A:A,1)))))))))","v":" "}]
[98,{"$f":"IF(Eingabefeld!B101= \"\", \" \",INDEX(Eingabefeld!B:B,MATCH(A:A,Eingabefeld!A:A,0)))","v":" "},null,null,{"$f":"IF(Eingabefeld!E101=\"\",0,Eingabefeld!E101)","v":0},{"$f":"E100*Eingabefeld!$F$4","v":0},"",{"$f":"IF(G100 = \"\", \" \", IF(AND(Notentabellen!$J$3=1,Notentabellen!$L$3=1),INDEX(Notentabellen!B:B,MATCH(G:G,Notentabellen!A:A,1)),IF(AND(Notentabellen!$J$3=1,Notentabellen!$L$3=2),INDEX(Notentabellen!C:C,MATCH(G:G,Notentabellen!A:A,1)),IF(AND(Notentabellen!$J$3=2,Notentabellen!$L$3=1),INDEX(Notentabellen!D:D,MATCH(G:G,Notentabellen!A:A,1)),IF(AND(Notentabellen!$J$3=2,Notentabellen!$L$3=2),INDEX(Notentabellen!E:E,MATCH(G:G,Notentabellen!A:A,1)),IF(AND(Notentabellen!$J$3 =3,Notentabellen!$L$3=1), INDEX(Notentabellen!F:F,MATCH(G:G,Notentabellen!A:A,1)), IF(AND(Notentabellen!$J$3 =3,Notentabellen!$L$3=2), INDEX(Notentabellen!G:G,MATCH(G:G,Notentabellen!A:A,1)))))))))","v":" "}]
[99,{"$f":"IF(Eingabefeld!B102= \"\", \" \",INDEX(Eingabefeld!B:B,MATCH(A:A,Eingabefeld!A:A,0)))","v":" "},null,null,{"$f":"IF(Eingabefeld!E102=\"\",0,Eingabefeld!E102)","v":0},{"$f":"E101*Eingabefeld!$F$4","v":0},"",{"$f":"IF(G101 = \"\", \" \", IF(AND(Notentabellen!$J$3=1,Notentabellen!$L$3=1),INDEX(Notentabellen!B:B,MATCH(G:G,Notentabellen!A:A,1)),IF(AND(Notentabellen!$J$3=1,Notentabellen!$L$3=2),INDEX(Notentabellen!C:C,MATCH(G:G,Notentabellen!A:A,1)),IF(AND(Notentabellen!$J$3=2,Notentabellen!$L$3=1),INDEX(Notentabellen!D:D,MATCH(G:G,Notentabellen!A:A,1)),IF(AND(Notentabellen!$J$3=2,Notentabellen!$L$3=2),INDEX(Notentabellen!E:E,MATCH(G:G,Notentabellen!A:A,1)),IF(AND(Notentabellen!$J$3 =3,Notentabellen!$L$3=1), INDEX(Notentabellen!F:F,MATCH(G:G,Notentabellen!A:A,1)), IF(AND(Notentabellen!$J$3 =3,Notentabellen!$L$3=2), INDEX(Notentabellen!G:G,MATCH(G:G,Notentabellen!A:A,1)))))))))","v":" "}]
[100,{"$f":"IF(Eingabefeld!B103= \"\", \" \",INDEX(Eingabefeld!B:B,MATCH(A:A,Eingabefeld!A:A,0)))","v":" "},null,null,{"$f":"IF(Eingabefeld!E103=\"\",0,Eingabefeld!E103)","v":0},{"$f":"E102*Eingabefeld!$F$4","v":0},"",{"$f":"IF(G102 = \"\", \" \", IF(AND(Notentabellen!$J$3=1,Notentabellen!$L$3=1),INDEX(Notentabellen!B:B,MATCH(G:G,Notentabellen!A:A,1)),IF(AND(Notentabellen!$J$3=1,Notentabellen!$L$3=2),INDEX(Notentabellen!C:C,MATCH(G:G,Notentabellen!A:A,1)),IF(AND(Notentabellen!$J$3=2,Notentabellen!$L$3=1),INDEX(Notentabellen!D:D,MATCH(G:G,Notentabellen!A:A,1)),IF(AND(Notentabellen!$J$3=2,Notentabellen!$L$3=2),INDEX(Notentabellen!E:E,MATCH(G:G,Notentabellen!A:A,1)),IF(AND(Notentabellen!$J$3 =3,Notentabellen!$L$3=1), INDEX(Notentabellen!F:F,MATCH(G:G,Notentabellen!A:A,1)), IF(AND(Notentabellen!$J$3 =3,Notentabellen!$L$3=2), INDEX(Notentabellen!G:G,MATCH(G:G,Notentabellen!A:A,1)))))))))","v":" "}]

{"sheet":"Rangliste","index":3,"n_rows":103,"n_cols":5,"rows_kept":103,"cut":false,"hidden":false,"merged":[[0,0,0,4],[1,0,1,4]]}
["Rangliste"]
["Anmerkung: Zeiten, Noten und Notenschnitt (und diese Bemerkung) können ausgeblendet werden, indem die entsprechenden Spalten (bzw. diese Zeile) ausgeblendet werden!"]
["Rang","Läufer/in","Laufzeit + Strafzeit","Note","Notenschnitt"]
[{"$f":"IF(C4=\"\",\"\",_xlfn.RANK.EQ(C4,C:C,1))","v":""},{"$f":"IF(C4=\"\",\"\",INDEX(Laufliste!B:B,_xlfn.AGGREGATE(15,6,ROW(Laufliste!G:G)/(Laufliste!G:G=C4),COUNTIF($C$4:C4,C4)),1))","v":""},{"$f":"IF(ISERROR(_xlfn.AGGREGATE(15,6,Laufliste!G:G,ROW()-3)),\"\",IF(ROWS($A$4:A4)<=Hilfsregister!$C$2,_xlfn.AGGREGATE(15,6,Laufliste!G:G,ROW()-3),\"\"))","v":""},{"$f":"IF(C4 = \"\", \"\", IF(AND(Notentabellen!$J$3=1,Notentabellen!$L$3=1),INDEX(Notentabellen!B:B,MATCH(C:C,Notentabellen!A:A,1)),IF(AND(Notentabellen!$J$3=1,Notentabellen!$L$3=2),INDEX(Notentabellen!C:C,MATCH(C:C,Notentabellen!A:A,1)),IF(AND(Notentabellen!$J$3=2,Notentabellen!$L$3=1),INDEX(Notentabellen!D:D,MATCH(C:C,Notentabellen!A:A,1)),IF(AND(Notentabellen!$J$3=2,Notentabellen!$L$3=2),INDEX(Notentabellen!E:E,MATCH(C:C,Notentabellen!A:A,1)),IF(AND(Notentabellen!$J$3 =3,Notentabellen!$L$3=1), INDEX(Notentabellen!F:F,MATCH(C:C,Notentabellen!A:A,1)), IF(AND(Notentabellen!$J$3 =3,Notentabellen!$L$3=2), INDEX(Notentabellen!G:G,MATCH(C:C,Notentabellen!A:A,1)))))))))","v":""},{"$f":"AVERAGE(D4:D103)","v":{"$error":"#DIV/0!"}}]
[{"$f":"IF(C5=\"\",\"\",_xlfn.RANK.EQ(C5,C:C,1))","v":""},{"$f":"IF(C5=\"\",\"\",INDEX(Laufliste!B:B,_xlfn.AGGREGATE(15,6,ROW(Laufliste!G:G)/(Laufliste!G:G=C5),COUNTIF($C$4:C5,C5)),1))","v":""},{"$f":"IF(ISERROR(_xlfn.AGGREGATE(15,6,Laufliste!G:G,ROW()-3)),\"\",IF(ROWS($A$4:A5)<=Hilfsregister!$C$2,_xlfn.AGGREGATE(15,6,Laufliste!G:G,ROW()-3),\"\"))","v":""},{"$f":"IF(C5 = \"\", \"\", IF(AND(Notentabellen!$J$3=1,Notentabellen!$L$3=1),INDEX(Notentabellen!B:B,MATCH(C:C,Notentabellen!A:A,1)),IF(AND(Notentabellen!$J$3=1,Notentabellen!$L$3=2),INDEX(Notentabellen!C:C,MATCH(C:C,Notentabellen!A:A,1)),IF(AND(Notentabellen!$J$3=2,Notentabellen!$L$3=1),INDEX(Notentabellen!D:D,MATCH(C:C,Notentabellen!A:A,1)),IF(AND(Notentabellen!$J$3=2,Notentabellen!$L$3=2),INDEX(Notentabellen!E:E,MATCH(C:C,Notentabellen!A:A,1)),IF(AND(Notentabellen!$J$3 =3,Notentabellen!$L$3=1), INDEX(Notentabellen!F:F,MATCH(C:C,Notentabellen!A:A,1)), IF(AND(Notentabellen!$J$3 =3,Notentabellen!$L$3=2), INDEX(Notentabellen!G:G,MATCH(C:C,Notentabellen!A:A,1)))))))))","v":""}]
["",{"$f":"IF(C6=\"\",\"\",INDEX(Laufliste!B:B,_xlfn.AGGREGATE(15,6,ROW(Laufliste!G:G)/(Laufliste!G:G=C6),COUNTIF($C$4:C6,C6)),1))","v":""},{"$f":"IF(ISERROR(_xlfn.AGGREGATE(15,6,Laufliste!G:G,ROW()-3)),\"\",IF(ROWS($A$4:A6)<=Hilfsregister!$C$2,_xlfn.AGGREGATE(15,6,Laufliste!G:G,ROW()-3),\"\"))","v":""},{"$f":"IF(C6 = \"\", \"\", IF(AND(Notentabellen!$J$3=1,Notentabellen!$L$3=1),INDEX(Notentabellen!B:B,MATCH(C:C,Notentabellen!A:A,1)),IF(AND(Notentabellen!$J$3=1,Notentabellen!$L$3=2),INDEX(Notentabellen!C:C,MATCH(C:C,Notentabellen!A:A,1)),IF(AND(Notentabellen!$J$3=2,Notentabellen!$L$3=1),INDEX(Notentabellen!D:D,MATCH(C:C,Notentabellen!A:A,1)),IF(AND(Notentabellen!$J$3=2,Notentabellen!$L$3=2),INDEX(Notentabellen!E:E,MATCH(C:C,Notentabellen!A:A,1)),IF(AND(Notentabellen!$J$3 =3,Notentabellen!$L$3=1), INDEX(Notentabellen!F:F,MATCH(C:C,Notentabellen!A:A,1)), IF(AND(Notentabellen!$J$3 =3,Notentabellen!$L$3=2), INDEX(Notentabellen!G:G,MATCH(C:C,Notentabellen!A:A,1)))))))))","v":""}]
["",{"$f":"IF(C7=\"\",\"\",INDEX(Laufliste!B:B,_xlfn.AGGREGATE(15,6,ROW(Laufliste!G:G)/(Laufliste!G:G=C7),COUNTIF($C$4:C7,C7)),1))","v":""},{"$f":"IF(ISERROR(_xlfn.AGGREGATE(15,6,Laufliste!G:G,ROW()-3)),\"\",IF(ROWS($A$4:A7)<=Hilfsregister!$C$2,_xlfn.AGGREGATE(15,6,Laufliste!G:G,ROW()-3),\"\"))","v":""},{"$f":"IF(C7 = \"\", \"\", IF(AND(Notentabellen!$J$3=1,Notentabellen!$L$3=1),INDEX(Notentabellen!B:B,MATCH(C:C,Notentabellen!A:A,1)),IF(AND(Notentabellen!$J$3=1,Notentabellen!$L$3=2),INDEX(Notentabellen!C:C,MATCH(C:C,Notentabellen!A:A,1)),IF(AND(Notentabellen!$J$3=2,Notentabellen!$L$3=1),INDEX(Notentabellen!D:D,MATCH(C:C,Notentabellen!A:A,1)),IF(AND(Notentabellen!$J$3=2,Notentabellen!$L$3=2),INDEX(Notentabellen!E:E,MATCH(C:C,Notentabellen!A:A,1)),IF(AND(Notentabellen!$J$3 =3,Notentabellen!$L$3=1), INDEX(Notentabellen!F:F,MATCH(C:C,Notentabellen!A:A,1)), IF(AND(Notentabellen!$J$3 =3,Notentabellen!$L$3=2), INDEX(Notentabellen!G:G,MATCH(C:C,Notentabellen!A:A,1)))))))))","v":""}]
["",{"$f":"IF(C8=\"\",\"\",INDEX(Laufliste!B:B,_xlfn.AGGREGATE(15,6,ROW(Laufliste!G:G)/(Laufliste!G:G=C8),COUNTIF($C$4:C8,C8)),1))","v":""},{"$f":"IF(ISERROR(_xlfn.AGGREGATE(15,6,Laufliste!G:G,ROW()-3)),\"\",IF(ROWS($A$4:A8)<=Hilfsregister!$C$2,_xlfn.AGGREGATE(15,6,Laufliste!G:G,ROW()-3),\"\"))","v":""},{"$f":"IF(C8 = \"\", \"\", IF(AND(Notentabellen!$J$3=1,Notentabellen!$L$3=1),INDEX(Notentabellen!B:B,MATCH(C:C,Notentabellen!A:A,1)),IF(AND(Notentabellen!$J$3=1,Notentabellen!$L$3=2),INDEX(Notentabellen!C:C,MATCH(C:C,Notentabellen!A:A,1)),IF(AND(Notentabellen!$J$3=2,Notentabellen!$L$3=1),INDEX(Notentabellen!D:D,MATCH(C:C,Notentabellen!A:A,1)),IF(AND(Notentabellen!$J$3=2,Notentabellen!$L$3=2),INDEX(Notentabellen!E:E,MATCH(C:C,Notentabellen!A:A,1)),IF(AND(Notentabellen!$J$3 =3,Notentabellen!$L$3=1), INDEX(Notentabellen!F:F,MATCH(C:C,Notentabellen!A:A,1)), IF(AND(Notentabellen!$J$3 =3,Notentabellen!$L$3=2), INDEX(Notentabellen!G:G,MATCH(C:C,Notentabellen!A:A,1)))))))))","v":""}]
["",{"$f":"IF(C9=\"\",\"\",INDEX(Laufliste!B:B,_xlfn.AGGREGATE(15,6,ROW(Laufliste!G:G)/(Laufliste!G:G=C9),COUNTIF($C$4:C9,C9)),1))","v":""},{"$f":"IF(ISERROR(_xlfn.AGGREGATE(15,6,Laufliste!G:G,ROW()-3)),\"\",IF(ROWS($A$4:A9)<=Hilfsregister!$C$2,_xlfn.AGGREGATE(15,6,Laufliste!G:G,ROW()-3),\"\"))","v":""},{"$f":"IF(C9 = \"\", \"\", IF(AND(Notentabellen!$J$3=1,Notentabellen!$L$3=1),INDEX(Notentabellen!B:B,MATCH(C:C,Notentabellen!A:A,1)),IF(AND(Notentabellen!$J$3=1,Notentabellen!$L$3=2),INDEX(Notentabellen!C:C,MATCH(C:C,Notentabellen!A:A,1)),IF(AND(Notentabellen!$J$3=2,Notentabellen!$L$3=1),INDEX(Notentabellen!D:D,MATCH(C:C,Notentabellen!A:A,1)),IF(AND(Notentabellen!$J$3=2,Notentabellen!$L$3=2),INDEX(Notentabellen!E:E,MATCH(C:C,Notentabellen!A:A,1)),IF(AND(Notentabellen!$J$3 =3,Notentabellen!$L$3=1), INDEX(Notentabellen!F:F,MATCH(C:C,Notentabellen!A:A,1)), IF(AND(Notentabellen!$J$3 =3,Notentabellen!$L$3=2), INDEX(Notentabellen!G:G,MATCH(C:C,Notentabellen!A:A,1)))))))))","v":""}]
["",{"$f":"IF(C10=\"\",\"\",INDEX(Laufliste!B:B,_xlfn.AGGREGATE(15,6,ROW(Laufliste!G:G)/(Laufliste!G:G=C10),COUNTIF($C$4:C10,C10)),1))","v":""},{"$f":"IF(ISERROR(_xlfn.AGGREGATE(15,6,Laufliste!G:G,ROW()-3)),\"\",IF(ROWS($A$4:A10)<=Hilfsregister!$C$2,_xlfn.AGGREGATE(15,6,Laufliste!G:G,ROW()-3),\"\"))","v":""},{"$f":"IF(C10 = \"\", \"\", IF(AND(Notentabellen!$J$3=1,Notentabellen!$L$3=1),INDEX(Notentabellen!B:B,MATCH(C:C,Notentabellen!A:A,1)),IF(AND(Notentabellen!$J$3=1,Notentabellen!$L$3=2),INDEX(Notentabellen!C:C,MATCH(C:C,Notentabellen!A:A,1)),IF(AND(Notentabellen!$J$3=2,Notentabellen!$L$3=1),INDEX(Notentabellen!D:D,MATCH(C:C,Notentabellen!A:A,1)),IF(AND(Notentabellen!$J$3=2,Notentabellen!$L$3=2),INDEX(Notentabellen!E:E,MATCH(C:C,Notentabellen!A:A,1)),IF(AND(Notentabellen!$J$3 =3,Notentabellen!$L$3=1), INDEX(Notentabellen!F:F,MATCH(C:C,Notentabellen!A:A,1)), IF(AND(Notentabellen!$J$3 =3,Notentabellen!$L$3=2), INDEX(Notentabellen!G:G,MATCH(C:C,Notentabellen!A:A,1)))))))))","v":""}]
["",{"$f":"IF(C11=\"\",\"\",INDEX(Laufliste!B:B,_xlfn.AGGREGATE(15,6,ROW(Laufliste!G:G)/(Laufliste!G:G=C11),COUNTIF($C$4:C11,C11)),1))","v":""},{"$f":"IF(ISERROR(_xlfn.AGGREGATE(15,6,Laufliste!G:G,ROW()-3)),\"\",IF(ROWS($A$4:A11)<=Hilfsregister!$C$2,_xlfn.AGGREGATE(15,6,Laufliste!G:G,ROW()-3),\"\"))","v":""},{"$f":"IF(C11 = \"\", \"\", IF(AND(Notentabellen!$J$3=1,Notentabellen!$L$3=1),INDEX(Notentabellen!B:B,MATCH(C:C,Notentabellen!A:A,1)),IF(AND(Notentabellen!$J$3=1,Notentabellen!$L$3=2),INDEX(Notentabellen!C:C,MATCH(C:C,Notentabellen!A:A,1)),IF(AND(Notentabellen!$J$3=2,Notentabellen!$L$3=1),INDEX(Notentabellen!D:D,MATCH(C:C,Notentabellen!A:A,1)),IF(AND(Notentabellen!$J$3=2,Notentabellen!$L$3=2),INDEX(Notentabellen!E:E,MATCH(C:C,Notentabellen!A:A,1)),IF(AND(Notentabellen!$J$3 =3,Notentabellen!$L$3=1), INDEX(Notentabellen!F:F,MATCH(C:C,Notentabellen!A:A,1)), IF(AND(Notentabellen!$J$3 =3,Notentabellen!$L$3=2), INDEX(Notentabellen!G:G,MATCH(C:C,Notentabellen!A:A,1)))))))))","v":""}]
["",{"$f":"IF(C12=\"\",\"\",INDEX(Laufliste!B:B,_xlfn.AGGREGATE(15,6,ROW(Laufliste!G:G)/(Laufliste!G:G=C12),COUNTIF($C$4:C12,C12)),1))","v":""},{"$f":"IF(ISERROR(_xlfn.AGGREGATE(15,6,Laufliste!G:G,ROW()-3)),\"\",IF(ROWS($A$4:A12)<=Hilfsregister!$C$2,_xlfn.AGGREGATE(15,6,Laufliste!G:G,ROW()-3),\"\"))","v":""},{"$f":"IF(C12 = \"\", \"\", IF(AND(Notentabellen!$J$3=1,Notentabellen!$L$3=1),INDEX(Notentabellen!B:B,MATCH(C:C,Notentabellen!A:A,1)),IF(AND(Notentabellen!$J$3=1,Notentabellen!$L$3=2),INDEX(Notentabellen!C:C,MATCH(C:C,Notentabellen!A:A,1)),IF(AND(Notentabellen!$J$3=2,Notentabellen!$L$3=1),INDEX(Notentabellen!D:D,MATCH(C:C,Notentabellen!A:A,1)),IF(AND(Notentabellen!$J$3=2,Notentabellen!$L$3=2),INDEX(Notentabellen!E:E,MATCH(C:C,Notentabellen!A:A,1)),IF(AND(Notentabellen!$J$3 =3,Notentabellen!$L$3=1), INDEX(Notentabellen!F:F,MATCH(C:C,Notentabellen!A:A,1)), IF(AND(Notentabellen!$J$3 =3,Notentabellen!$L$3=2), INDEX(Notentabellen!G:G,MATCH(C:C,Notentabellen!A:A,1)))))))))","v":""}]
["",{"$f":"IF(C13=\"\",\"\",INDEX(Laufliste!B:B,_xlfn.AGGREGATE(15,6,ROW(Laufliste!G:G)/(Laufliste!G:G=C13),COUNTIF($C$4:C13,C13)),1))","v":""},{"$f":"IF(ISERROR(_xlfn.AGGREGATE(15,6,Laufliste!G:G,ROW()-3)),\"\",IF(ROWS($A$4:A13)<=Hilfsregister!$C$2,_xlfn.AGGREGATE(15,6,Laufliste!G:G,ROW()-3),\"\"))","v":""},{"$f":"IF(C13 = \"\", \"\", IF(AND(Notentabellen!$J$3=1,Notentabellen!$L$3=1),INDEX(Notentabellen!B:B,MATCH(C:C,Notentabellen!A:A,1)),IF(AND(Notentabellen!$J$3=1,Notentabellen!$L$3=2),INDEX(Notentabellen!C:C,MATCH(C:C,Notentabellen!A:A,1)),IF(AND(Notentabellen!$J$3=2,Notentabellen!$L$3=1),INDEX(Notentabellen!D:D,MATCH(C:C,Notentabellen!A:A,1)),IF(AND(Notentabellen!$J$3=2,Notentabellen!$L$3=2),INDEX(Notentabellen!E:E,MATCH(C:C,Notentabellen!A:A,1)),IF(AND(Notentabellen!$J$3 =3,Notentabellen!$L$3=1), INDEX(Notentabellen!F:F,MATCH(C:C,Notentabellen!A:A,1)), IF(AND(Notentabellen!$J$3 =3,Notentabellen!$L$3=2), INDEX(Notentabellen!G:G,MATCH(C:C,Notentabellen!A:A,1)))))))))","v":""}]
["",{"$f":"IF(C14=\"\",\"\",INDEX(Laufliste!B:B,_xlfn.AGGREGATE(15,6,ROW(Laufliste!G:G)/(Laufliste!G:G=C14),COUNTIF($C$4:C14,C14)),1))","v":""},{"$f":"IF(ISERROR(_xlfn.AGGREGATE(15,6,Laufliste!G:G,ROW()-3)),\"\",IF(ROWS($A$4:A14)<=Hilfsregister!$C$2,_xlfn.AGGREGATE(15,6,Laufliste!G:G,ROW()-3),\"\"))","v":""},{"$f":"IF(C14 = \"\", \"\", IF(AND(Notentabellen!$J$3=1,Notentabellen!$L$3=1),INDEX(Notentabellen!B:B,MATCH(C:C,Notentabellen!A:A,1)),IF(AND(Notentabellen!$J$3=1,Notentabellen!$L$3=2),INDEX(Notentabellen!C:C,MATCH(C:C,Notentabellen!A:A,1)),IF(AND(Notentabellen!$J$3=2,Notentabellen!$L$3=1),INDEX(Notentabellen!D:D,MATCH(C:C,Notentabellen!A:A,1)),IF(AND(Notentabellen!$J$3=2,Notentabellen!$L$3=2),INDEX(Notentabellen!E:E,MATCH(C:C,Notentabellen!A:A,1)),IF(AND(Notentabellen!$J$3 =3,Notentabellen!$L$3=1), INDEX(Notentabellen!F:F,MATCH(C:C,Notentabellen!A:A,1)), IF(AND(Notentabellen!$J$3 =3,Notentabellen!$L$3=2), INDEX(Notentabellen!G:G,MATCH(C:C,Notentabellen!A:A,1)))))))))","v":""}]
["",{"$f":"IF(C15=\"\",\"\",INDEX(Laufliste!B:B,_xlfn.AGGREGATE(15,6,ROW(Laufliste!G:G)/(Laufliste!G:G=C15),COUNTIF($C$4:C15,C15)),1))","v":""},{"$f":"IF(ISERROR(_xlfn.AGGREGATE(15,6,Laufliste!G:G,ROW()-3)),\"\",IF(ROWS($A$4:A15)<=Hilfsregister!$C$2,_xlfn.AGGREGATE(15,6,Laufliste!G:G,ROW()-3),\"\"))","v":""},{"$f":"IF(C15 = \"\", \"\", IF(AND(Notentabellen!$J$3=1,Notentabellen!$L$3=1),INDEX(Notentabellen!B:B,MATCH(C:C,Notentabellen!A:A,1)),IF(AND(Notentabellen!$J$3=1,Notentabellen!$L$3=2),INDEX(Notentabellen!C:C,MATCH(C:C,Notentabellen!A:A,1)),IF(AND(Notentabellen!$J$3=2,Notentabellen!$L$3=1),INDEX(Notentabellen!D:D,MATCH(C:C,Notentabellen!A:A,1)),IF(AND(Notentabellen!$J$3=2,Notentabellen!$L$3=2),INDEX(Notentabellen!E:E,MATCH(C:C,Notentabellen!A:A,1)),IF(AND(Notentabellen!$J$3 =3,Notentabellen!$L$3=1), INDEX(Notentabellen!F:F,MATCH(C:C,Notentabellen!A:A,1)), IF(AND(Notentabellen!$J$3 =3,Notentabellen!$L$3=2), INDEX(Notentabellen!G:G,MATCH(C:C,Notentabellen!A:A,1)))))))))","v":""}]
["",{"$f":"IF(C16=\"\",\"\",INDEX(Laufliste!B:B,_xlfn.AGGREGATE(15,6,ROW(Laufliste!G:G)/(Laufliste!G:G=C16),COUNTIF($C$4:C16,C16)),1))","v":""},{"$f":"IF(ISERROR(_xlfn.AGGREGATE(15,6,Laufliste!G:G,ROW()-3)),\"\",IF(ROWS($A$4:A16)<=Hilfsregister!$C$2,_xlfn.AGGREGATE(15,6,Laufliste!G:G,ROW()-3),\"\"))","v":""},{"$f":"IF(C16 = \"\", \"\", IF(AND(Notentabellen!$J$3=1,Notentabellen!$L$3=1),INDEX(Notentabellen!B:B,MATCH(C:C,Notentabellen!A:A,1)),IF(AND(Notentabellen!$J$3=1,Notentabellen!$L$3=2),INDEX(Notentabellen!C:C,MATCH(C:C,Notentabellen!A:A,1)),IF(AND(Notentabellen!$J$3=2,Notentabellen!$L$3=1),INDEX(Notentabellen!D:D,MATCH(C:C,Notentabellen!A:A,1)),IF(AND(Notentabellen!$J$3=2,Notentabellen!$L$3=2),INDEX(Notentabellen!E:E,MATCH(C:C,Notentabellen!A:A,1)),IF(AND(Notentabellen!$J$3 =3,Notentabellen!$L$3=1), INDEX(Notentabellen!F:F,MATCH(C:C,Notentabellen!A:A,1)), IF(AND(Notentabellen!$J$3 =3,Notentabellen!$L$3=2), INDEX(Notentabellen!G:G,MATCH(C:C,Notentabellen!A:A,1)))))))))","v":""}]
["",{"$f":"IF(C17=\"\",\"\",INDEX(Laufliste!B:B,_xlfn.AGGREGATE(15,6,ROW(Laufliste!G:G)/(Laufliste!G:G=C17),COUNTIF($C$4:C17,C17)),1))","v":""},{"$f":"IF(ISERROR(_xlfn.AGGREGATE(15,6,Laufliste!G:G,ROW()-3)),\"\",IF(ROWS($A$4:A17)<=Hilfsregister!$C$2,_xlfn.AGGREGATE(15,6,Laufliste!G:G,ROW()-3),\"\"))","v":""},{"$f":"IF(C17 = \"\", \"\", IF(AND(Notentabellen!$J$3=1,Notentabellen!$L$3=1),INDEX(Notentabellen!B:B,MATCH(C:C,Notentabellen!A:A,1)),IF(AND(Notentabellen!$J$3=1,Notentabellen!$L$3=2),INDEX(Notentabellen!C:C,MATCH(C:C,Notentabellen!A:A,1)),IF(AND(Notentabellen!$J$3=2,Notentabellen!$L$3=1),INDEX(Notentabellen!D:D,MATCH(C:C,Notentabellen!A:A,1)),IF(AND(Notentabellen!$J$3=2,Notentabellen!$L$3=2),INDEX(Notentabellen!E:E,MATCH(C:C,Notentabellen!A:A,1)),IF(AND(Notentabellen!$J$3 =3,Notentabellen!$L$3=1), INDEX(Notentabellen!F:F,MATCH(C:C,Notentabellen!A:A,1)), IF(AND(Notentabellen!$J$3 =3,Notentabellen!$L$3=2), INDEX(Notentabellen!G:G,MATCH(C:C,Notentabellen!A:A,1)))))))))","v":""}]
["",{"$f":"IF(C18=\"\",\"\",INDEX(Laufliste!B:B,_xlfn.AGGREGATE(15,6,ROW(Laufliste!G:G)/(Laufliste!G:G=C18),COUNTIF($C$4:C18,C18)),1))","v":""},{"$f":"IF(ISERROR(_xlfn.AGGREGATE(15,6,Laufliste!G:G,ROW()-3)),\"\",IF(ROWS($A$4:A18)<=Hilfsregister!$C$2,_xlfn.AGGREGATE(15,6,Laufliste!G:G,ROW()-3),\"\"))","v":""},{"$f":"IF(C18 = \"\", \"\", IF(AND(Notentabellen!$J$3=1,Notentabellen!$L$3=1),INDEX(Notentabellen!B:B,MATCH(C:C,Notentabellen!A:A,1)),IF(AND(Notentabellen!$J$3=1,Notentabellen!$L$3=2),INDEX(Notentabellen!C:C,MATCH(C:C,Notentabellen!A:A,1)),IF(AND(Notentabellen!$J$3=2,Notentabellen!$L$3=1),INDEX(Notentabellen!D:D,MATCH(C:C,Notentabellen!A:A,1)),IF(AND(Notentabellen!$J$3=2,Notentabellen!$L$3=2),INDEX(Notentabellen!E:E,MATCH(C:C,Notentabellen!A:A,1)),IF(AND(Notentabellen!$J$3 =3,Notentabellen!$L$3=1), INDEX(Notentabellen!F:F,MATCH(C:C,Notentabellen!A:A,1)), IF(AND(Notentabellen!$J$3 =3,Notentabellen!$L$3=2), INDEX(Notentabellen!G:G,MATCH(C:C,Notentabellen!A:A,1)))))))))","v":""}]
["",{"$f":"IF(C19=\"\",\"\",INDEX(Laufliste!B:B,_xlfn.AGGREGATE(15,6,ROW(Laufliste!G:G)/(Laufliste!G:G=C19),COUNTIF($C$4:C19,C19)),1))","v":""},{"$f":"IF(ISERROR(_xlfn.AGGREGATE(15,6,Laufliste!G:G,ROW()-3)),\"\",IF(ROWS($A$4:A19)<=Hilfsregister!$C$2,_xlfn.AGGREGATE(15,6,Laufliste!G:G,ROW()-3),\"\"))","v":""},{"$f":"IF(C19 = \"\", \"\", IF(AND(Notentabellen!$J$3=1,Notentabellen!$L$3=1),INDEX(Notentabellen!B:B,MATCH(C:C,Notentabellen!A:A,1)),IF(AND(Notentabellen!$J$3=1,Notentabellen!$L$3=2),INDEX(Notentabellen!C:C,MATCH(C:C,Notentabellen!A:A,1)),IF(AND(Notentabellen!$J$3=2,Notentabellen!$L$3=1),INDEX(Notentabellen!D:D,MATCH(C:C,Notentabellen!A:A,1)),IF(AND(Notentabellen!$J$3=2,Notentabellen!$L$3=2),INDEX(Notentabellen!E:E,MATCH(C:C,Notentabellen!A:A,1)),IF(AND(Notentabellen!$J$3 =3,Notentabellen!$L$3=1), INDEX(Notentabellen!F:F,MATCH(C:C,Notentabellen!A:A,1)), IF(AND(Notentabellen!$J$3 =3,Notentabellen!$L$3=2), INDEX(Notentabellen!G:G,MATCH(C:C,Notentabellen!A:A,1)))))))))","v":""}]
["",{"$f":"IF(C20=\"\",\"\",INDEX(Laufliste!B:B,_xlfn.AGGREGATE(15,6,ROW(Laufliste!G:G)/(Laufliste!G:G=C20),COUNTIF($C$4:C20,C20)),1))","v":""},{"$f":"IF(ISERROR(_xlfn.AGGREGATE(15,6,Laufliste!G:G,ROW()-3)),\"\",IF(ROWS($A$4:A20)<=Hilfsregister!$C$2,_xlfn.AGGREGATE(15,6,Laufliste!G:G,ROW()-3),\"\"))","v":""},{"$f":"IF(C20 = \"\", \"\", IF(AND(Notentabellen!$J$3=1,Notentabellen!$L$3=1),INDEX(Notentabellen!B:B,MATCH(C:C,Notentabellen!A:A,1)),IF(AND(Notentabellen!$J$3=1,Notentabellen!$L$3=2),INDEX(Notentabellen!C:C,MATCH(C:C,Notentabellen!A:A,1)),IF(AND(Notentabellen!$J$3=2,Notentabellen!$L$3=1),INDEX(Notentabellen!D:D,MATCH(C:C,Notentabellen!A:A,1)),IF(AND(Notentabellen!$J$3=2,Notentabellen!$L$3=2),INDEX(Notentabellen!E:E,MATCH(C:C,Notentabellen!A:A,1)),IF(AND(Notentabellen!$J$3 =3,Notentabellen!$L$3=1), INDEX(Notentabellen!F:F,MATCH(C:C,Notentabellen!A:A,1)), IF(AND(Notentabellen!$J$3 =3,Notentabellen!$L$3=2), INDEX(Notentabellen!G:G,MATCH(C:C,Notentabellen!A:A,1)))))))))","v":""}]
["",{"$f":"IF(C21=\"\",\"\",INDEX(Laufliste!B:B,_xlfn.AGGREGATE(15,6,ROW(Laufliste!G:G)/(Laufliste!G:G=C21),COUNTIF($C$4:C21,C21)),1))","v":""},{"$f":"IF(ISERROR(_xlfn.AGGREGATE(15,6,Laufliste!G:G,ROW()-3)),\"\",IF(ROWS($A$4:A21)<=Hilfsregister!$C$2,_xlfn.AGGREGATE(15,6,Laufliste!G:G,ROW()-3),\"\"))","v":""},{"$f":"IF(C21 = \"\", \"\", IF(AND(Notentabellen!$J$3=1,Notentabellen!$L$3=1),INDEX(Notentabellen!B:B,MATCH(C:C,Notentabellen!A:A,1)),IF(AND(Notentabellen!$J$3=1,Notentabellen!$L$3=2),INDEX(Notentabellen!C:C,MATCH(C:C,Notentabellen!A:A,1)),IF(AND(Notentabellen!$J$3=2,Notentabellen!$L$3=1),INDEX(Notentabellen!D:D,MATCH(C:C,Notentabellen!A:A,1)),IF(AND(Notentabellen!$J$3=2,Notentabellen!$L$3=2),INDEX(Notentabellen!E:E,MATCH(C:C,Notentabellen!A:A,1)),IF(AND(Notentabellen!$J$3 =3,Notentabellen!$L$3=1), INDEX(Notentabellen!F:F,MATCH(C:C,Notentabellen!A:A,1)), IF(AND(Notentabellen!$J$3 =3,Notentabellen!$L$3=2), INDEX(Notentabellen!G:G,MATCH(C:C,Notentabellen!A:A,1)))))))))","v":""}]
["",{"$f":"IF(C22=\"\",\"\",INDEX(Laufliste!B:B,_xlfn.AGGREGATE(15,6,ROW(Laufliste!G:G)/(Laufliste!G:G=C22),COUNTIF($C$4:C22,C22)),1))","v":""},{"$f":"IF(ISERROR(_xlfn.AGGREGATE(15,6,Laufliste!G:G,ROW()-3)),\"\",IF(ROWS($A$4:A22)<=Hilfsregister!$C$2,_xlfn.AGGREGATE(15,6,Laufliste!G:G,ROW()-3),\"\"))","v":""},{"$f":"IF(C22 = \"\", \"\", IF(AND(Notentabellen!$J$3=1,Notentabellen!$L$3=1),INDEX(Notentabellen!B:B,MATCH(C:C,Notentabellen!A:A,1)),IF(AND(Notentabellen!$J$3=1,Notentabellen!$L$3=2),INDEX(Notentabellen!C:C,MATCH(C:C,Notentabellen!A:A,1)),IF(AND(Notentabellen!$J$3=2,Notentabellen!$L$3=1),INDEX(Notentabellen!D:D,MATCH(C:C,Notentabellen!A:A,1)),IF(AND(Notentabellen!$J$3=2,Notentabellen!$L$3=2),INDEX(Notentabellen!E:E,MATCH(C:C,Notentabellen!A:A,1)),IF(AND(Notentabellen!$J$3 =3,Notentabellen!$L$3=1), INDEX(Notentabellen!F:F,MATCH(C:C,Notentabellen!A:A,1)), IF(AND(Notentabellen!$J$3 =3,Notentabellen!$L$3=2), INDEX(Notentabellen!G:G,MATCH(C:C,Notentabellen!A:A,1)))))))))","v":""}]
["",{"$f":"IF(C23=\"\",\"\",INDEX(Laufliste!B:B,_xlfn.AGGREGATE(15,6,ROW(Laufliste!G:G)/(Laufliste!G:G=C23),COUNTIF($C$4:C23,C23)),1))","v":""},{"$f":"IF(ISERROR(_xlfn.AGGREGATE(15,6,Laufliste!G:G,ROW()-3)),\"\",IF(ROWS($A$4:A23)<=Hilfsregister!$C$2,_xlfn.AGGREGATE(15,6,Laufliste!G:G,ROW()-3),\"\"))","v":""},{"$f":"IF(C23 = \"\", \"\", IF(AND(Notentabellen!$J$3=1,Notentabellen!$L$3=1),INDEX(Notentabellen!B:B,MATCH(C:C,Notentabellen!A:A,1)),IF(AND(Notentabellen!$J$3=1,Notentabellen!$L$3=2),INDEX(Notentabellen!C:C,MATCH(C:C,Notentabellen!A:A,1)),IF(AND(Notentabellen!$J$3=2,Notentabellen!$L$3=1),INDEX(Notentabellen!D:D,MATCH(C:C,Notentabellen!A:A,1)),IF(AND(Notentabellen!$J$3=2,Notentabellen!$L$3=2),INDEX(Notentabellen!E:E,MATCH(C:C,Notentabellen!A:A,1)),IF(AND(Notentabellen!$J$3 =3,Notentabellen!$L$3=1), INDEX(Notentabellen!F:F,MATCH(C:C,Notentabellen!A:A,1)), IF(AND(Notentabellen!$J$3 =3,Notentabellen!$L$3=2), INDEX(Notentabellen!G:G,MATCH(C:C,Notentabellen!A:A,1)))))))))","v":""}]
["",{"$f":"IF(C24=\"\",\"\",INDEX(Laufliste!B:B,_xlfn.AGGREGATE(15,6,ROW(Laufliste!G:G)/(Laufliste!G:G=C24),COUNTIF($C$4:C24,C24)),1))","v":""},{"$f":"IF(ISERROR(_xlfn.AGGREGATE(15,6,Laufliste!G:G,ROW()-3)),\"\",IF(ROWS($A$4:A24)<=Hilfsregister!$C$2,_xlfn.AGGREGATE(15,6,Laufliste!G:G,ROW()-3),\"\"))","v":""},{"$f":"IF(C24 = \"\", \"\", IF(AND(Notentabellen!$J$3=1,Notentabellen!$L$3=1),INDEX(Notentabellen!B:B,MATCH(C:C,Notentabellen!A:A,1)),IF(AND(Notentabellen!$J$3=1,Notentabellen!$L$3=2),INDEX(Notentabellen!C:C,MATCH(C:C,Notentabellen!A:A,1)),IF(AND(Notentabellen!$J$3=2,Notentabellen!$L$3=1),INDEX(Notentabellen!D:D,MATCH(C:C,Notentabellen!A:A,1)),IF(AND(Notentabellen!$J$3=2,Notentabellen!$L$3=2),INDEX(Notentabellen!E:E,MATCH(C:C,Notentabellen!A:A,1)),IF(AND(Notentabellen!$J$3 =3,Notentabellen!$L$3=1), INDEX(Notentabellen!F:F,MATCH(C:C,Notentabellen!A:A,1)), IF(AND(Notentabellen!$J$3 =3,Notentabellen!$L$3=2), INDEX(Notentabellen!G:G,MATCH(C:C,Notentabellen!A:A,1)))))))))","v":""}]
["",{"$f":"IF(C25=\"\",\"\",INDEX(Laufliste!B:B,_xlfn.AGGREGATE(15,6,ROW(Laufliste!G:G)/(Laufliste!G:G=C25),COUNTIF($C$4:C25,C25)),1))","v":""},{"$f":"IF(ISERROR(_xlfn.AGGREGATE(15,6,Laufliste!G:G,ROW()-3)),\"\",IF(ROWS($A$4:A25)<=Hilfsregister!$C$2,_xlfn.AGGREGATE(15,6,Laufliste!G:G,ROW()-3),\"\"))","v":""},{"$f":"IF(C25 = \"\", \"\", IF(AND(Notentabellen!$J$3=1,Notentabellen!$L$3=1),INDEX(Notentabellen!B:B,MATCH(C:C,Notentabellen!A:A,1)),IF(AND(Notentabellen!$J$3=1,Notentabellen!$L$3=2),INDEX(Notentabellen!C:C,MATCH(C:C,Notentabellen!A:A,1)),IF(AND(Notentabellen!$J$3=2,Notentabellen!$L$3=1),INDEX(Notentabellen!D:D,MATCH(C:C,Notentabellen!A:A,1)),IF(AND(Notentabellen!$J$3=2,Notentabellen!$L$3=2),INDEX(Notentabellen!E:E,MATCH(C:C,Notentabellen!A:A,1)),IF(AND(Notentabellen!$J$3 =3,Notentabellen!$L$3=1), INDEX(Notentabellen!F:F,MATCH(C:C,Notentabellen!A:A,1)), IF(AND(Notentabellen!$J$3 =3,Notentabellen!$L$3=2), INDEX(Notentabellen!G:G,MATCH(C:C,Notentabellen!A:A,1)))))))))","v":""}]
["",{"$f":"IF(C26=\"\",\"\",INDEX(Laufliste!B:B,_xlfn.AGGREGATE(15,6,ROW(Laufliste!G:G)/(Laufliste!G:G=C26),COUNTIF($C$4:C26,C26)),1))","v":""},{"$f":"IF(ISERROR(_xlfn.AGGREGATE(15,6,Laufliste!G:G,ROW()-3)),\"\",IF(ROWS($A$4:A26)<=Hilfsregister!$C$2,_xlfn.AGGREGATE(15,6,Laufliste!G:G,ROW()-3),\"\"))","v":""},{"$f":"IF(C26 = \"\", \"\", IF(AND(Notentabellen!$J$3=1,Notentabellen!$L$3=1),INDEX(Notentabellen!B:B,MATCH(C:C,Notentabellen!A:A,1)),IF(AND(Notentabellen!$J$3=1,Notentabellen!$L$3=2),INDEX(Notentabellen!C:C,MATCH(C:C,Notentabellen!A:A,1)),IF(AND(Notentabellen!$J$3=2,Notentabellen!$L$3=1),INDEX(Notentabellen!D:D,MATCH(C:C,Notentabellen!A:A,1)),IF(AND(Notentabellen!$J$3=2,Notentabellen!$L$3=2),INDEX(Notentabellen!E:E,MATCH(C:C,Notentabellen!A:A,1)),IF(AND(Notentabellen!$J$3 =3,Notentabellen!$L$3=1), INDEX(Notentabellen!F:F,MATCH(C:C,Notentabellen!A:A,1)), IF(AND(Notentabellen!$J$3 =3,Notentabellen!$L$3=2), INDEX(Notentabellen!G:G,MATCH(C:C,Notentabellen!A:A,1)))))))))","v":""}]
["",{"$f":"IF(C27=\"\",\"\",INDEX(Laufliste!B:B,_xlfn.AGGREGATE(15,6,ROW(Laufliste!G:G)/(Laufliste!G:G=C27),COUNTIF($C$4:C27,C27)),1))","v":""},{"$f":"IF(ISERROR(_xlfn.AGGREGATE(15,6,Laufliste!G:G,ROW()-3)),\"\",IF(ROWS($A$4:A27)<=Hilfsregister!$C$2,_xlfn.AGGREGATE(15,6,Laufliste!G:G,ROW()-3),\"\"))","v":""},{"$f":"IF(C27 = \"\", \"\", IF(AND(Notentabellen!$J$3=1,Notentabellen!$L$3=1),INDEX(Notentabellen!B:B,MATCH(C:C,Notentabellen!A:A,1)),IF(AND(Notentabellen!$J$3=1,Notentabellen!$L$3=2),INDEX(Notentabellen!C:C,MATCH(C:C,Notentabellen!A:A,1)),IF(AND(Notentabellen!$J$3=2,Notentabellen!$L$3=1),INDEX(Notentabellen!D:D,MATCH(C:C,Notentabellen!A:A,1)),IF(AND(Notentabellen!$J$3=2,Notentabellen!$L$3=2),INDEX(Notentabellen!E:E,MATCH(C:C,Notentabellen!A:A,1)),IF(AND(Notentabellen!$J$3 =3,Notentabellen!$L$3=1), INDEX(Notentabellen!F:F,MATCH(C:C,Notentabellen!A:A,1)), IF(AND(Notentabellen!$J$3 =3,Notentabellen!$L$3=2), INDEX(Notentabellen!G:G,MATCH(C:C,Notentabellen!A:A,1)))))))))","v":""}]
["",{"$f":"IF(C28=\"\",\"\",INDEX(Laufliste!B:B,_xlfn.AGGREGATE(15,6,ROW(Laufliste!G:G)/(Laufliste!G:G=C28),COUNTIF($C$4:C28,C28)),1))","v":""},{"$f":"IF(ISERROR(_xlfn.AGGREGATE(15,6,Laufliste!G:G,ROW()-3)),\"\",IF(ROWS($A$4:A28)<=Hilfsregister!$C$2,_xlfn.AGGREGATE(15,6,Laufliste!G:G,ROW()-3),\"\"))","v":""},{"$f":"IF(C28 = \"\", \"\", IF(AND(Notentabellen!$J$3=1,Notentabellen!$L$3=1),INDEX(Notentabellen!B:B,MATCH(C:C,Notentabellen!A:A,1)),IF(AND(Notentabellen!$J$3=1,Notentabellen!$L$3=2),INDEX(Notentabellen!C:C,MATCH(C:C,Notentabellen!A:A,1)),IF(AND(Notentabellen!$J$3=2,Notentabellen!$L$3=1),INDEX(Notentabellen!D:D,MATCH(C:C,Notentabellen!A:A,1)),IF(AND(Notentabellen!$J$3=2,Notentabellen!$L$3=2),INDEX(Notentabellen!E:E,MATCH(C:C,Notentabellen!A:A,1)),IF(AND(Notentabellen!$J$3 =3,Notentabellen!$L$3=1), INDEX(Notentabellen!F:F,MATCH(C:C,Notentabellen!A:A,1)), IF(AND(Notentabellen!$J$3 =3,Notentabellen!$L$3=2), INDEX(Notentabellen!G:G,MATCH(C:C,Notentabellen!A:A,1)))))))))","v":""}]
["",{"$f":"IF(C29=\"\",\"\",INDEX(Laufliste!B:B,_xlfn.AGGREGATE(15,6,ROW(Laufliste!G:G)/(Laufliste!G:G=C29),COUNTIF($C$4:C29,C29)),1))","v":""},{"$f":"IF(ISERROR(_xlfn.AGGREGATE(15,6,Laufliste!G:G,ROW()-3)),\"\",IF(ROWS($A$4:A29)<=Hilfsregister!$C$2,_xlfn.AGGREGATE(15,6,Laufliste!G:G,ROW()-3),\"\"))","v":""},{"$f":"IF(C29 = \"\", \"\", IF(AND(Notentabellen!$J$3=1,Notentabellen!$L$3=1),INDEX(Notentabellen!B:B,MATCH(C:C,Notentabellen!A:A,1)),IF(AND(Notentabellen!$J$3=1,Notentabellen!$L$3=2),INDEX(Notentabellen!C:C,MATCH(C:C,Notentabellen!A:A,1)),IF(AND(Notentabellen!$J$3=2,Notentabellen!$L$3=1),INDEX(Notentabellen!D:D,MATCH(C:C,Notentabellen!A:A,1)),IF(AND(Notentabellen!$J$3=2,Notentabellen!$L$3=2),INDEX(Notentabellen!E:E,MATCH(C:C,Notentabellen!A:A,1)),IF(AND(Notentabellen!$J$3 =3,Notentabellen!$L$3=1), INDEX(Notentabellen!F:F,MATCH(C:C,Notentabellen!A:A,1)), IF(AND(Notentabellen!$J$3 =3,Notentabellen!$L$3=2), INDEX(Notentabellen!G:G,MATCH(C:C,Notentabellen!A:A,1)))))))))","v":""}]
["",{"$f":"IF(C30=\"\",\"\",INDEX(Laufliste!B:B,_xlfn.AGGREGATE(15,6,ROW(Laufliste!G:G)/(Laufliste!G:G=C30),COUNTIF($C$4:C30,C30)),1))","v":""},{"$f":"IF(ISERROR(_xlfn.AGGREGATE(15,6,Laufliste!G:G,ROW()-3)),\"\",IF(ROWS($A$4:A30)<=Hilfsregister!$C$2,_xlfn.AGGREGATE(15,6,Laufliste!G:G,ROW()-3),\"\"))","v":""},{"$f":"IF(C30 = \"\", \"\", IF(AND(Notentabellen!$J$3=1,Notentabellen!$L$3=1),INDEX(Notentabellen!B:B,MATCH(C:C,Notentabellen!A:A,1)),IF(AND(Notentabellen!$J$3=1,Notentabellen!$L$3=2),INDEX(Notentabellen!C:C,MATCH(C:C,Notentabellen!A:A,1)),IF(AND(Notentabellen!$J$3=2,Notentabellen!$L$3=1),INDEX(Notentabellen!D:D,MATCH(C:C,Notentabellen!A:A,1)),IF(AND(Notentabellen!$J$3=2,Notentabellen!$L$3=2),INDEX(Notentabellen!E:E,MATCH(C:C,Notentabellen!A:A,1)),IF(AND(Notentabellen!$J$3 =3,Notentabellen!$L$3=1), INDEX(Notentabellen!F:F,MATCH(C:C,Notentabellen!A:A,1)), IF(AND(Notentabellen!$J$3 =3,Notentabellen!$L$3=2), INDEX(Notentabellen!G:G,MATCH(C:C,Notentabellen!A:A,1)))))))))","v":""}]
["",{"$f":"IF(C31=\"\",\"\",INDEX(Laufliste!B:B,_xlfn.AGGREGATE(15,6,ROW(Laufliste!G:G)/(Laufliste!G:G=C31),COUNTIF($C$4:C31,C31)),1))","v":""},{"$f":"IF(ISERROR(_xlfn.AGGREGATE(15,6,Laufliste!G:G,ROW()-3)),\"\",IF(ROWS($A$4:A31)<=Hilfsregister!$C$2,_xlfn.AGGREGATE(15,6,Laufliste!G:G,ROW()-3),\"\"))","v":""},{"$f":"IF(C31 = \"\", \"\", IF(AND(Notentabellen!$J$3=1,Notentabellen!$L$3=1),INDEX(Notentabellen!B:B,MATCH(C:C,Notentabellen!A:A,1)),IF(AND(Notentabellen!$J$3=1,Notentabellen!$L$3=2),INDEX(Notentabellen!C:C,MATCH(C:C,Notentabellen!A:A,1)),IF(AND(Notentabellen!$J$3=2,Notentabellen!$L$3=1),INDEX(Notentabellen!D:D,MATCH(C:C,Notentabellen!A:A,1)),IF(AND(Notentabellen!$J$3=2,Notentabellen!$L$3=2),INDEX(Notentabellen!E:E,MATCH(C:C,Notentabellen!A:A,1)),IF(AND(Notentabellen!$J$3 =3,Notentabellen!$L$3=1), INDEX(Notentabellen!F:F,MATCH(C:C,Notentabellen!A:A,1)), IF(AND(Notentabellen!$J$3 =3,Notentabellen!$L$3=2), INDEX(Notentabellen!G:G,MATCH(C:C,Notentabellen!A:A,1)))))))))","v":""}]
["",{"$f":"IF(C32=\"\",\"\",INDEX(Laufliste!B:B,_xlfn.AGGREGATE(15,6,ROW(Laufliste!G:G)/(Laufliste!G:G=C32),COUNTIF($C$4:C32,C32)),1))","v":""},{"$f":"IF(ISERROR(_xlfn.AGGREGATE(15,6,Laufliste!G:G,ROW()-3)),\"\",IF(ROWS($A$4:A32)<=Hilfsregister!$C$2,_xlfn.AGGREGATE(15,6,Laufliste!G:G,ROW()-3),\"\"))","v":""},{"$f":"IF(C32 = \"\", \"\", IF(AND(Notentabellen!$J$3=1,Notentabellen!$L$3=1),INDEX(Notentabellen!B:B,MATCH(C:C,Notentabellen!A:A,1)),IF(AND(Notentabellen!$J$3=1,Notentabellen!$L$3=2),INDEX(Notentabellen!C:C,MATCH(C:C,Notentabellen!A:A,1)),IF(AND(Notentabellen!$J$3=2,Notentabellen!$L$3=1),INDEX(Notentabellen!D:D,MATCH(C:C,Notentabellen!A:A,1)),IF(AND(Notentabellen!$J$3=2,Notentabellen!$L$3=2),INDEX(Notentabellen!E:E,MATCH(C:C,Notentabellen!A:A,1)),IF(AND(Notentabellen!$J$3 =3,Notentabellen!$L$3=1), INDEX(Notentabellen!F:F,MATCH(C:C,Notentabellen!A:A,1)), IF(AND(Notentabellen!$J$3 =3,Notentabellen!$L$3=2), INDEX(Notentabellen!G:G,MATCH(C:C,Notentabellen!A:A,1)))))))))","v":""}]
["",{"$f":"IF(C33=\"\",\"\",INDEX(Laufliste!B:B,_xlfn.AGGREGATE(15,6,ROW(Laufliste!G:G)/(Laufliste!G:G=C33),COUNTIF($C$4:C33,C33)),1))","v":""},{"$f":"IF(ISERROR(_xlfn.AGGREGATE(15,6,Laufliste!G:G,ROW()-3)),\"\",IF(ROWS($A$4:A33)<=Hilfsregister!$C$2,_xlfn.AGGREGATE(15,6,Laufliste!G:G,ROW()-3),\"\"))","v":""},{"$f":"IF(C33 = \"\", \"\", IF(AND(Notentabellen!$J$3=1,Notentabellen!$L$3=1),INDEX(Notentabellen!B:B,MATCH(C:C,Notentabellen!A:A,1)),IF(AND(Notentabellen!$J$3=1,Notentabellen!$L$3=2),INDEX(Notentabellen!C:C,MATCH(C:C,Notentabellen!A:A,1)),IF(AND(Notentabellen!$J$3=2,Notentabellen!$L$3=1),INDEX(Notentabellen!D:D,MATCH(C:C,Notentabellen!A:A,1)),IF(AND(Notentabellen!$J$3=2,Notentabellen!$L$3=2),INDEX(Notentabellen!E:E,MATCH(C:C,Notentabellen!A:A,1)),IF(AND(Notentabellen!$J$3 =3,Notentabellen!$L$3=1), INDEX(Notentabellen!F:F,MATCH(C:C,Notentabellen!A:A,1)), IF(AND(Notentabellen!$J$3 =3,Notentabellen!$L$3=2), INDEX(Notentabellen!G:G,MATCH(C:C,Notentabellen!A:A,1)))))))))","v":""}]
["",{"$f":"IF(C34=\"\",\"\",INDEX(Laufliste!B:B,_xlfn.AGGREGATE(15,6,ROW(Laufliste!G:G)/(Laufliste!G:G=C34),COUNTIF($C$4:C34,C34)),1))","v":""},{"$f":"IF(ISERROR(_xlfn.AGGREGATE(15,6,Laufliste!G:G,ROW()-3)),\"\",IF(ROWS($A$4:A34)<=Hilfsregister!$C$2,_xlfn.AGGREGATE(15,6,Laufliste!G:G,ROW()-3),\"\"))","v":""},{"$f":"IF(C34 = \"\", \"\", IF(AND(Notentabellen!$J$3=1,Notentabellen!$L$3=1),INDEX(Notentabellen!B:B,MATCH(C:C,Notentabellen!A:A,1)),IF(AND(Notentabellen!$J$3=1,Notentabellen!$L$3=2),INDEX(Notentabellen!C:C,MATCH(C:C,Notentabellen!A:A,1)),IF(AND(Notentabellen!$J$3=2,Notentabellen!$L$3=1),INDEX(Notentabellen!D:D,MATCH(C:C,Notentabellen!A:A,1)),IF(AND(Notentabellen!$J$3=2,Notentabellen!$L$3=2),INDEX(Notentabellen!E:E,MATCH(C:C,Notentabellen!A:A,1)),IF(AND(Notentabellen!$J$3 =3,Notentabellen!$L$3=1), INDEX(Notentabellen!F:F,MATCH(C:C,Notentabellen!A:A,1)), IF(AND(Notentabellen!$J$3 =3,Notentabellen!$L$3=2), INDEX(Notentabellen!G:G,MATCH(C:C,Notentabellen!A:A,1)))))))))","v":""}]
["",{"$f":"IF(C35=\"\",\"\",INDEX(Laufliste!B:B,_xlfn.AGGREGATE(15,6,ROW(Laufliste!G:G)/(Laufliste!G:G=C35),COUNTIF($C$4:C35,C35)),1))","v":""},{"$f":"IF(ISERROR(_xlfn.AGGREGATE(15,6,Laufliste!G:G,ROW()-3)),\"\",IF(ROWS($A$4:A35)<=Hilfsregister!$C$2,_xlfn.AGGREGATE(15,6,Laufliste!G:G,ROW()-3),\"\"))","v":""},{"$f":"IF(C35 = \"\", \"\", IF(AND(Notentabellen!$J$3=1,Notentabellen!$L$3=1),INDEX(Notentabellen!B:B,MATCH(C:C,Notentabellen!A:A,1)),IF(AND(Notentabellen!$J$3=1,Notentabellen!$L$3=2),INDEX(Notentabellen!C:C,MATCH(C:C,Notentabellen!A:A,1)),IF(AND(Notentabellen!$J$3=2,Notentabellen!$L$3=1),INDEX(Notentabellen!D:D,MATCH(C:C,Notentabellen!A:A,1)),IF(AND(Notentabellen!$J$3=2,Notentabellen!$L$3=2),INDEX(Notentabellen!E:E,MATCH(C:C,Notentabellen!A:A,1)),IF(AND(Notentabellen!$J$3 =3,Notentabellen!$L$3=1), INDEX(Notentabellen!F:F,MATCH(C:C,Notentabellen!A:A,1)), IF(AND(Notentabellen!$J$3 =3,Notentabellen!$L$3=2), INDEX(Notentabellen!G:G,MATCH(C:C,Notentabellen!A:A,1)))))))))","v":""}]
["",{"$f":"IF(C36=\"\",\"\",INDEX(Laufliste!B:B,_xlfn.AGGREGATE(15,6,ROW(Laufliste!G:G)/(Laufliste!G:G=C36),COUNTIF($C$4:C36,C36)),1))","v":""},{"$f":"IF(ISERROR(_xlfn.AGGREGATE(15,6,Laufliste!G:G,ROW()-3)),\"\",IF(ROWS($A$4:A36)<=Hilfsregister!$C$2,_xlfn.AGGREGATE(15,6,Laufliste!G:G,ROW()-3),\"\"))","v":""},{"$f":"IF(C36 = \"\", \"\", IF(AND(Notentabellen!$J$3=1,Notentabellen!$L$3=1),INDEX(Notentabellen!B:B,MATCH(C:C,Notentabellen!A:A,1)),IF(AND(Notentabellen!$J$3=1,Notentabellen!$L$3=2),INDEX(Notentabellen!C:C,MATCH(C:C,Notentabellen!A:A,1)),IF(AND(Notentabellen!$J$3=2,Notentabellen!$L$3=1),INDEX(Notentabellen!D:D,MATCH(C:C,Notentabellen!A:A,1)),IF(AND(Notentabellen!$J$3=2,Notentabellen!$L$3=2),INDEX(Notentabellen!E:E,MATCH(C:C,Notentabellen!A:A,1)),IF(AND(Notentabellen!$J$3 =3,Notentabellen!$L$3=1), INDEX(Notentabellen!F:F,MATCH(C:C,Notentabellen!A:A,1)), IF(AND(Notentabellen!$J$3 =3,Notentabellen!$L$3=2), INDEX(Notentabellen!G:G,MATCH(C:C,Notentabellen!A:A,1)))))))))","v":""}]
["",{"$f":"IF(C37=\"\",\"\",INDEX(Laufliste!B:B,_xlfn.AGGREGATE(15,6,ROW(Laufliste!G:G)/(Laufliste!G:G=C37),COUNTIF($C$4:C37,C37)),1))","v":""},{"$f":"IF(ISERROR(_xlfn.AGGREGATE(15,6,Laufliste!G:G,ROW()-3)),\"\",IF(ROWS($A$4:A37)<=Hilfsregister!$C$2,_xlfn.AGGREGATE(15,6,Laufliste!G:G,ROW()-3),\"\"))","v":""},{"$f":"IF(C37 = \"\", \"\", IF(AND(Notentabellen!$J$3=1,Notentabellen!$L$3=1),INDEX(Notentabellen!B:B,MATCH(C:C,Notentabellen!A:A,1)),IF(AND(Notentabellen!$J$3=1,Notentabellen!$L$3=2),INDEX(Notentabellen!C:C,MATCH(C:C,Notentabellen!A:A,1)),IF(AND(Notentabellen!$J$3=2,Notentabellen!$L$3=1),INDEX(Notentabellen!D:D,MATCH(C:C,Notentabellen!A:A,1)),IF(AND(Notentabellen!$J$3=2,Notentabellen!$L$3=2),INDEX(Notentabellen!E:E,MATCH(C:C,Notentabellen!A:A,1)),IF(AND(Notentabellen!$J$3 =3,Notentabellen!$L$3=1), INDEX(Notentabellen!F:F,MATCH(C:C,Notentabellen!A:A,1)), IF(AND(Notentabellen!$J$3 =3,Notentabellen!$L$3=2), INDEX(Notentabellen!G:G,MATCH(C:C,Notentabellen!A:A,1)))))))))","v":""}]
["",{"$f":"IF(C38=\"\",\"\",INDEX(Laufliste!B:B,_xlfn.AGGREGATE(15,6,ROW(Laufliste!G:G)/(Laufliste!G:G=C38),COUNTIF($C$4:C38,C38)),1))","v":""},{"$f":"IF(ISERROR(_xlfn.AGGREGATE(15,6,Laufliste!G:G,ROW()-3)),\"\",IF(ROWS($A$4:A38)<=Hilfsregister!$C$2,_xlfn.AGGREGATE(15,6,Laufliste!G:G,ROW()-3),\"\"))","v":""},{"$f":"IF(C38 = \"\", \"\", IF(AND(Notentabellen!$J$3=1,Notentabellen!$L$3=1),INDEX(Notentabellen!B:B,MATCH(C:C,Notentabellen!A:A,1)),IF(AND(Notentabellen!$J$3=1,Notentabellen!$L$3=2),INDEX(Notentabellen!C:C,MATCH(C:C,Notentabellen!A:A,1)),IF(AND(Notentabellen!$J$3=2,Notentabellen!$L$3=1),INDEX(Notentabellen!D:D,MATCH(C:C,Notentabellen!A:A,1)),IF(AND(Notentabellen!$J$3=2,Notentabellen!$L$3=2),INDEX(Notentabellen!E:E,MATCH(C:C,Notentabellen!A:A,1)),IF(AND(Notentabellen!$J$3 =3,Notentabellen!$L$3=1), INDEX(Notentabellen!F:F,MATCH(C:C,Notentabellen!A:A,1)), IF(AND(Notentabellen!$J$3 =3,Notentabellen!$L$3=2), INDEX(Notentabellen!G:G,MATCH(C:C,Notentabellen!A:A,1)))))))))","v":""}]
["",{"$f":"IF(C39=\"\",\"\",INDEX(Laufliste!B:B,_xlfn.AGGREGATE(15,6,ROW(Laufliste!G:G)/(Laufliste!G:G=C39),COUNTIF($C$4:C39,C39)),1))","v":""},{"$f":"IF(ISERROR(_xlfn.AGGREGATE(15,6,Laufliste!G:G,ROW()-3)),\"\",IF(ROWS($A$4:A39)<=Hilfsregister!$C$2,_xlfn.AGGREGATE(15,6,Laufliste!G:G,ROW()-3),\"\"))","v":""},{"$f":"IF(C39 = \"\", \"\", IF(AND(Notentabellen!$J$3=1,Notentabellen!$L$3=1),INDEX(Notentabellen!B:B,MATCH(C:C,Notentabellen!A:A,1)),IF(AND(Notentabellen!$J$3=1,Notentabellen!$L$3=2),INDEX(Notentabellen!C:C,MATCH(C:C,Notentabellen!A:A,1)),IF(AND(Notentabellen!$J$3=2,Notentabellen!$L$3=1),INDEX(Notentabellen!D:D,MATCH(C:C,Notentabellen!A:A,1)),IF(AND(Notentabellen!$J$3=2,Notentabellen!$L$3=2),INDEX(Notentabellen!E:E,MATCH(C:C,Notentabellen!A:A,1)),IF(AND(Notentabellen!$J$3 =3,Notentabellen!$L$3=1), INDEX(Notentabellen!F:F,MATCH(C:C,Notentabellen!A:A,1)), IF(AND(Notentabellen!$J$3 =3,Notentabellen!$L$3=2), INDEX(Notentabellen!G:G,MATCH(C:C,Notentabellen!A:A,1)))))))))","v":""}]
["",{"$f":"IF(C40=\"\",\"\",INDEX(Laufliste!B:B,_xlfn.AGGREGATE(15,6,ROW(Laufliste!G:G)/(Laufliste!G:G=C40),COUNTIF($C$4:C40,C40)),1))","v":""},{"$f":"IF(ISERROR(_xlfn.AGGREGATE(15,6,Laufliste!G:G,ROW()-3)),\"\",IF(ROWS($A$4:A40)<=Hilfsregister!$C$2,_xlfn.AGGREGATE(15,6,Laufliste!G:G,ROW()-3),\"\"))","v":""},{"$f":"IF(C40 = \"\", \"\", IF(AND(Notentabellen!$J$3=1,Notentabellen!$L$3=1),INDEX(Notentabellen!B:B,MATCH(C:C,Notentabellen!A:A,1)),IF(AND(Notentabellen!$J$3=1,Notentabellen!$L$3=2),INDEX(Notentabellen!C:C,MATCH(C:C,Notentabellen!A:A,1)),IF(AND(Notentabellen!$J$3=2,Notentabellen!$L$3=1),INDEX(Notentabellen!D:D,MATCH(C:C,Notentabellen!A:A,1)),IF(AND(Notentabellen!$J$3=2,Notentabellen!$L$3=2),INDEX(Notentabellen!E:E,MATCH(C:C,Notentabellen!A:A,1)),IF(AND(Notentabellen!$J$3 =3,Notentabellen!$L$3=1), INDEX(Notentabellen!F:F,MATCH(C:C,Notentabellen!A:A,1)), IF(AND(Notentabellen!$J$3 =3,Notentabellen!$L$3=2), INDEX(Notentabellen!G:G,MATCH(C:C,Notentabellen!A:A,1)))))))))","v":""}]
["",{"$f":"IF(C41=\"\",\"\",INDEX(Laufliste!B:B,_xlfn.AGGREGATE(15,6,ROW(Laufliste!G:G)/(Laufliste!G:G=C41),COUNTIF($C$4:C41,C41)),1))","v":""},{"$f":"IF(ISERROR(_xlfn.AGGREGATE(15,6,Laufliste!G:G,ROW()-3)),\"\",IF(ROWS($A$4:A41)<=Hilfsregister!$C$2,_xlfn.AGGREGATE(15,6,Laufliste!G:G,ROW()-3),\"\"))","v":""},{"$f":"IF(C41 = \"\", \"\", IF(AND(Notentabellen!$J$3=1,Notentabellen!$L$3=1),INDEX(Notentabellen!B:B,MATCH(C:C,Notentabellen!A:A,1)),IF(AND(Notentabellen!$J$3=1,Notentabellen!$L$3=2),INDEX(Notentabellen!C:C,MATCH(C:C,Notentabellen!A:A,1)),IF(AND(Notentabellen!$J$3=2,Notentabellen!$L$3=1),INDEX(Notentabellen!D:D,MATCH(C:C,Notentabellen!A:A,1)),IF(AND(Notentabellen!$J$3=2,Notentabellen!$L$3=2),INDEX(Notentabellen!E:E,MATCH(C:C,Notentabellen!A:A,1)),IF(AND(Notentabellen!$J$3 =3,Notentabellen!$L$3=1), INDEX(Notentabellen!F:F,MATCH(C:C,Notentabellen!A:A,1)), IF(AND(Notentabellen!$J$3 =3,Notentabellen!$L$3=2), INDEX(Notentabellen!G:G,MATCH(C:C,Notentabellen!A:A,1)))))))))","v":""}]
["",{"$f":"IF(C42=\"\",\"\",INDEX(Laufliste!B:B,_xlfn.AGGREGATE(15,6,ROW(Laufliste!G:G)/(Laufliste!G:G=C42),COUNTIF($C$4:C42,C42)),1))","v":""},{"$f":"IF(ISERROR(_xlfn.AGGREGATE(15,6,Laufliste!G:G,ROW()-3)),\"\",IF(ROWS($A$4:A42)<=Hilfsregister!$C$2,_xlfn.AGGREGATE(15,6,Laufliste!G:G,ROW()-3),\"\"))","v":""},{"$f":"IF(C42 = \"\", \"\", IF(AND(Notentabellen!$J$3=1,Notentabellen!$L$3=1),INDEX(Notentabellen!B:B,MATCH(C:C,Notentabellen!A:A,1)),IF(AND(Notentabellen!$J$3=1,Notentabellen!$L$3=2),INDEX(Notentabellen!C:C,MATCH(C:C,Notentabellen!A:A,1)),IF(AND(Notentabellen!$J$3=2,Notentabellen!$L$3=1),INDEX(Notentabellen!D:D,MATCH(C:C,Notentabellen!A:A,1)),IF(AND(Notentabellen!$J$3=2,Notentabellen!$L$3=2),INDEX(Notentabellen!E:E,MATCH(C:C,Notentabellen!A:A,1)),IF(AND(Notentabellen!$J$3 =3,Notentabellen!$L$3=1), INDEX(Notentabellen!F:F,MATCH(C:C,Notentabellen!A:A,1)), IF(AND(Notentabellen!$J$3 =3,Notentabellen!$L$3=2), INDEX(Notentabellen!G:G,MATCH(C:C,Notentabellen!A:A,1)))))))))","v":""}]
["",{"$f":"IF(C43=\"\",\"\",INDEX(Laufliste!B:B,_xlfn.AGGREGATE(15,6,ROW(Laufliste!G:G)/(Laufliste!G:G=C43),COUNTIF($C$4:C43,C43)),1))","v":""},{"$f":"IF(ISERROR(_xlfn.AGGREGATE(15,6,Laufliste!G:G,ROW()-3)),\"\",IF(ROWS($A$4:A43)<=Hilfsregister!$C$2,_xlfn.AGGREGATE(15,6,Laufliste!G:G,ROW()-3),\"\"))","v":""},{"$f":"IF(C43 = \"\", \"\", IF(AND(Notentabellen!$J$3=1,Notentabellen!$L$3=1),INDEX(Notentabellen!B:B,MATCH(C:C,Notentabellen!A:A,1)),IF(AND(Notentabellen!$J$3=1,Notentabellen!$L$3=2),INDEX(Notentabellen!C:C,MATCH(C:C,Notentabellen!A:A,1)),IF(AND(Notentabellen!$J$3=2,Notentabellen!$L$3=1),INDEX(Notentabellen!D:D,MATCH(C:C,Notentabellen!A:A,1)),IF(AND(Notentabellen!$J$3=2,Notentabellen!$L$3=2),INDEX(Notentabellen!E:E,MATCH(C:C,Notentabellen!A:A,1)),IF(AND(Notentabellen!$J$3 =3,Notentabellen!$L$3=1), INDEX(Notentabellen!F:F,MATCH(C:C,Notentabellen!A:A,1)), IF(AND(Notentabellen!$J$3 =3,Notentabellen!$L$3=2), INDEX(Notentabellen!G:G,MATCH(C:C,Notentabellen!A:A,1)))))))))","v":""}]
["",{"$f":"IF(C44=\"\",\"\",INDEX(Laufliste!B:B,_xlfn.AGGREGATE(15,6,ROW(Laufliste!G:G)/(Laufliste!G:G=C44),COUNTIF($C$4:C44,C44)),1))","v":""},{"$f":"IF(ISERROR(_xlfn.AGGREGATE(15,6,Laufliste!G:G,ROW()-3)),\"\",IF(ROWS($A$4:A44)<=Hilfsregister!$C$2,_xlfn.AGGREGATE(15,6,Laufliste!G:G,ROW()-3),\"\"))","v":""},{"$f":"IF(C44 = \"\", \"\", IF(AND(Notentabellen!$J$3=1,Notentabellen!$L$3=1),INDEX(Notentabellen!B:B,MATCH(C:C,Notentabellen!A:A,1)),IF(AND(Notentabellen!$J$3=1,Notentabellen!$L$3=2),INDEX(Notentabellen!C:C,MATCH(C:C,Notentabellen!A:A,1)),IF(AND(Notentabellen!$J$3=2,Notentabellen!$L$3=1),INDEX(Notentabellen!D:D,MATCH(C:C,Notentabellen!A:A,1)),IF(AND(Notentabellen!$J$3=2,Notentabellen!$L$3=2),INDEX(Notentabellen!E:E,MATCH(C:C,Notentabellen!A:A,1)),IF(AND(Notentabellen!$J$3 =3,Notentabellen!$L$3=1), INDEX(Notentabellen!F:F,MATCH(C:C,Notentabellen!A:A,1)), IF(AND(Notentabellen!$J$3 =3,Notentabellen!$L$3=2), INDEX(Notentabellen!G:G,MATCH(C:C,Notentabellen!A:A,1)))))))))","v":""}]
["",{"$f":"IF(C45=\"\",\"\",INDEX(Laufliste!B:B,_xlfn.AGGREGATE(15,6,ROW(Laufliste!G:G)/(Laufliste!G:G=C45),COUNTIF($C$4:C45,C45)),1))","v":""},{"$f":"IF(ISERROR(_xlfn.AGGREGATE(15,6,Laufliste!G:G,ROW()-3)),\"\",IF(ROWS($A$4:A45)<=Hilfsregister!$C$2,_xlfn.AGGREGATE(15,6,Laufliste!G:G,ROW()-3),\"\"))","v":""},{"$f":"IF(C45 = \"\", \"\", IF(AND(Notentabellen!$J$3=1,Notentabellen!$L$3=1),INDEX(Notentabellen!B:B,MATCH(C:C,Notentabellen!A:A,1)),IF(AND(Notentabellen!$J$3=1,Notentabellen!$L$3=2),INDEX(Notentabellen!C:C,MATCH(C:C,Notentabellen!A:A,1)),IF(AND(Notentabellen!$J$3=2,Notentabellen!$L$3=1),INDEX(Notentabellen!D:D,MATCH(C:C,Notentabellen!A:A,1)),IF(AND(Notentabellen!$J$3=2,Notentabellen!$L$3=2),INDEX(Notentabellen!E:E,MATCH(C:C,Notentabellen!A:A,1)),IF(AND(Notentabellen!$J$3 =3,Notentabellen!$L$3=1), INDEX(Notentabellen!F:F,MATCH(C:C,Notentabellen!A:A,1)), IF(AND(Notentabellen!$J$3 =3,Notentabellen!$L$3=2), INDEX(Notentabellen!G:G,MATCH(C:C,Notentabellen!A:A,1)))))))))","v":""}]
["",{"$f":"IF(C46=\"\",\"\",INDEX(Laufliste!B:B,_xlfn.AGGREGATE(15,6,ROW(Laufliste!G:G)/(Laufliste!G:G=C46),COUNTIF($C$4:C46,C46)),1))","v":""},{"$f":"IF(ISERROR(_xlfn.AGGREGATE(15,6,Laufliste!G:G,ROW()-3)),\"\",IF(ROWS($A$4:A46)<=Hilfsregister!$C$2,_xlfn.AGGREGATE(15,6,Laufliste!G:G,ROW()-3),\"\"))","v":""},{"$f":"IF(C46 = \"\", \"\", IF(AND(Notentabellen!$J$3=1,Notentabellen!$L$3=1),INDEX(Notentabellen!B:B,MATCH(C:C,Notentabellen!A:A,1)),IF(AND(Notentabellen!$J$3=1,Notentabellen!$L$3=2),INDEX(Notentabellen!C:C,MATCH(C:C,Notentabellen!A:A,1)),IF(AND(Notentabellen!$J$3=2,Notentabellen!$L$3=1),INDEX(Notentabellen!D:D,MATCH(C:C,Notentabellen!A:A,1)),IF(AND(Notentabellen!$J$3=2,Notentabellen!$L$3=2),INDEX(Notentabellen!E:E,MATCH(C:C,Notentabellen!A:A,1)),IF(AND(Notentabellen!$J$3 =3,Notentabellen!$L$3=1), INDEX(Notentabellen!F:F,MATCH(C:C,Notentabellen!A:A,1)), IF(AND(Notentabellen!$J$3 =3,Notentabellen!$L$3=2), INDEX(Notentabellen!G:G,MATCH(C:C,Notentabellen!A:A,1)))))))))","v":""}]
["",{"$f":"IF(C47=\"\",\"\",INDEX(Laufliste!B:B,_xlfn.AGGREGATE(15,6,ROW(Laufliste!G:G)/(Laufliste!G:G=C47),COUNTIF($C$4:C47,C47)),1))","v":""},{"$f":"IF(ISERROR(_xlfn.AGGREGATE(15,6,Laufliste!G:G,ROW()-3)),\"\",IF(ROWS($A$4:A47)<=Hilfsregister!$C$2,_xlfn.AGGREGATE(15,6,Laufliste!G:G,ROW()-3),\"\"))","v":""},{"$f":"IF(C47 = \"\", \"\", IF(AND(Notentabellen!$J$3=1,Notentabellen!$L$3=1),INDEX(Notentabellen!B:B,MATCH(C:C,Notentabellen!A:A,1)),IF(AND(Notentabellen!$J$3=1,Notentabellen!$L$3=2),INDEX(Notentabellen!C:C,MATCH(C:C,Notentabellen!A:A,1)),IF(AND(Notentabellen!$J$3=2,Notentabellen!$L$3=1),INDEX(Notentabellen!D:D,MATCH(C:C,Notentabellen!A:A,1)),IF(AND(Notentabellen!$J$3=2,Notentabellen!$L$3=2),INDEX(Notentabellen!E:E,MATCH(C:C,Notentabellen!A:A,1)),IF(AND(Notentabellen!$J$3 =3,Notentabellen!$L$3=1), INDEX(Notentabellen!F:F,MATCH(C:C,Notentabellen!A:A,1)), IF(AND(Notentabellen!$J$3 =3,Notentabellen!$L$3=2), INDEX(Notentabellen!G:G,MATCH(C:C,Notentabellen!A:A,1)))))))))","v":""}]
["",{"$f":"IF(C48=\"\",\"\",INDEX(Laufliste!B:B,_xlfn.AGGREGATE(15,6,ROW(Laufliste!G:G)/(Laufliste!G:G=C48),COUNTIF($C$4:C48,C48)),1))","v":""},{"$f":"IF(ISERROR(_xlfn.AGGREGATE(15,6,Laufliste!G:G,ROW()-3)),\"\",IF(ROWS($A$4:A48)<=Hilfsregister!$C$2,_xlfn.AGGREGATE(15,6,Laufliste!G:G,ROW()-3),\"\"))","v":""},{"$f":"IF(C48 = \"\", \"\", IF(AND(Notentabellen!$J$3=1,Notentabellen!$L$3=1),INDEX(Notentabellen!B:B,MATCH(C:C,Notentabellen!A:A,1)),IF(AND(Notentabellen!$J$3=1,Notentabellen!$L$3=2),INDEX(Notentabellen!C:C,MATCH(C:C,Notentabellen!A:A,1)),IF(AND(Notentabellen!$J$3=2,Notentabellen!$L$3=1),INDEX(Notentabellen!D:D,MATCH(C:C,Notentabellen!A:A,1)),IF(AND(Notentabellen!$J$3=2,Notentabellen!$L$3=2),INDEX(Notentabellen!E:E,MATCH(C:C,Notentabellen!A:A,1)),IF(AND(Notentabellen!$J$3 =3,Notentabellen!$L$3=1), INDEX(Notentabellen!F:F,MATCH(C:C,Notentabellen!A:A,1)), IF(AND(Notentabellen!$J$3 =3,Notentabellen!$L$3=2), INDEX(Notentabellen!G:G,MATCH(C:C,Notentabellen!A:A,1)))))))))","v":""}]
["",{"$f":"IF(C49=\"\",\"\",INDEX(Laufliste!B:B,_xlfn.AGGREGATE(15,6,ROW(Laufliste!G:G)/(Laufliste!G:G=C49),COUNTIF($C$4:C49,C49)),1))","v":""},{"$f":"IF(ISERROR(_xlfn.AGGREGATE(15,6,Laufliste!G:G,ROW()-3)),\"\",IF(ROWS($A$4:A49)<=Hilfsregister!$C$2,_xlfn.AGGREGATE(15,6,Laufliste!G:G,ROW()-3),\"\"))","v":""},{"$f":"IF(C49 = \"\", \"\", IF(AND(Notentabellen!$J$3=1,Notentabellen!$L$3=1),INDEX(Notentabellen!B:B,MATCH(C:C,Notentabellen!A:A,1)),IF(AND(Notentabellen!$J$3=1,Notentabellen!$L$3=2),INDEX(Notentabellen!C:C,MATCH(C:C,Notentabellen!A:A,1)),IF(AND(Notentabellen!$J$3=2,Notentabellen!$L$3=1),INDEX(Notentabellen!D:D,MATCH(C:C,Notentabellen!A:A,1)),IF(AND(Notentabellen!$J$3=2,Notentabellen!$L$3=2),INDEX(Notentabellen!E:E,MATCH(C:C,Notentabellen!A:A,1)),IF(AND(Notentabellen!$J$3 =3,Notentabellen!$L$3=1), INDEX(Notentabellen!F:F,MATCH(C:C,Notentabellen!A:A,1)), IF(AND(Notentabellen!$J$3 =3,Notentabellen!$L$3=2), INDEX(Notentabellen!G:G,MATCH(C:C,Notentabellen!A:A,1)))))))))","v":""}]
["",{"$f":"IF(C50=\"\",\"\",INDEX(Laufliste!B:B,_xlfn.AGGREGATE(15,6,ROW(Laufliste!G:G)/(Laufliste!G:G=C50),COUNTIF($C$4:C50,C50)),1))","v":""},{"$f":"IF(ISERROR(_xlfn.AGGREGATE(15,6,Laufliste!G:G,ROW()-3)),\"\",IF(ROWS($A$4:A50)<=Hilfsregister!$C$2,_xlfn.AGGREGATE(15,6,Laufliste!G:G,ROW()-3),\"\"))","v":""},{"$f":"IF(C50 = \"\", \"\", IF(AND(Notentabellen!$J$3=1,Notentabellen!$L$3=1),INDEX(Notentabellen!B:B,MATCH(C:C,Notentabellen!A:A,1)),IF(AND(Notentabellen!$J$3=1,Notentabellen!$L$3=2),INDEX(Notentabellen!C:C,MATCH(C:C,Notentabellen!A:A,1)),IF(AND(Notentabellen!$J$3=2,Notentabellen!$L$3=1),INDEX(Notentabellen!D:D,MATCH(C:C,Notentabellen!A:A,1)),IF(AND(Notentabellen!$J$3=2,Notentabellen!$L$3=2),INDEX(Notentabellen!E:E,MATCH(C:C,Notentabellen!A:A,1)),IF(AND(Notentabellen!$J$3 =3,Notentabellen!$L$3=1), INDEX(Notentabellen!F:F,MATCH(C:C,Notentabellen!A:A,1)), IF(AND(Notentabellen!$J$3 =3,Notentabellen!$L$3=2), INDEX(Notentabellen!G:G,MATCH(C:C,Notentabellen!A:A,1)))))))))","v":""}]
["",{"$f":"IF(C51=\"\",\"\",INDEX(Laufliste!B:B,_xlfn.AGGREGATE(15,6,ROW(Laufliste!G:G)/(Laufliste!G:G=C51),COUNTIF($C$4:C51,C51)),1))","v":""},{"$f":"IF(ISERROR(_xlfn.AGGREGATE(15,6,Laufliste!G:G,ROW()-3)),\"\",IF(ROWS($A$4:A51)<=Hilfsregister!$C$2,_xlfn.AGGREGATE(15,6,Laufliste!G:G,ROW()-3),\"\"))","v":""},{"$f":"IF(C51 = \"\", \"\", IF(AND(Notentabellen!$J$3=1,Notentabellen!$L$3=1),INDEX(Notentabellen!B:B,MATCH(C:C,Notentabellen!A:A,1)),IF(AND(Notentabellen!$J$3=1,Notentabellen!$L$3=2),INDEX(Notentabellen!C:C,MATCH(C:C,Notentabellen!A:A,1)),IF(AND(Notentabellen!$J$3=2,Notentabellen!$L$3=1),INDEX(Notentabellen!D:D,MATCH(C:C,Notentabellen!A:A,1)),IF(AND(Notentabellen!$J$3=2,Notentabellen!$L$3=2),INDEX(Notentabellen!E:E,MATCH(C:C,Notentabellen!A:A,1)),IF(AND(Notentabellen!$J$3 =3,Notentabellen!$L$3=1), INDEX(Notentabellen!F:F,MATCH(C:C,Notentabellen!A:A,1)), IF(AND(Notentabellen!$J$3 =3,Notentabellen!$L$3=2), INDEX(Notentabellen!G:G,MATCH(C:C,Notentabellen!A:A,1)))))))))","v":""}]
["",{"$f":"IF(C52=\"\",\"\",INDEX(Laufliste!B:B,_xlfn.AGGREGATE(15,6,ROW(Laufliste!G:G)/(Laufliste!G:G=C52),COUNTIF($C$4:C52,C52)),1))","v":""},{"$f":"IF(ISERROR(_xlfn.AGGREGATE(15,6,Laufliste!G:G,ROW()-3)),\"\",IF(ROWS($A$4:A52)<=Hilfsregister!$C$2,_xlfn.AGGREGATE(15,6,Laufliste!G:G,ROW()-3),\"\"))","v":""},{"$f":"IF(C52 = \"\", \"\", IF(AND(Notentabellen!$J$3=1,Notentabellen!$L$3=1),INDEX(Notentabellen!B:B,MATCH(C:C,Notentabellen!A:A,1)),IF(AND(Notentabellen!$J$3=1,Notentabellen!$L$3=2),INDEX(Notentabellen!C:C,MATCH(C:C,Notentabellen!A:A,1)),IF(AND(Notentabellen!$J$3=2,Notentabellen!$L$3=1),INDEX(Notentabellen!D:D,MATCH(C:C,Notentabellen!A:A,1)),IF(AND(Notentabellen!$J$3=2,Notentabellen!$L$3=2),INDEX(Notentabellen!E:E,MATCH(C:C,Notentabellen!A:A,1)),IF(AND(Notentabellen!$J$3 =3,Notentabellen!$L$3=1), INDEX(Notentabellen!F:F,MATCH(C:C,Notentabellen!A:A,1)), IF(AND(Notentabellen!$J$3 =3,Notentabellen!$L$3=2), INDEX(Notentabellen!G:G,MATCH(C:C,Notentabellen!A:A,1)))))))))","v":""}]
["",{"$f":"IF(C53=\"\",\"\",INDEX(Laufliste!B:B,_xlfn.AGGREGATE(15,6,ROW(Laufliste!G:G)/(Laufliste!G:G=C53),COUNTIF($C$4:C53,C53)),1))","v":""},{"$f":"IF(ISERROR(_xlfn.AGGREGATE(15,6,Laufliste!G:G,ROW()-3)),\"\",IF(ROWS($A$4:A53)<=Hilfsregister!$C$2,_xlfn.AGGREGATE(15,6,Laufliste!G:G,ROW()-3),\"\"))","v":""},{"$f":"IF(C53 = \"\", \"\", IF(AND(Notentabellen!$J$3=1,Notentabellen!$L$3=1),INDEX(Notentabellen!B:B,MATCH(C:C,Notentabellen!A:A,1)),IF(AND(Notentabellen!$J$3=1,Notentabellen!$L$3=2),INDEX(Notentabellen!C:C,MATCH(C:C,Notentabellen!A:A,1)),IF(AND(Notentabellen!$J$3=2,Notentabellen!$L$3=1),INDEX(Notentabellen!D:D,MATCH(C:C,Notentabellen!A:A,1)),IF(AND(Notentabellen!$J$3=2,Notentabellen!$L$3=2),INDEX(Notentabellen!E:E,MATCH(C:C,Notentabellen!A:A,1)),IF(AND(Notentabellen!$J$3 =3,Notentabellen!$L$3=1), INDEX(Notentabellen!F:F,MATCH(C:C,Notentabellen!A:A,1)), IF(AND(Notentabellen!$J$3 =3,Notentabellen!$L$3=2), INDEX(Notentabellen!G:G,MATCH(C:C,Notentabellen!A:A,1)))))))))","v":""}]
["",{"$f":"IF(C54=\"\",\"\",INDEX(Laufliste!B:B,_xlfn.AGGREGATE(15,6,ROW(Laufliste!G:G)/(Laufliste!G:G=C54),COUNTIF($C$4:C54,C54)),1))","v":""},{"$f":"IF(ISERROR(_xlfn.AGGREGATE(15,6,Laufliste!G:G,ROW()-3)),\"\",IF(ROWS($A$4:A54)<=Hilfsregister!$C$2,_xlfn.AGGREGATE(15,6,Laufliste!G:G,ROW()-3),\"\"))","v":""},{"$f":"IF(C54 = \"\", \"\", IF(AND(Notentabellen!$J$3=1,Notentabellen!$L$3=1),INDEX(Notentabellen!B:B,MATCH(C:C,Notentabellen!A:A,1)),IF(AND(Notentabellen!$J$3=1,Notentabellen!$L$3=2),INDEX(Notentabellen!C:C,MATCH(C:C,Notentabellen!A:A,1)),IF(AND(Notentabellen!$J$3=2,Notentabellen!$L$3=1),INDEX(Notentabellen!D:D,MATCH(C:C,Notentabellen!A:A,1)),IF(AND(Notentabellen!$J$3=2,Notentabellen!$L$3=2),INDEX(Notentabellen!E:E,MATCH(C:C,Notentabellen!A:A,1)),IF(AND(Notentabellen!$J$3 =3,Notentabellen!$L$3=1), INDEX(Notentabellen!F:F,MATCH(C:C,Notentabellen!A:A,1)), IF(AND(Notentabellen!$J$3 =3,Notentabellen!$L$3=2), INDEX(Notentabellen!G:G,MATCH(C:C,Notentabellen!A:A,1)))))))))","v":""}]
["",{"$f":"IF(C55=\"\",\"\",INDEX(Laufliste!B:B,_xlfn.AGGREGATE(15,6,ROW(Laufliste!G:G)/(Laufliste!G:G=C55),COUNTIF($C$4:C55,C55)),1))","v":""},{"$f":"IF(ISERROR(_xlfn.AGGREGATE(15,6,Laufliste!G:G,ROW()-3)),\"\",IF(ROWS($A$4:A55)<=Hilfsregister!$C$2,_xlfn.AGGREGATE(15,6,Laufliste!G:G,ROW()-3),\"\"))","v":""},{"$f":"IF(C55 = \"\", \"\", IF(AND(Notentabellen!$J$3=1,Notentabellen!$L$3=1),INDEX(Notentabellen!B:B,MATCH(C:C,Notentabellen!A:A,1)),IF(AND(Notentabellen!$J$3=1,Notentabellen!$L$3=2),INDEX(Notentabellen!C:C,MATCH(C:C,Notentabellen!A:A,1)),IF(AND(Notentabellen!$J$3=2,Notentabellen!$L$3=1),INDEX(Notentabellen!D:D,MATCH(C:C,Notentabellen!A:A,1)),IF(AND(Notentabellen!$J$3=2,Notentabellen!$L$3=2),INDEX(Notentabellen!E:E,MATCH(C:C,Notentabellen!A:A,1)),IF(AND(Notentabellen!$J$3 =3,Notentabellen!$L$3=1), INDEX(Notentabellen!F:F,MATCH(C:C,Notentabellen!A:A,1)), IF(AND(Notentabellen!$J$3 =3,Notentabellen!$L$3=2), INDEX(Notentabellen!G:G,MATCH(C:C,Notentabellen!A:A,1)))))))))","v":""}]
["",{"$f":"IF(C56=\"\",\"\",INDEX(Laufliste!B:B,_xlfn.AGGREGATE(15,6,ROW(Laufliste!G:G)/(Laufliste!G:G=C56),COUNTIF($C$4:C56,C56)),1))","v":""},{"$f":"IF(ISERROR(_xlfn.AGGREGATE(15,6,Laufliste!G:G,ROW()-3)),\"\",IF(ROWS($A$4:A56)<=Hilfsregister!$C$2,_xlfn.AGGREGATE(15,6,Laufliste!G:G,ROW()-3),\"\"))","v":""},{"$f":"IF(C56 = \"\", \"\", IF(AND(Notentabellen!$J$3=1,Notentabellen!$L$3=1),INDEX(Notentabellen!B:B,MATCH(C:C,Notentabellen!A:A,1)),IF(AND(Notentabellen!$J$3=1,Notentabellen!$L$3=2),INDEX(Notentabellen!C:C,MATCH(C:C,Notentabellen!A:A,1)),IF(AND(Notentabellen!$J$3=2,Notentabellen!$L$3=1),INDEX(Notentabellen!D:D,MATCH(C:C,Notentabellen!A:A,1)),IF(AND(Notentabellen!$J$3=2,Notentabellen!$L$3=2),INDEX(Notentabellen!E:E,MATCH(C:C,Notentabellen!A:A,1)),IF(AND(Notentabellen!$J$3 =3,Notentabellen!$L$3=1), INDEX(Notentabellen!F:F,MATCH(C:C,Notentabellen!A:A,1)), IF(AND(Notentabellen!$J$3 =3,Notentabellen!$L$3=2), INDEX(Notentabellen!G:G,MATCH(C:C,Notentabellen!A:A,1)))))))))","v":""}]
["",{"$f":"IF(C57=\"\",\"\",INDEX(Laufliste!B:B,_xlfn.AGGREGATE(15,6,ROW(Laufliste!G:G)/(Laufliste!G:G=C57),COUNTIF($C$4:C57,C57)),1))","v":""},{"$f":"IF(ISERROR(_xlfn.AGGREGATE(15,6,Laufliste!G:G,ROW()-3)),\"\",IF(ROWS($A$4:A57)<=Hilfsregister!$C$2,_xlfn.AGGREGATE(15,6,Laufliste!G:G,ROW()-3),\"\"))","v":""},{"$f":"IF(C57 = \"\", \"\", IF(AND(Notentabellen!$J$3=1,Notentabellen!$L$3=1),INDEX(Notentabellen!B:B,MATCH(C:C,Notentabellen!A:A,1)),IF(AND(Notentabellen!$J$3=1,Notentabellen!$L$3=2),INDEX(Notentabellen!C:C,MATCH(C:C,Notentabellen!A:A,1)),IF(AND(Notentabellen!$J$3=2,Notentabellen!$L$3=1),INDEX(Notentabellen!D:D,MATCH(C:C,Notentabellen!A:A,1)),IF(AND(Notentabellen!$J$3=2,Notentabellen!$L$3=2),INDEX(Notentabellen!E:E,MATCH(C:C,Notentabellen!A:A,1)),IF(AND(Notentabellen!$J$3 =3,Notentabellen!$L$3=1), INDEX(Notentabellen!F:F,MATCH(C:C,Notentabellen!A:A,1)), IF(AND(Notentabellen!$J$3 =3,Notentabellen!$L$3=2), INDEX(Notentabellen!G:G,MATCH(C:C,Notentabellen!A:A,1)))))))))","v":""}]
["",{"$f":"IF(C58=\"\",\"\",INDEX(Laufliste!B:B,_xlfn.AGGREGATE(15,6,ROW(Laufliste!G:G)/(Laufliste!G:G=C58),COUNTIF($C$4:C58,C58)),1))","v":""},{"$f":"IF(ISERROR(_xlfn.AGGREGATE(15,6,Laufliste!G:G,ROW()-3)),\"\",IF(ROWS($A$4:A58)<=Hilfsregister!$C$2,_xlfn.AGGREGATE(15,6,Laufliste!G:G,ROW()-3),\"\"))","v":""},{"$f":"IF(C58 = \"\", \"\", IF(AND(Notentabellen!$J$3=1,Notentabellen!$L$3=1),INDEX(Notentabellen!B:B,MATCH(C:C,Notentabellen!A:A,1)),IF(AND(Notentabellen!$J$3=1,Notentabellen!$L$3=2),INDEX(Notentabellen!C:C,MATCH(C:C,Notentabellen!A:A,1)),IF(AND(Notentabellen!$J$3=2,Notentabellen!$L$3=1),INDEX(Notentabellen!D:D,MATCH(C:C,Notentabellen!A:A,1)),IF(AND(Notentabellen!$J$3=2,Notentabellen!$L$3=2),INDEX(Notentabellen!E:E,MATCH(C:C,Notentabellen!A:A,1)),IF(AND(Notentabellen!$J$3 =3,Notentabellen!$L$3=1), INDEX(Notentabellen!F:F,MATCH(C:C,Notentabellen!A:A,1)), IF(AND(Notentabellen!$J$3 =3,Notentabellen!$L$3=2), INDEX(Notentabellen!G:G,MATCH(C:C,Notentabellen!A:A,1)))))))))","v":""}]
["",{"$f":"IF(C59=\"\",\"\",INDEX(Laufliste!B:B,_xlfn.AGGREGATE(15,6,ROW(Laufliste!G:G)/(Laufliste!G:G=C59),COUNTIF($C$4:C59,C59)),1))","v":""},{"$f":"IF(ISERROR(_xlfn.AGGREGATE(15,6,Laufliste!G:G,ROW()-3)),\"\",IF(ROWS($A$4:A59)<=Hilfsregister!$C$2,_xlfn.AGGREGATE(15,6,Laufliste!G:G,ROW()-3),\"\"))","v":""},{"$f":"IF(C59 = \"\", \"\", IF(AND(Notentabellen!$J$3=1,Notentabellen!$L$3=1),INDEX(Notentabellen!B:B,MATCH(C:C,Notentabellen!A:A,1)),IF(AND(Notentabellen!$J$3=1,Notentabellen!$L$3=2),INDEX(Notentabellen!C:C,MATCH(C:C,Notentabellen!A:A,1)),IF(AND(Notentabellen!$J$3=2,Notentabellen!$L$3=1),INDEX(Notentabellen!D:D,MATCH(C:C,Notentabellen!A:A,1)),IF(AND(Notentabellen!$J$3=2,Notentabellen!$L$3=2),INDEX(Notentabellen!E:E,MATCH(C:C,Notentabellen!A:A,1)),IF(AND(Notentabellen!$J$3 =3,Notentabellen!$L$3=1), INDEX(Notentabellen!F:F,MATCH(C:C,Notentabellen!A:A,1)), IF(AND(Notentabellen!$J$3 =3,Notentabellen!$L$3=2), INDEX(Notentabellen!G:G,MATCH(C:C,Notentabellen!A:A,1)))))))))","v":""}]
["",{"$f":"IF(C60=\"\",\"\",INDEX(Laufliste!B:B,_xlfn.AGGREGATE(15,6,ROW(Laufliste!G:G)/(Laufliste!G:G=C60),COUNTIF($C$4:C60,C60)),1))","v":""},{"$f":"IF(ISERROR(_xlfn.AGGREGATE(15,6,Laufliste!G:G,ROW()-3)),\"\",IF(ROWS($A$4:A60)<=Hilfsregister!$C$2,_xlfn.AGGREGATE(15,6,Laufliste!G:G,ROW()-3),\"\"))","v":""},{"$f":"IF(C60 = \"\", \"\", IF(AND(Notentabellen!$J$3=1,Notentabellen!$L$3=1),INDEX(Notentabellen!B:B,MATCH(C:C,Notentabellen!A:A,1)),IF(AND(Notentabellen!$J$3=1,Notentabellen!$L$3=2),INDEX(Notentabellen!C:C,MATCH(C:C,Notentabellen!A:A,1)),IF(AND(Notentabellen!$J$3=2,Notentabellen!$L$3=1),INDEX(Notentabellen!D:D,MATCH(C:C,Notentabellen!A:A,1)),IF(AND(Notentabellen!$J$3=2,Notentabellen!$L$3=2),INDEX(Notentabellen!E:E,MATCH(C:C,Notentabellen!A:A,1)),IF(AND(Notentabellen!$J$3 =3,Notentabellen!$L$3=1), INDEX(Notentabellen!F:F,MATCH(C:C,Notentabellen!A:A,1)), IF(AND(Notentabellen!$J$3 =3,Notentabellen!$L$3=2), INDEX(Notentabellen!G:G,MATCH(C:C,Notentabellen!A:A,1)))))))))","v":""}]
["",{"$f":"IF(C61=\"\",\"\",INDEX(Laufliste!B:B,_xlfn.AGGREGATE(15,6,ROW(Laufliste!G:G)/(Laufliste!G:G=C61),COUNTIF($C$4:C61,C61)),1))","v":""},{"$f":"IF(ISERROR(_xlfn.AGGREGATE(15,6,Laufliste!G:G,ROW()-3)),\"\",IF(ROWS($A$4:A61)<=Hilfsregister!$C$2,_xlfn.AGGREGATE(15,6,Laufliste!G:G,ROW()-3),\"\"))","v":""},{"$f":"IF(C61 = \"\", \"\", IF(AND(Notentabellen!$J$3=1,Notentabellen!$L$3=1),INDEX(Notentabellen!B:B,MATCH(C:C,Notentabellen!A:A,1)),IF(AND(Notentabellen!$J$3=1,Notentabellen!$L$3=2),INDEX(Notentabellen!C:C,MATCH(C:C,Notentabellen!A:A,1)),IF(AND(Notentabellen!$J$3=2,Notentabellen!$L$3=1),INDEX(Notentabellen!D:D,MATCH(C:C,Notentabellen!A:A,1)),IF(AND(Notentabellen!$J$3=2,Notentabellen!$L$3=2),INDEX(Notentabellen!E:E,MATCH(C:C,Notentabellen!A:A,1)),IF(AND(Notentabellen!$J$3 =3,Notentabellen!$L$3=1), INDEX(Notentabellen!F:F,MATCH(C:C,Notentabellen!A:A,1)), IF(AND(Notentabellen!$J$3 =3,Notentabellen!$L$3=2), INDEX(Notentabellen!G:G,MATCH(C:C,Notentabellen!A:A,1)))))))))","v":""}]
["",{"$f":"IF(C62=\"\",\"\",INDEX(Laufliste!B:B,_xlfn.AGGREGATE(15,6,ROW(Laufliste!G:G)/(Laufliste!G:G=C62),COUNTIF($C$4:C62,C62)),1))","v":""},{"$f":"IF(ISERROR(_xlfn.AGGREGATE(15,6,Laufliste!G:G,ROW()-3)),\"\",IF(ROWS($A$4:A62)<=Hilfsregister!$C$2,_xlfn.AGGREGATE(15,6,Laufliste!G:G,ROW()-3),\"\"))","v":""},{"$f":"IF(C62 = \"\", \"\", IF(AND(Notentabellen!$J$3=1,Notentabellen!$L$3=1),INDEX(Notentabellen!B:B,MATCH(C:C,Notentabellen!A:A,1)),IF(AND(Notentabellen!$J$3=1,Notentabellen!$L$3=2),INDEX(Notentabellen!C:C,MATCH(C:C,Notentabellen!A:A,1)),IF(AND(Notentabellen!$J$3=2,Notentabellen!$L$3=1),INDEX(Notentabellen!D:D,MATCH(C:C,Notentabellen!A:A,1)),IF(AND(Notentabellen!$J$3=2,Notentabellen!$L$3=2),INDEX(Notentabellen!E:E,MATCH(C:C,Notentabellen!A:A,1)),IF(AND(Notentabellen!$J$3 =3,Notentabellen!$L$3=1), INDEX(Notentabellen!F:F,MATCH(C:C,Notentabellen!A:A,1)), IF(AND(Notentabellen!$J$3 =3,Notentabellen!$L$3=2), INDEX(Notentabellen!G:G,MATCH(C:C,Notentabellen!A:A,1)))))))))","v":""}]
["",{"$f":"IF(C63=\"\",\"\",INDEX(Laufliste!B:B,_xlfn.AGGREGATE(15,6,ROW(Laufliste!G:G)/(Laufliste!G:G=C63),COUNTIF($C$4:C63,C63)),1))","v":""},{"$f":"IF(ISERROR(_xlfn.AGGREGATE(15,6,Laufliste!G:G,ROW()-3)),\"\",IF(ROWS($A$4:A63)<=Hilfsregister!$C$2,_xlfn.AGGREGATE(15,6,Laufliste!G:G,ROW()-3),\"\"))","v":""},{"$f":"IF(C63 = \"\", \"\", IF(AND(Notentabellen!$J$3=1,Notentabellen!$L$3=1),INDEX(Notentabellen!B:B,MATCH(C:C,Notentabellen!A:A,1)),IF(AND(Notentabellen!$J$3=1,Notentabellen!$L$3=2),INDEX(Notentabellen!C:C,MATCH(C:C,Notentabellen!A:A,1)),IF(AND(Notentabellen!$J$3=2,Notentabellen!$L$3=1),INDEX(Notentabellen!D:D,MATCH(C:C,Notentabellen!A:A,1)),IF(AND(Notentabellen!$J$3=2,Notentabellen!$L$3=2),INDEX(Notentabellen!E:E,MATCH(C:C,Notentabellen!A:A,1)),IF(AND(Notentabellen!$J$3 =3,Notentabellen!$L$3=1), INDEX(Notentabellen!F:F,MATCH(C:C,Notentabellen!A:A,1)), IF(AND(Notentabellen!$J$3 =3,Notentabellen!$L$3=2), INDEX(Notentabellen!G:G,MATCH(C:C,Notentabellen!A:A,1)))))))))","v":""}]
["",{"$f":"IF(C64=\"\",\"\",INDEX(Laufliste!B:B,_xlfn.AGGREGATE(15,6,ROW(Laufliste!G:G)/(Laufliste!G:G=C64),COUNTIF($C$4:C64,C64)),1))","v":""},{"$f":"IF(ISERROR(_xlfn.AGGREGATE(15,6,Laufliste!G:G,ROW()-3)),\"\",IF(ROWS($A$4:A64)<=Hilfsregister!$C$2,_xlfn.AGGREGATE(15,6,Laufliste!G:G,ROW()-3),\"\"))","v":""},{"$f":"IF(C64 = \"\", \"\", IF(AND(Notentabellen!$J$3=1,Notentabellen!$L$3=1),INDEX(Notentabellen!B:B,MATCH(C:C,Notentabellen!A:A,1)),IF(AND(Notentabellen!$J$3=1,Notentabellen!$L$3=2),INDEX(Notentabellen!C:C,MATCH(C:C,Notentabellen!A:A,1)),IF(AND(Notentabellen!$J$3=2,Notentabellen!$L$3=1),INDEX(Notentabellen!D:D,MATCH(C:C,Notentabellen!A:A,1)),IF(AND(Notentabellen!$J$3=2,Notentabellen!$L$3=2),INDEX(Notentabellen!E:E,MATCH(C:C,Notentabellen!A:A,1)),IF(AND(Notentabellen!$J$3 =3,Notentabellen!$L$3=1), INDEX(Notentabellen!F:F,MATCH(C:C,Notentabellen!A:A,1)), IF(AND(Notentabellen!$J$3 =3,Notentabellen!$L$3=2), INDEX(Notentabellen!G:G,MATCH(C:C,Notentabellen!A:A,1)))))))))","v":""}]
["",{"$f":"IF(C65=\"\",\"\",INDEX(Laufliste!B:B,_xlfn.AGGREGATE(15,6,ROW(Laufliste!G:G)/(Laufliste!G:G=C65),COUNTIF($C$4:C65,C65)),1))","v":""},{"$f":"IF(ISERROR(_xlfn.AGGREGATE(15,6,Laufliste!G:G,ROW()-3)),\"\",IF(ROWS($A$4:A65)<=Hilfsregister!$C$2,_xlfn.AGGREGATE(15,6,Laufliste!G:G,ROW()-3),\"\"))","v":""},{"$f":"IF(C65 = \"\", \"\", IF(AND(Notentabellen!$J$3=1,Notentabellen!$L$3=1),INDEX(Notentabellen!B:B,MATCH(C:C,Notentabellen!A:A,1)),IF(AND(Notentabellen!$J$3=1,Notentabellen!$L$3=2),INDEX(Notentabellen!C:C,MATCH(C:C,Notentabellen!A:A,1)),IF(AND(Notentabellen!$J$3=2,Notentabellen!$L$3=1),INDEX(Notentabellen!D:D,MATCH(C:C,Notentabellen!A:A,1)),IF(AND(Notentabellen!$J$3=2,Notentabellen!$L$3=2),INDEX(Notentabellen!E:E,MATCH(C:C,Notentabellen!A:A,1)),IF(AND(Notentabellen!$J$3 =3,Notentabellen!$L$3=1), INDEX(Notentabellen!F:F,MATCH(C:C,Notentabellen!A:A,1)), IF(AND(Notentabellen!$J$3 =3,Notentabellen!$L$3=2), INDEX(Notentabellen!G:G,MATCH(C:C,Notentabellen!A:A,1)))))))))","v":""}]
["",{"$f":"IF(C66=\"\",\"\",INDEX(Laufliste!B:B,_xlfn.AGGREGATE(15,6,ROW(Laufliste!G:G)/(Laufliste!G:G=C66),COUNTIF($C$4:C66,C66)),1))","v":""},{"$f":"IF(ISERROR(_xlfn.AGGREGATE(15,6,Laufliste!G:G,ROW()-3)),\"\",IF(ROWS($A$4:A66)<=Hilfsregister!$C$2,_xlfn.AGGREGATE(15,6,Laufliste!G:G,ROW()-3),\"\"))","v":""},{"$f":"IF(C66 = \"\", \"\", IF(AND(Notentabellen!$J$3=1,Notentabellen!$L$3=1),INDEX(Notentabellen!B:B,MATCH(C:C,Notentabellen!A:A,1)),IF(AND(Notentabellen!$J$3=1,Notentabellen!$L$3=2),INDEX(Notentabellen!C:C,MATCH(C:C,Notentabellen!A:A,1)),IF(AND(Notentabellen!$J$3=2,Notentabellen!$L$3=1),INDEX(Notentabellen!D:D,MATCH(C:C,Notentabellen!A:A,1)),IF(AND(Notentabellen!$J$3=2,Notentabellen!$L$3=2),INDEX(Notentabellen!E:E,MATCH(C:C,Notentabellen!A:A,1)),IF(AND(Notentabellen!$J$3 =3,Notentabellen!$L$3=1), INDEX(Notentabellen!F:F,MATCH(C:C,Notentabellen!A:A,1)), IF(AND(Notentabellen!$J$3 =3,Notentabellen!$L$3=2), INDEX(Notentabellen!G:G,MATCH(C:C,Notentabellen!A:A,1)))))))))","v":""}]
["",{"$f":"IF(C67=\"\",\"\",INDEX(Laufliste!B:B,_xlfn.AGGREGATE(15,6,ROW(Laufliste!G:G)/(Laufliste!G:G=C67),COUNTIF($C$4:C67,C67)),1))","v":""},{"$f":"IF(ISERROR(_xlfn.AGGREGATE(15,6,Laufliste!G:G,ROW()-3)),\"\",IF(ROWS($A$4:A67)<=Hilfsregister!$C$2,_xlfn.AGGREGATE(15,6,Laufliste!G:G,ROW()-3),\"\"))","v":""},{"$f":"IF(C67 = \"\", \"\", IF(AND(Notentabellen!$J$3=1,Notentabellen!$L$3=1),INDEX(Notentabellen!B:B,MATCH(C:C,Notentabellen!A:A,1)),IF(AND(Notentabellen!$J$3=1,Notentabellen!$L$3=2),INDEX(Notentabellen!C:C,MATCH(C:C,Notentabellen!A:A,1)),IF(AND(Notentabellen!$J$3=2,Notentabellen!$L$3=1),INDEX(Notentabellen!D:D,MATCH(C:C,Notentabellen!A:A,1)),IF(AND(Notentabellen!$J$3=2,Notentabellen!$L$3=2),INDEX(Notentabellen!E:E,MATCH(C:C,Notentabellen!A:A,1)),IF(AND(Notentabellen!$J$3 =3,Notentabellen!$L$3=1), INDEX(Notentabellen!F:F,MATCH(C:C,Notentabellen!A:A,1)), IF(AND(Notentabellen!$J$3 =3,Notentabellen!$L$3=2), INDEX(Notentabellen!G:G,MATCH(C:C,Notentabellen!A:A,1)))))))))","v":""}]
["",{"$f":"IF(C68=\"\",\"\",INDEX(Laufliste!B:B,_xlfn.AGGREGATE(15,6,ROW(Laufliste!G:G)/(Laufliste!G:G=C68),COUNTIF($C$4:C68,C68)),1))","v":""},{"$f":"IF(ISERROR(_xlfn.AGGREGATE(15,6,Laufliste!G:G,ROW()-3)),\"\",IF(ROWS($A$4:A68)<=Hilfsregister!$C$2,_xlfn.AGGREGATE(15,6,Laufliste!G:G,ROW()-3),\"\"))","v":""},{"$f":"IF(C68 = \"\", \"\", IF(AND(Notentabellen!$J$3=1,Notentabellen!$L$3=1),INDEX(Notentabellen!B:B,MATCH(C:C,Notentabellen!A:A,1)),IF(AND(Notentabellen!$J$3=1,Notentabellen!$L$3=2),INDEX(Notentabellen!C:C,MATCH(C:C,Notentabellen!A:A,1)),IF(AND(Notentabellen!$J$3=2,Notentabellen!$L$3=1),INDEX(Notentabellen!D:D,MATCH(C:C,Notentabellen!A:A,1)),IF(AND(Notentabellen!$J$3=2,Notentabellen!$L$3=2),INDEX(Notentabellen!E:E,MATCH(C:C,Notentabellen!A:A,1)),IF(AND(Notentabellen!$J$3 =3,Notentabellen!$L$3=1), INDEX(Notentabellen!F:F,MATCH(C:C,Notentabellen!A:A,1)), IF(AND(Notentabellen!$J$3 =3,Notentabellen!$L$3=2), INDEX(Notentabellen!G:G,MATCH(C:C,Notentabellen!A:A,1)))))))))","v":""}]
[{"$f":"IF(C69=\"\",\"\",_xlfn.RANK.EQ(C69,C:C,1))","v":""},{"$f":"IF(C69=\"\",\"\",INDEX(Laufliste!B:B,_xlfn.AGGREGATE(15,6,ROW(Laufliste!G:G)/(Laufliste!G:G=C69),COUNTIF($C$4:C69,C69)),1))","v":""},{"$f":"IF(ISERROR(_xlfn.AGGREGATE(15,6,Laufliste!G:G,ROW()-3)),\"\",IF(ROWS($A$4:A69)<=Hilfsregister!$C$2,_xlfn.AGGREGATE(15,6,Laufliste!G:G,ROW()-3),\"\"))","v":""},{"$f":"IF(C69 = \"\", \"\", IF(AND(Notentabellen!$J$3=1,Notentabellen!$L$3=1),INDEX(Notentabellen!B:B,MATCH(C:C,Notentabellen!A:A,1)),IF(AND(Notentabellen!$J$3=1,Notentabellen!$L$3=2),INDEX(Notentabellen!C:C,MATCH(C:C,Notentabellen!A:A,1)),IF(AND(Notentabellen!$J$3=2,Notentabellen!$L$3=1),INDEX(Notentabellen!D:D,MATCH(C:C,Notentabellen!A:A,1)),IF(AND(Notentabellen!$J$3=2,Notentabellen!$L$3=2),INDEX(Notentabellen!E:E,MATCH(C:C,Notentabellen!A:A,1)),IF(AND(Notentabellen!$J$3 =3,Notentabellen!$L$3=1), INDEX(Notentabellen!F:F,MATCH(C:C,Notentabellen!A:A,1)), IF(AND(Notentabellen!$J$3 =3,Notentabellen!$L$3=2), INDEX(Notentabellen!G:G,MATCH(C:C,Notentabellen!A:A,1)))))))))","v":""}]
["",{"$f":"IF(C70=\"\",\"\",INDEX(Laufliste!B:B,_xlfn.AGGREGATE(15,6,ROW(Laufliste!G:G)/(Laufliste!G:G=C70),COUNTIF($C$4:C70,C70)),1))","v":""},{"$f":"IF(ISERROR(_xlfn.AGGREGATE(15,6,Laufliste!G:G,ROW()-3)),\"\",IF(ROWS($A$4:A70)<=Hilfsregister!$C$2,_xlfn.AGGREGATE(15,6,Laufliste!G:G,ROW()-3),\"\"))","v":""},{"$f":"IF(C70 = \"\", \"\", IF(AND(Notentabellen!$J$3=1,Notentabellen!$L$3=1),INDEX(Notentabellen!B:B,MATCH(C:C,Notentabellen!A:A,1)),IF(AND(Notentabellen!$J$3=1,Notentabellen!$L$3=2),INDEX(Notentabellen!C:C,MATCH(C:C,Notentabellen!A:A,1)),IF(AND(Notentabellen!$J$3=2,Notentabellen!$L$3=1),INDEX(Notentabellen!D:D,MATCH(C:C,Notentabellen!A:A,1)),IF(AND(Notentabellen!$J$3=2,Notentabellen!$L$3=2),INDEX(Notentabellen!E:E,MATCH(C:C,Notentabellen!A:A,1)),IF(AND(Notentabellen!$J$3 =3,Notentabellen!$L$3=1), INDEX(Notentabellen!F:F,MATCH(C:C,Notentabellen!A:A,1)), IF(AND(Notentabellen!$J$3 =3,Notentabellen!$L$3=2), INDEX(Notentabellen!G:G,MATCH(C:C,Notentabellen!A:A,1)))))))))","v":""}]
["",{"$f":"IF(C71=\"\",\"\",INDEX(Laufliste!B:B,_xlfn.AGGREGATE(15,6,ROW(Laufliste!G:G)/(Laufliste!G:G=C71),COUNTIF($C$4:C71,C71)),1))","v":""},{"$f":"IF(ISERROR(_xlfn.AGGREGATE(15,6,Laufliste!G:G,ROW()-3)),\"\",IF(ROWS($A$4:A71)<=Hilfsregister!$C$2,_xlfn.AGGREGATE(15,6,Laufliste!G:G,ROW()-3),\"\"))","v":""},{"$f":"IF(C71 = \"\", \"\", IF(AND(Notentabellen!$J$3=1,Notentabellen!$L$3=1),INDEX(Notentabellen!B:B,MATCH(C:C,Notentabellen!A:A,1)),IF(AND(Notentabellen!$J$3=1,Notentabellen!$L$3=2),INDEX(Notentabellen!C:C,MATCH(C:C,Notentabellen!A:A,1)),IF(AND(Notentabellen!$J$3=2,Notentabellen!$L$3=1),INDEX(Notentabellen!D:D,MATCH(C:C,Notentabellen!A:A,1)),IF(AND(Notentabellen!$J$3=2,Notentabellen!$L$3=2),INDEX(Notentabellen!E:E,MATCH(C:C,Notentabellen!A:A,1)),IF(AND(Notentabellen!$J$3 =3,Notentabellen!$L$3=1), INDEX(Notentabellen!F:F,MATCH(C:C,Notentabellen!A:A,1)), IF(AND(Notentabellen!$J$3 =3,Notentabellen!$L$3=2), INDEX(Notentabellen!G:G,MATCH(C:C,Notentabellen!A:A,1)))))))))","v":""}]
["",{"$f":"IF(C72=\"\",\"\",INDEX(Laufliste!B:B,_xlfn.AGGREGATE(15,6,ROW(Laufliste!G:G)/(Laufliste!G:G=C72),COUNTIF($C$4:C72,C72)),1))","v":""},{"$f":"IF(ISERROR(_xlfn.AGGREGATE(15,6,Laufliste!G:G,ROW()-3)),\"\",IF(ROWS($A$4:A72)<=Hilfsregister!$C$2,_xlfn.AGGREGATE(15,6,Laufliste!G:G,ROW()-3),\"\"))","v":""},{"$f":"IF(C72 = \"\", \"\", IF(AND(Notentabellen!$J$3=1,Notentabellen!$L$3=1),INDEX(Notentabellen!B:B,MATCH(C:C,Notentabellen!A:A,1)),IF(AND(Notentabellen!$J$3=1,Notentabellen!$L$3=2),INDEX(Notentabellen!C:C,MATCH(C:C,Notentabellen!A:A,1)),IF(AND(Notentabellen!$J$3=2,Notentabellen!$L$3=1),INDEX(Notentabellen!D:D,MATCH(C:C,Notentabellen!A:A,1)),IF(AND(Notentabellen!$J$3=2,Notentabellen!$L$3=2),INDEX(Notentabellen!E:E,MATCH(C:C,Notentabellen!A:A,1)),IF(AND(Notentabellen!$J$3 =3,Notentabellen!$L$3=1), INDEX(Notentabellen!F:F,MATCH(C:C,Notentabellen!A:A,1)), IF(AND(Notentabellen!$J$3 =3,Notentabellen!$L$3=2), INDEX(Notentabellen!G:G,MATCH(C:C,Notentabellen!A:A,1)))))))))","v":""}]
["",{"$f":"IF(C73=\"\",\"\",INDEX(Laufliste!B:B,_xlfn.AGGREGATE(15,6,ROW(Laufliste!G:G)/(Laufliste!G:G=C73),COUNTIF($C$4:C73,C73)),1))","v":""},{"$f":"IF(ISERROR(_xlfn.AGGREGATE(15,6,Laufliste!G:G,ROW()-3)),\"\",IF(ROWS($A$4:A73)<=Hilfsregister!$C$2,_xlfn.AGGREGATE(15,6,Laufliste!G:G,ROW()-3),\"\"))","v":""},{"$f":"IF(C73 = \"\", \"\", IF(AND(Notentabellen!$J$3=1,Notentabellen!$L$3=1),INDEX(Notentabellen!B:B,MATCH(C:C,Notentabellen!A:A,1)),IF(AND(Notentabellen!$J$3=1,Notentabellen!$L$3=2),INDEX(Notentabellen!C:C,MATCH(C:C,Notentabellen!A:A,1)),IF(AND(Notentabellen!$J$3=2,Notentabellen!$L$3=1),INDEX(Notentabellen!D:D,MATCH(C:C,Notentabellen!A:A,1)),IF(AND(Notentabellen!$J$3=2,Notentabellen!$L$3=2),INDEX(Notentabellen!E:E,MATCH(C:C,Notentabellen!A:A,1)),IF(AND(Notentabellen!$J$3 =3,Notentabellen!$L$3=1), INDEX(Notentabellen!F:F,MATCH(C:C,Notentabellen!A:A,1)), IF(AND(Notentabellen!$J$3 =3,Notentabellen!$L$3=2), INDEX(Notentabellen!G:G,MATCH(C:C,Notentabellen!A:A,1)))))))))","v":""}]
["",{"$f":"IF(C74=\"\",\"\",INDEX(Laufliste!B:B,_xlfn.AGGREGATE(15,6,ROW(Laufliste!G:G)/(Laufliste!G:G=C74),COUNTIF($C$4:C74,C74)),1))","v":""},{"$f":"IF(ISERROR(_xlfn.AGGREGATE(15,6,Laufliste!G:G,ROW()-3)),\"\",IF(ROWS($A$4:A74)<=Hilfsregister!$C$2,_xlfn.AGGREGATE(15,6,Laufliste!G:G,ROW()-3),\"\"))","v":""},{"$f":"IF(C74 = \"\", \"\", IF(AND(Notentabellen!$J$3=1,Notentabellen!$L$3=1),INDEX(Notentabellen!B:B,MATCH(C:C,Notentabellen!A:A,1)),IF(AND(Notentabellen!$J$3=1,Notentabellen!$L$3=2),INDEX(Notentabellen!C:C,MATCH(C:C,Notentabellen!A:A,1)),IF(AND(Notentabellen!$J$3=2,Notentabellen!$L$3=1),INDEX(Notentabellen!D:D,MATCH(C:C,Notentabellen!A:A,1)),IF(AND(Notentabellen!$J$3=2,Notentabellen!$L$3=2),INDEX(Notentabellen!E:E,MATCH(C:C,Notentabellen!A:A,1)),IF(AND(Notentabellen!$J$3 =3,Notentabellen!$L$3=1), INDEX(Notentabellen!F:F,MATCH(C:C,Notentabellen!A:A,1)), IF(AND(Notentabellen!$J$3 =3,Notentabellen!$L$3=2), INDEX(Notentabellen!G:G,MATCH(C:C,Notentabellen!A:A,1)))))))))","v":""}]
["",{"$f":"IF(C75=\"\",\"\",INDEX(Laufliste!B:B,_xlfn.AGGREGATE(15,6,ROW(Laufliste!G:G)/(Laufliste!G:G=C75),COUNTIF($C$4:C75,C75)),1))","v":""},{"$f":"IF(ISERROR(_xlfn.AGGREGATE(15,6,Laufliste!G:G,ROW()-3)),\"\",IF(ROWS($A$4:A75)<=Hilfsregister!$C$2,_xlfn.AGGREGATE(15,6,Laufliste!G:G,ROW()-3),\"\"))","v":""},{"$f":"IF(C75 = \"\", \"\", IF(AND(Notentabellen!$J$3=1,Notentabellen!$L$3=1),INDEX(Notentabellen!B:B,MATCH(C:C,Notentabellen!A:A,1)),IF(AND(Notentabellen!$J$3=1,Notentabellen!$L$3=2),INDEX(Notentabellen!C:C,MATCH(C:C,Notentabellen!A:A,1)),IF(AND(Notentabellen!$J$3=2,Notentabellen!$L$3=1),INDEX(Notentabellen!D:D,MATCH(C:C,Notentabellen!A:A,1)),IF(AND(Notentabellen!$J$3=2,Notentabellen!$L$3=2),INDEX(Notentabellen!E:E,MATCH(C:C,Notentabellen!A:A,1)),IF(AND(Notentabellen!$J$3 =3,Notentabellen!$L$3=1), INDEX(Notentabellen!F:F,MATCH(C:C,Notentabellen!A:A,1)), IF(AND(Notentabellen!$J$3 =3,Notentabellen!$L$3=2), INDEX(Notentabellen!G:G,MATCH(C:C,Notentabellen!A:A,1)))))))))","v":""}]
["",{"$f":"IF(C76=\"\",\"\",INDEX(Laufliste!B:B,_xlfn.AGGREGATE(15,6,ROW(Laufliste!G:G)/(Laufliste!G:G=C76),COUNTIF($C$4:C76,C76)),1))","v":""},{"$f":"IF(ISERROR(_xlfn.AGGREGATE(15,6,Laufliste!G:G,ROW()-3)),\"\",IF(ROWS($A$4:A76)<=Hilfsregister!$C$2,_xlfn.AGGREGATE(15,6,Laufliste!G:G,ROW()-3),\"\"))","v":""},{"$f":"IF(C76 = \"\", \"\", IF(AND(Notentabellen!$J$3=1,Notentabellen!$L$3=1),INDEX(Notentabellen!B:B,MATCH(C:C,Notentabellen!A:A,1)),IF(AND(Notentabellen!$J$3=1,Notentabellen!$L$3=2),INDEX(Notentabellen!C:C,MATCH(C:C,Notentabellen!A:A,1)),IF(AND(Notentabellen!$J$3=2,Notentabellen!$L$3=1),INDEX(Notentabellen!D:D,MATCH(C:C,Notentabellen!A:A,1)),IF(AND(Notentabellen!$J$3=2,Notentabellen!$L$3=2),INDEX(Notentabellen!E:E,MATCH(C:C,Notentabellen!A:A,1)),IF(AND(Notentabellen!$J$3 =3,Notentabellen!$L$3=1), INDEX(Notentabellen!F:F,MATCH(C:C,Notentabellen!A:A,1)), IF(AND(Notentabellen!$J$3 =3,Notentabellen!$L$3=2), INDEX(Notentabellen!G:G,MATCH(C:C,Notentabellen!A:A,1)))))))))","v":""}]
["",{"$f":"IF(C77=\"\",\"\",INDEX(Laufliste!B:B,_xlfn.AGGREGATE(15,6,ROW(Laufliste!G:G)/(Laufliste!G:G=C77),COUNTIF($C$4:C77,C77)),1))","v":""},{"$f":"IF(ISERROR(_xlfn.AGGREGATE(15,6,Laufliste!G:G,ROW()-3)),\"\",IF(ROWS($A$4:A77)<=Hilfsregister!$C$2,_xlfn.AGGREGATE(15,6,Laufliste!G:G,ROW()-3),\"\"))","v":""},{"$f":"IF(C77 = \"\", \"\", IF(AND(Notentabellen!$J$3=1,Notentabellen!$L$3=1),INDEX(Notentabellen!B:B,MATCH(C:C,Notentabellen!A:A,1)),IF(AND(Notentabellen!$J$3=1,Notentabellen!$L$3=2),INDEX(Notentabellen!C:C,MATCH(C:C,Notentabellen!A:A,1)),IF(AND(Notentabellen!$J$3=2,Notentabellen!$L$3=1),INDEX(Notentabellen!D:D,MATCH(C:C,Notentabellen!A:A,1)),IF(AND(Notentabellen!$J$3=2,Notentabellen!$L$3=2),INDEX(Notentabellen!E:E,MATCH(C:C,Notentabellen!A:A,1)),IF(AND(Notentabellen!$J$3 =3,Notentabellen!$L$3=1), INDEX(Notentabellen!F:F,MATCH(C:C,Notentabellen!A:A,1)), IF(AND(Notentabellen!$J$3 =3,Notentabellen!$L$3=2), INDEX(Notentabellen!G:G,MATCH(C:C,Notentabellen!A:A,1)))))))))","v":""}]
["",{"$f":"IF(C78=\"\",\"\",INDEX(Laufliste!B:B,_xlfn.AGGREGATE(15,6,ROW(Laufliste!G:G)/(Laufliste!G:G=C78),COUNTIF($C$4:C78,C78)),1))","v":""},{"$f":"IF(ISERROR(_xlfn.AGGREGATE(15,6,Laufliste!G:G,ROW()-3)),\"\",IF(ROWS($A$4:A78)<=Hilfsregister!$C$2,_xlfn.AGGREGATE(15,6,Laufliste!G:G,ROW()-3),\"\"))","v":""},{"$f":"IF(C78 = \"\", \"\", IF(AND(Notentabellen!$J$3=1,Notentabellen!$L$3=1),INDEX(Notentabellen!B:B,MATCH(C:C,Notentabellen!A:A,1)),IF(AND(Notentabellen!$J$3=1,Notentabellen!$L$3=2),INDEX(Notentabellen!C:C,MATCH(C:C,Notentabellen!A:A,1)),IF(AND(Notentabellen!$J$3=2,Notentabellen!$L$3=1),INDEX(Notentabellen!D:D,MATCH(C:C,Notentabellen!A:A,1)),IF(AND(Notentabellen!$J$3=2,Notentabellen!$L$3=2),INDEX(Notentabellen!E:E,MATCH(C:C,Notentabellen!A:A,1)),IF(AND(Notentabellen!$J$3 =3,Notentabellen!$L$3=1), INDEX(Notentabellen!F:F,MATCH(C:C,Notentabellen!A:A,1)), IF(AND(Notentabellen!$J$3 =3,Notentabellen!$L$3=2), INDEX(Notentabellen!G:G,MATCH(C:C,Notentabellen!A:A,1)))))))))","v":""}]
["",{"$f":"IF(C79=\"\",\"\",INDEX(Laufliste!B:B,_xlfn.AGGREGATE(15,6,ROW(Laufliste!G:G)/(Laufliste!G:G=C79),COUNTIF($C$4:C79,C79)),1))","v":""},{"$f":"IF(ISERROR(_xlfn.AGGREGATE(15,6,Laufliste!G:G,ROW()-3)),\"\",IF(ROWS($A$4:A79)<=Hilfsregister!$C$2,_xlfn.AGGREGATE(15,6,Laufliste!G:G,ROW()-3),\"\"))","v":""},{"$f":"IF(C79 = \"\", \"\", IF(AND(Notentabellen!$J$3=1,Notentabellen!$L$3=1),INDEX(Notentabellen!B:B,MATCH(C:C,Notentabellen!A:A,1)),IF(AND(Notentabellen!$J$3=1,Notentabellen!$L$3=2),INDEX(Notentabellen!C:C,MATCH(C:C,Notentabellen!A:A,1)),IF(AND(Notentabellen!$J$3=2,Notentabellen!$L$3=1),INDEX(Notentabellen!D:D,MATCH(C:C,Notentabellen!A:A,1)),IF(AND(Notentabellen!$J$3=2,Notentabellen!$L$3=2),INDEX(Notentabellen!E:E,MATCH(C:C,Notentabellen!A:A,1)),IF(AND(Notentabellen!$J$3 =3,Notentabellen!$L$3=1), INDEX(Notentabellen!F:F,MATCH(C:C,Notentabellen!A:A,1)), IF(AND(Notentabellen!$J$3 =3,Notentabellen!$L$3=2), INDEX(Notentabellen!G:G,MATCH(C:C,Notentabellen!A:A,1)))))))))","v":""}]
["",{"$f":"IF(C80=\"\",\"\",INDEX(Laufliste!B:B,_xlfn.AGGREGATE(15,6,ROW(Laufliste!G:G)/(Laufliste!G:G=C80),COUNTIF($C$4:C80,C80)),1))","v":""},{"$f":"IF(ISERROR(_xlfn.AGGREGATE(15,6,Laufliste!G:G,ROW()-3)),\"\",IF(ROWS($A$4:A80)<=Hilfsregister!$C$2,_xlfn.AGGREGATE(15,6,Laufliste!G:G,ROW()-3),\"\"))","v":""},{"$f":"IF(C80 = \"\", \"\", IF(AND(Notentabellen!$J$3=1,Notentabellen!$L$3=1),INDEX(Notentabellen!B:B,MATCH(C:C,Notentabellen!A:A,1)),IF(AND(Notentabellen!$J$3=1,Notentabellen!$L$3=2),INDEX(Notentabellen!C:C,MATCH(C:C,Notentabellen!A:A,1)),IF(AND(Notentabellen!$J$3=2,Notentabellen!$L$3=1),INDEX(Notentabellen!D:D,MATCH(C:C,Notentabellen!A:A,1)),IF(AND(Notentabellen!$J$3=2,Notentabellen!$L$3=2),INDEX(Notentabellen!E:E,MATCH(C:C,Notentabellen!A:A,1)),IF(AND(Notentabellen!$J$3 =3,Notentabellen!$L$3=1), INDEX(Notentabellen!F:F,MATCH(C:C,Notentabellen!A:A,1)), IF(AND(Notentabellen!$J$3 =3,Notentabellen!$L$3=2), INDEX(Notentabellen!G:G,MATCH(C:C,Notentabellen!A:A,1)))))))))","v":""}]
["",{"$f":"IF(C81=\"\",\"\",INDEX(Laufliste!B:B,_xlfn.AGGREGATE(15,6,ROW(Laufliste!G:G)/(Laufliste!G:G=C81),COUNTIF($C$4:C81,C81)),1))","v":""},{"$f":"IF(ISERROR(_xlfn.AGGREGATE(15,6,Laufliste!G:G,ROW()-3)),\"\",IF(ROWS($A$4:A81)<=Hilfsregister!$C$2,_xlfn.AGGREGATE(15,6,Laufliste!G:G,ROW()-3),\"\"))","v":""},{"$f":"IF(C81 = \"\", \"\", IF(AND(Notentabellen!$J$3=1,Notentabellen!$L$3=1),INDEX(Notentabellen!B:B,MATCH(C:C,Notentabellen!A:A,1)),IF(AND(Notentabellen!$J$3=1,Notentabellen!$L$3=2),INDEX(Notentabellen!C:C,MATCH(C:C,Notentabellen!A:A,1)),IF(AND(Notentabellen!$J$3=2,Notentabellen!$L$3=1),INDEX(Notentabellen!D:D,MATCH(C:C,Notentabellen!A:A,1)),IF(AND(Notentabellen!$J$3=2,Notentabellen!$L$3=2),INDEX(Notentabellen!E:E,MATCH(C:C,Notentabellen!A:A,1)),IF(AND(Notentabellen!$J$3 =3,Notentabellen!$L$3=1), INDEX(Notentabellen!F:F,MATCH(C:C,Notentabellen!A:A,1)), IF(AND(Notentabellen!$J$3 =3,Notentabellen!$L$3=2), INDEX(Notentabellen!G:G,MATCH(C:C,Notentabellen!A:A,1)))))))))","v":""}]
["",{"$f":"IF(C82=\"\",\"\",INDEX(Laufliste!B:B,_xlfn.AGGREGATE(15,6,ROW(Laufliste!G:G)/(Laufliste!G:G=C82),COUNTIF($C$4:C82,C82)),1))","v":""},{"$f":"IF(ISERROR(_xlfn.AGGREGATE(15,6,Laufliste!G:G,ROW()-3)),\"\",IF(ROWS($A$4:A82)<=Hilfsregister!$C$2,_xlfn.AGGREGATE(15,6,Laufliste!G:G,ROW()-3),\"\"))","v":""},{"$f":"IF(C82 = \"\", \"\", IF(AND(Notentabellen!$J$3=1,Notentabellen!$L$3=1),INDEX(Notentabellen!B:B,MATCH(C:C,Notentabellen!A:A,1)),IF(AND(Notentabellen!$J$3=1,Notentabellen!$L$3=2),INDEX(Notentabellen!C:C,MATCH(C:C,Notentabellen!A:A,1)),IF(AND(Notentabellen!$J$3=2,Notentabellen!$L$3=1),INDEX(Notentabellen!D:D,MATCH(C:C,Notentabellen!A:A,1)),IF(AND(Notentabellen!$J$3=2,Notentabellen!$L$3=2),INDEX(Notentabellen!E:E,MATCH(C:C,Notentabellen!A:A,1)),IF(AND(Notentabellen!$J$3 =3,Notentabellen!$L$3=1), INDEX(Notentabellen!F:F,MATCH(C:C,Notentabellen!A:A,1)), IF(AND(Notentabellen!$J$3 =3,Notentabellen!$L$3=2), INDEX(Notentabellen!G:G,MATCH(C:C,Notentabellen!A:A,1)))))))))","v":""}]
["",{"$f":"IF(C83=\"\",\"\",INDEX(Laufliste!B:B,_xlfn.AGGREGATE(15,6,ROW(Laufliste!G:G)/(Laufliste!G:G=C83),COUNTIF($C$4:C83,C83)),1))","v":""},{"$f":"IF(ISERROR(_xlfn.AGGREGATE(15,6,Laufliste!G:G,ROW()-3)),\"\",IF(ROWS($A$4:A83)<=Hilfsregister!$C$2,_xlfn.AGGREGATE(15,6,Laufliste!G:G,ROW()-3),\"\"))","v":""},{"$f":"IF(C83 = \"\", \"\", IF(AND(Notentabellen!$J$3=1,Notentabellen!$L$3=1),INDEX(Notentabellen!B:B,MATCH(C:C,Notentabellen!A:A,1)),IF(AND(Notentabellen!$J$3=1,Notentabellen!$L$3=2),INDEX(Notentabellen!C:C,MATCH(C:C,Notentabellen!A:A,1)),IF(AND(Notentabellen!$J$3=2,Notentabellen!$L$3=1),INDEX(Notentabellen!D:D,MATCH(C:C,Notentabellen!A:A,1)),IF(AND(Notentabellen!$J$3=2,Notentabellen!$L$3=2),INDEX(Notentabellen!E:E,MATCH(C:C,Notentabellen!A:A,1)),IF(AND(Notentabellen!$J$3 =3,Notentabellen!$L$3=1), INDEX(Notentabellen!F:F,MATCH(C:C,Notentabellen!A:A,1)), IF(AND(Notentabellen!$J$3 =3,Notentabellen!$L$3=2), INDEX(Notentabellen!G:G,MATCH(C:C,Notentabellen!A:A,1)))))))))","v":""}]
["",{"$f":"IF(C84=\"\",\"\",INDEX(Laufliste!B:B,_xlfn.AGGREGATE(15,6,ROW(Laufliste!G:G)/(Laufliste!G:G=C84),COUNTIF($C$4:C84,C84)),1))","v":""},{"$f":"IF(ISERROR(_xlfn.AGGREGATE(15,6,Laufliste!G:G,ROW()-3)),\"\",IF(ROWS($A$4:A84)<=Hilfsregister!$C$2,_xlfn.AGGREGATE(15,6,Laufliste!G:G,ROW()-3),\"\"))","v":""},{"$f":"IF(C84 = \"\", \"\", IF(AND(Notentabellen!$J$3=1,Notentabellen!$L$3=1),INDEX(Notentabellen!B:B,MATCH(C:C,Notentabellen!A:A,1)),IF(AND(Notentabellen!$J$3=1,Notentabellen!$L$3=2),INDEX(Notentabellen!C:C,MATCH(C:C,Notentabellen!A:A,1)),IF(AND(Notentabellen!$J$3=2,Notentabellen!$L$3=1),INDEX(Notentabellen!D:D,MATCH(C:C,Notentabellen!A:A,1)),IF(AND(Notentabellen!$J$3=2,Notentabellen!$L$3=2),INDEX(Notentabellen!E:E,MATCH(C:C,Notentabellen!A:A,1)),IF(AND(Notentabellen!$J$3 =3,Notentabellen!$L$3=1), INDEX(Notentabellen!F:F,MATCH(C:C,Notentabellen!A:A,1)), IF(AND(Notentabellen!$J$3 =3,Notentabellen!$L$3=2), INDEX(Notentabellen!G:G,MATCH(C:C,Notentabellen!A:A,1)))))))))","v":""}]
["",{"$f":"IF(C85=\"\",\"\",INDEX(Laufliste!B:B,_xlfn.AGGREGATE(15,6,ROW(Laufliste!G:G)/(Laufliste!G:G=C85),COUNTIF($C$4:C85,C85)),1))","v":""},{"$f":"IF(ISERROR(_xlfn.AGGREGATE(15,6,Laufliste!G:G,ROW()-3)),\"\",IF(ROWS($A$4:A85)<=Hilfsregister!$C$2,_xlfn.AGGREGATE(15,6,Laufliste!G:G,ROW()-3),\"\"))","v":""},{"$f":"IF(C85 = \"\", \"\", IF(AND(Notentabellen!$J$3=1,Notentabellen!$L$3=1),INDEX(Notentabellen!B:B,MATCH(C:C,Notentabellen!A:A,1)),IF(AND(Notentabellen!$J$3=1,Notentabellen!$L$3=2),INDEX(Notentabellen!C:C,MATCH(C:C,Notentabellen!A:A,1)),IF(AND(Notentabellen!$J$3=2,Notentabellen!$L$3=1),INDEX(Notentabellen!D:D,MATCH(C:C,Notentabellen!A:A,1)),IF(AND(Notentabellen!$J$3=2,Notentabellen!$L$3=2),INDEX(Notentabellen!E:E,MATCH(C:C,Notentabellen!A:A,1)),IF(AND(Notentabellen!$J$3 =3,Notentabellen!$L$3=1), INDEX(Notentabellen!F:F,MATCH(C:C,Notentabellen!A:A,1)), IF(AND(Notentabellen!$J$3 =3,Notentabellen!$L$3=2), INDEX(Notentabellen!G:G,MATCH(C:C,Notentabellen!A:A,1)))))))))","v":""}]
["",{"$f":"IF(C86=\"\",\"\",INDEX(Laufliste!B:B,_xlfn.AGGREGATE(15,6,ROW(Laufliste!G:G)/(Laufliste!G:G=C86),COUNTIF($C$4:C86,C86)),1))","v":""},{"$f":"IF(ISERROR(_xlfn.AGGREGATE(15,6,Laufliste!G:G,ROW()-3)),\"\",IF(ROWS($A$4:A86)<=Hilfsregister!$C$2,_xlfn.AGGREGATE(15,6,Laufliste!G:G,ROW()-3),\"\"))","v":""},{"$f":"IF(C86 = \"\", \"\", IF(AND(Notentabellen!$J$3=1,Notentabellen!$L$3=1),INDEX(Notentabellen!B:B,MATCH(C:C,Notentabellen!A:A,1)),IF(AND(Notentabellen!$J$3=1,Notentabellen!$L$3=2),INDEX(Notentabellen!C:C,MATCH(C:C,Notentabellen!A:A,1)),IF(AND(Notentabellen!$J$3=2,Notentabellen!$L$3=1),INDEX(Notentabellen!D:D,MATCH(C:C,Notentabellen!A:A,1)),IF(AND(Notentabellen!$J$3=2,Notentabellen!$L$3=2),INDEX(Notentabellen!E:E,MATCH(C:C,Notentabellen!A:A,1)),IF(AND(Notentabellen!$J$3 =3,Notentabellen!$L$3=1), INDEX(Notentabellen!F:F,MATCH(C:C,Notentabellen!A:A,1)), IF(AND(Notentabellen!$J$3 =3,Notentabellen!$L$3=2), INDEX(Notentabellen!G:G,MATCH(C:C,Notentabellen!A:A,1)))))))))","v":""}]
["",{"$f":"IF(C87=\"\",\"\",INDEX(Laufliste!B:B,_xlfn.AGGREGATE(15,6,ROW(Laufliste!G:G)/(Laufliste!G:G=C87),COUNTIF($C$4:C87,C87)),1))","v":""},{"$f":"IF(ISERROR(_xlfn.AGGREGATE(15,6,Laufliste!G:G,ROW()-3)),\"\",IF(ROWS($A$4:A87)<=Hilfsregister!$C$2,_xlfn.AGGREGATE(15,6,Laufliste!G:G,ROW()-3),\"\"))","v":""},{"$f":"IF(C87 = \"\", \"\", IF(AND(Notentabellen!$J$3=1,Notentabellen!$L$3=1),INDEX(Notentabellen!B:B,MATCH(C:C,Notentabellen!A:A,1)),IF(AND(Notentabellen!$J$3=1,Notentabellen!$L$3=2),INDEX(Notentabellen!C:C,MATCH(C:C,Notentabellen!A:A,1)),IF(AND(Notentabellen!$J$3=2,Notentabellen!$L$3=1),INDEX(Notentabellen!D:D,MATCH(C:C,Notentabellen!A:A,1)),IF(AND(Notentabellen!$J$3=2,Notentabellen!$L$3=2),INDEX(Notentabellen!E:E,MATCH(C:C,Notentabellen!A:A,1)),IF(AND(Notentabellen!$J$3 =3,Notentabellen!$L$3=1), INDEX(Notentabellen!F:F,MATCH(C:C,Notentabellen!A:A,1)), IF(AND(Notentabellen!$J$3 =3,Notentabellen!$L$3=2), INDEX(Notentabellen!G:G,MATCH(C:C,Notentabellen!A:A,1)))))))))","v":""}]
["",{"$f":"IF(C88=\"\",\"\",INDEX(Laufliste!B:B,_xlfn.AGGREGATE(15,6,ROW(Laufliste!G:G)/(Laufliste!G:G=C88),COUNTIF($C$4:C88,C88)),1))","v":""},{"$f":"IF(ISERROR(_xlfn.AGGREGATE(15,6,Laufliste!G:G,ROW()-3)),\"\",IF(ROWS($A$4:A88)<=Hilfsregister!$C$2,_xlfn.AGGREGATE(15,6,Laufliste!G:G,ROW()-3),\"\"))","v":""},{"$f":"IF(C88 = \"\", \"\", IF(AND(Notentabellen!$J$3=1,Notentabellen!$L$3=1),INDEX(Notentabellen!B:B,MATCH(C:C,Notentabellen!A:A,1)),IF(AND(Notentabellen!$J$3=1,Notentabellen!$L$3=2),INDEX(Notentabellen!C:C,MATCH(C:C,Notentabellen!A:A,1)),IF(AND(Notentabellen!$J$3=2,Notentabellen!$L$3=1),INDEX(Notentabellen!D:D,MATCH(C:C,Notentabellen!A:A,1)),IF(AND(Notentabellen!$J$3=2,Notentabellen!$L$3=2),INDEX(Notentabellen!E:E,MATCH(C:C,Notentabellen!A:A,1)),IF(AND(Notentabellen!$J$3 =3,Notentabellen!$L$3=1), INDEX(Notentabellen!F:F,MATCH(C:C,Notentabellen!A:A,1)), IF(AND(Notentabellen!$J$3 =3,Notentabellen!$L$3=2), INDEX(Notentabellen!G:G,MATCH(C:C,Notentabellen!A:A,1)))))))))","v":""}]
["",{"$f":"IF(C89=\"\",\"\",INDEX(Laufliste!B:B,_xlfn.AGGREGATE(15,6,ROW(Laufliste!G:G)/(Laufliste!G:G=C89),COUNTIF($C$4:C89,C89)),1))","v":""},{"$f":"IF(ISERROR(_xlfn.AGGREGATE(15,6,Laufliste!G:G,ROW()-3)),\"\",IF(ROWS($A$4:A89)<=Hilfsregister!$C$2,_xlfn.AGGREGATE(15,6,Laufliste!G:G,ROW()-3),\"\"))","v":""},{"$f":"IF(C89 = \"\", \"\", IF(AND(Notentabellen!$J$3=1,Notentabellen!$L$3=1),INDEX(Notentabellen!B:B,MATCH(C:C,Notentabellen!A:A,1)),IF(AND(Notentabellen!$J$3=1,Notentabellen!$L$3=2),INDEX(Notentabellen!C:C,MATCH(C:C,Notentabellen!A:A,1)),IF(AND(Notentabellen!$J$3=2,Notentabellen!$L$3=1),INDEX(Notentabellen!D:D,MATCH(C:C,Notentabellen!A:A,1)),IF(AND(Notentabellen!$J$3=2,Notentabellen!$L$3=2),INDEX(Notentabellen!E:E,MATCH(C:C,Notentabellen!A:A,1)),IF(AND(Notentabellen!$J$3 =3,Notentabellen!$L$3=1), INDEX(Notentabellen!F:F,MATCH(C:C,Notentabellen!A:A,1)), IF(AND(Notentabellen!$J$3 =3,Notentabellen!$L$3=2), INDEX(Notentabellen!G:G,MATCH(C:C,Notentabellen!A:A,1)))))))))","v":""}]
["",{"$f":"IF(C90=\"\",\"\",INDEX(Laufliste!B:B,_xlfn.AGGREGATE(15,6,ROW(Laufliste!G:G)/(Laufliste!G:G=C90),COUNTIF($C$4:C90,C90)),1))","v":""},{"$f":"IF(ISERROR(_xlfn.AGGREGATE(15,6,Laufliste!G:G,ROW()-3)),\"\",IF(ROWS($A$4:A90)<=Hilfsregister!$C$2,_xlfn.AGGREGATE(15,6,Laufliste!G:G,ROW()-3),\"\"))","v":""},{"$f":"IF(C90 = \"\", \"\", IF(AND(Notentabellen!$J$3=1,Notentabellen!$L$3=1),INDEX(Notentabellen!B:B,MATCH(C:C,Notentabellen!A:A,1)),IF(AND(Notentabellen!$J$3=1,Notentabellen!$L$3=2),INDEX(Notentabellen!C:C,MATCH(C:C,Notentabellen!A:A,1)),IF(AND(Notentabellen!$J$3=2,Notentabellen!$L$3=1),INDEX(Notentabellen!D:D,MATCH(C:C,Notentabellen!A:A,1)),IF(AND(Notentabellen!$J$3=2,Notentabellen!$L$3=2),INDEX(Notentabellen!E:E,MATCH(C:C,Notentabellen!A:A,1)),IF(AND(Notentabellen!$J$3 =3,Notentabellen!$L$3=1), INDEX(Notentabellen!F:F,MATCH(C:C,Notentabellen!A:A,1)), IF(AND(Notentabellen!$J$3 =3,Notentabellen!$L$3=2), INDEX(Notentabellen!G:G,MATCH(C:C,Notentabellen!A:A,1)))))))))","v":""}]
["",{"$f":"IF(C91=\"\",\"\",INDEX(Laufliste!B:B,_xlfn.AGGREGATE(15,6,ROW(Laufliste!G:G)/(Laufliste!G:G=C91),COUNTIF($C$4:C91,C91)),1))","v":""},{"$f":"IF(ISERROR(_xlfn.AGGREGATE(15,6,Laufliste!G:G,ROW()-3)),\"\",IF(ROWS($A$4:A91)<=Hilfsregister!$C$2,_xlfn.AGGREGATE(15,6,Laufliste!G:G,ROW()-3),\"\"))","v":""},{"$f":"IF(C91 = \"\", \"\", IF(AND(Notentabellen!$J$3=1,Notentabellen!$L$3=1),INDEX(Notentabellen!B:B,MATCH(C:C,Notentabellen!A:A,1)),IF(AND(Notentabellen!$J$3=1,Notentabellen!$L$3=2),INDEX(Notentabellen!C:C,MATCH(C:C,Notentabellen!A:A,1)),IF(AND(Notentabellen!$J$3=2,Notentabellen!$L$3=1),INDEX(Notentabellen!D:D,MATCH(C:C,Notentabellen!A:A,1)),IF(AND(Notentabellen!$J$3=2,Notentabellen!$L$3=2),INDEX(Notentabellen!E:E,MATCH(C:C,Notentabellen!A:A,1)),IF(AND(Notentabellen!$J$3 =3,Notentabellen!$L$3=1), INDEX(Notentabellen!F:F,MATCH(C:C,Notentabellen!A:A,1)), IF(AND(Notentabellen!$J$3 =3,Notentabellen!$L$3=2), INDEX(Notentabellen!G:G,MATCH(C:C,Notentabellen!A:A,1)))))))))","v":""}]
["",{"$f":"IF(C92=\"\",\"\",INDEX(Laufliste!B:B,_xlfn.AGGREGATE(15,6,ROW(Laufliste!G:G)/(Laufliste!G:G=C92),COUNTIF($C$4:C92,C92)),1))","v":""},{"$f":"IF(ISERROR(_xlfn.AGGREGATE(15,6,Laufliste!G:G,ROW()-3)),\"\",IF(ROWS($A$4:A92)<=Hilfsregister!$C$2,_xlfn.AGGREGATE(15,6,Laufliste!G:G,ROW()-3),\"\"))","v":""},{"$f":"IF(C92 = \"\", \"\", IF(AND(Notentabellen!$J$3=1,Notentabellen!$L$3=1),INDEX(Notentabellen!B:B,MATCH(C:C,Notentabellen!A:A,1)),IF(AND(Notentabellen!$J$3=1,Notentabellen!$L$3=2),INDEX(Notentabellen!C:C,MATCH(C:C,Notentabellen!A:A,1)),IF(AND(Notentabellen!$J$3=2,Notentabellen!$L$3=1),INDEX(Notentabellen!D:D,MATCH(C:C,Notentabellen!A:A,1)),IF(AND(Notentabellen!$J$3=2,Notentabellen!$L$3=2),INDEX(Notentabellen!E:E,MATCH(C:C,Notentabellen!A:A,1)),IF(AND(Notentabellen!$J$3 =3,Notentabellen!$L$3=1), INDEX(Notentabellen!F:F,MATCH(C:C,Notentabellen!A:A,1)), IF(AND(Notentabellen!$J$3 =3,Notentabellen!$L$3=2), INDEX(Notentabellen!G:G,MATCH(C:C,Notentabellen!A:A,1)))))))))","v":""}]
["",{"$f":"IF(C93=\"\",\"\",INDEX(Laufliste!B:B,_xlfn.AGGREGATE(15,6,ROW(Laufliste!G:G)/(Laufliste!G:G=C93),COUNTIF($C$4:C93,C93)),1))","v":""},{"$f":"IF(ISERROR(_xlfn.AGGREGATE(15,6,Laufliste!G:G,ROW()-3)),\"\",IF(ROWS($A$4:A93)<=Hilfsregister!$C$2,_xlfn.AGGREGATE(15,6,Laufliste!G:G,ROW()-3),\"\"))","v":""},{"$f":"IF(C93 = \"\", \"\", IF(AND(Notentabellen!$J$3=1,Notentabellen!$L$3=1),INDEX(Notentabellen!B:B,MATCH(C:C,Notentabellen!A:A,1)),IF(AND(Notentabellen!$J$3=1,Notentabellen!$L$3=2),INDEX(Notentabellen!C:C,MATCH(C:C,Notentabellen!A:A,1)),IF(AND(Notentabellen!$J$3=2,Notentabellen!$L$3=1),INDEX(Notentabellen!D:D,MATCH(C:C,Notentabellen!A:A,1)),IF(AND(Notentabellen!$J$3=2,Notentabellen!$L$3=2),INDEX(Notentabellen!E:E,MATCH(C:C,Notentabellen!A:A,1)),IF(AND(Notentabellen!$J$3 =3,Notentabellen!$L$3=1), INDEX(Notentabellen!F:F,MATCH(C:C,Notentabellen!A:A,1)), IF(AND(Notentabellen!$J$3 =3,Notentabellen!$L$3=2), INDEX(Notentabellen!G:G,MATCH(C:C,Notentabellen!A:A,1)))))))))","v":""}]
["",{"$f":"IF(C94=\"\",\"\",INDEX(Laufliste!B:B,_xlfn.AGGREGATE(15,6,ROW(Laufliste!G:G)/(Laufliste!G:G=C94),COUNTIF($C$4:C94,C94)),1))","v":""},{"$f":"IF(ISERROR(_xlfn.AGGREGATE(15,6,Laufliste!G:G,ROW()-3)),\"\",IF(ROWS($A$4:A94)<=Hilfsregister!$C$2,_xlfn.AGGREGATE(15,6,Laufliste!G:G,ROW()-3),\"\"))","v":""},{"$f":"IF(C94 = \"\", \"\", IF(AND(Notentabellen!$J$3=1,Notentabellen!$L$3=1),INDEX(Notentabellen!B:B,MATCH(C:C,Notentabellen!A:A,1)),IF(AND(Notentabellen!$J$3=1,Notentabellen!$L$3=2),INDEX(Notentabellen!C:C,MATCH(C:C,Notentabellen!A:A,1)),IF(AND(Notentabellen!$J$3=2,Notentabellen!$L$3=1),INDEX(Notentabellen!D:D,MATCH(C:C,Notentabellen!A:A,1)),IF(AND(Notentabellen!$J$3=2,Notentabellen!$L$3=2),INDEX(Notentabellen!E:E,MATCH(C:C,Notentabellen!A:A,1)),IF(AND(Notentabellen!$J$3 =3,Notentabellen!$L$3=1), INDEX(Notentabellen!F:F,MATCH(C:C,Notentabellen!A:A,1)), IF(AND(Notentabellen!$J$3 =3,Notentabellen!$L$3=2), INDEX(Notentabellen!G:G,MATCH(C:C,Notentabellen!A:A,1)))))))))","v":""}]
["",{"$f":"IF(C95=\"\",\"\",INDEX(Laufliste!B:B,_xlfn.AGGREGATE(15,6,ROW(Laufliste!G:G)/(Laufliste!G:G=C95),COUNTIF($C$4:C95,C95)),1))","v":""},{"$f":"IF(ISERROR(_xlfn.AGGREGATE(15,6,Laufliste!G:G,ROW()-3)),\"\",IF(ROWS($A$4:A95)<=Hilfsregister!$C$2,_xlfn.AGGREGATE(15,6,Laufliste!G:G,ROW()-3),\"\"))","v":""},{"$f":"IF(C95 = \"\", \"\", IF(AND(Notentabellen!$J$3=1,Notentabellen!$L$3=1),INDEX(Notentabellen!B:B,MATCH(C:C,Notentabellen!A:A,1)),IF(AND(Notentabellen!$J$3=1,Notentabellen!$L$3=2),INDEX(Notentabellen!C:C,MATCH(C:C,Notentabellen!A:A,1)),IF(AND(Notentabellen!$J$3=2,Notentabellen!$L$3=1),INDEX(Notentabellen!D:D,MATCH(C:C,Notentabellen!A:A,1)),IF(AND(Notentabellen!$J$3=2,Notentabellen!$L$3=2),INDEX(Notentabellen!E:E,MATCH(C:C,Notentabellen!A:A,1)),IF(AND(Notentabellen!$J$3 =3,Notentabellen!$L$3=1), INDEX(Notentabellen!F:F,MATCH(C:C,Notentabellen!A:A,1)), IF(AND(Notentabellen!$J$3 =3,Notentabellen!$L$3=2), INDEX(Notentabellen!G:G,MATCH(C:C,Notentabellen!A:A,1)))))))))","v":""}]
["",{"$f":"IF(C96=\"\",\"\",INDEX(Laufliste!B:B,_xlfn.AGGREGATE(15,6,ROW(Laufliste!G:G)/(Laufliste!G:G=C96),COUNTIF($C$4:C96,C96)),1))","v":""},{"$f":"IF(ISERROR(_xlfn.AGGREGATE(15,6,Laufliste!G:G,ROW()-3)),\"\",IF(ROWS($A$4:A96)<=Hilfsregister!$C$2,_xlfn.AGGREGATE(15,6,Laufliste!G:G,ROW()-3),\"\"))","v":""},{"$f":"IF(C96 = \"\", \"\", IF(AND(Notentabellen!$J$3=1,Notentabellen!$L$3=1),INDEX(Notentabellen!B:B,MATCH(C:C,Notentabellen!A:A,1)),IF(AND(Notentabellen!$J$3=1,Notentabellen!$L$3=2),INDEX(Notentabellen!C:C,MATCH(C:C,Notentabellen!A:A,1)),IF(AND(Notentabellen!$J$3=2,Notentabellen!$L$3=1),INDEX(Notentabellen!D:D,MATCH(C:C,Notentabellen!A:A,1)),IF(AND(Notentabellen!$J$3=2,Notentabellen!$L$3=2),INDEX(Notentabellen!E:E,MATCH(C:C,Notentabellen!A:A,1)),IF(AND(Notentabellen!$J$3 =3,Notentabellen!$L$3=1), INDEX(Notentabellen!F:F,MATCH(C:C,Notentabellen!A:A,1)), IF(AND(Notentabellen!$J$3 =3,Notentabellen!$L$3=2), INDEX(Notentabellen!G:G,MATCH(C:C,Notentabellen!A:A,1)))))))))","v":""}]
["",{"$f":"IF(C97=\"\",\"\",INDEX(Laufliste!B:B,_xlfn.AGGREGATE(15,6,ROW(Laufliste!G:G)/(Laufliste!G:G=C97),COUNTIF($C$4:C97,C97)),1))","v":""},{"$f":"IF(ISERROR(_xlfn.AGGREGATE(15,6,Laufliste!G:G,ROW()-3)),\"\",IF(ROWS($A$4:A97)<=Hilfsregister!$C$2,_xlfn.AGGREGATE(15,6,Laufliste!G:G,ROW()-3),\"\"))","v":""},{"$f":"IF(C97 = \"\", \"\", IF(AND(Notentabellen!$J$3=1,Notentabellen!$L$3=1),INDEX(Notentabellen!B:B,MATCH(C:C,Notentabellen!A:A,1)),IF(AND(Notentabellen!$J$3=1,Notentabellen!$L$3=2),INDEX(Notentabellen!C:C,MATCH(C:C,Notentabellen!A:A,1)),IF(AND(Notentabellen!$J$3=2,Notentabellen!$L$3=1),INDEX(Notentabellen!D:D,MATCH(C:C,Notentabellen!A:A,1)),IF(AND(Notentabellen!$J$3=2,Notentabellen!$L$3=2),INDEX(Notentabellen!E:E,MATCH(C:C,Notentabellen!A:A,1)),IF(AND(Notentabellen!$J$3 =3,Notentabellen!$L$3=1), INDEX(Notentabellen!F:F,MATCH(C:C,Notentabellen!A:A,1)), IF(AND(Notentabellen!$J$3 =3,Notentabellen!$L$3=2), INDEX(Notentabellen!G:G,MATCH(C:C,Notentabellen!A:A,1)))))))))","v":""}]
["",{"$f":"IF(C98=\"\",\"\",INDEX(Laufliste!B:B,_xlfn.AGGREGATE(15,6,ROW(Laufliste!G:G)/(Laufliste!G:G=C98),COUNTIF($C$4:C98,C98)),1))","v":""},{"$f":"IF(ISERROR(_xlfn.AGGREGATE(15,6,Laufliste!G:G,ROW()-3)),\"\",IF(ROWS($A$4:A98)<=Hilfsregister!$C$2,_xlfn.AGGREGATE(15,6,Laufliste!G:G,ROW()-3),\"\"))","v":""},{"$f":"IF(C98 = \"\", \"\", IF(AND(Notentabellen!$J$3=1,Notentabellen!$L$3=1),INDEX(Notentabellen!B:B,MATCH(C:C,Notentabellen!A:A,1)),IF(AND(Notentabellen!$J$3=1,Notentabellen!$L$3=2),INDEX(Notentabellen!C:C,MATCH(C:C,Notentabellen!A:A,1)),IF(AND(Notentabellen!$J$3=2,Notentabellen!$L$3=1),INDEX(Notentabellen!D:D,MATCH(C:C,Notentabellen!A:A,1)),IF(AND(Notentabellen!$J$3=2,Notentabellen!$L$3=2),INDEX(Notentabellen!E:E,MATCH(C:C,Notentabellen!A:A,1)),IF(AND(Notentabellen!$J$3 =3,Notentabellen!$L$3=1), INDEX(Notentabellen!F:F,MATCH(C:C,Notentabellen!A:A,1)), IF(AND(Notentabellen!$J$3 =3,Notentabellen!$L$3=2), INDEX(Notentabellen!G:G,MATCH(C:C,Notentabellen!A:A,1)))))))))","v":""}]
["",{"$f":"IF(C99=\"\",\"\",INDEX(Laufliste!B:B,_xlfn.AGGREGATE(15,6,ROW(Laufliste!G:G)/(Laufliste!G:G=C99),COUNTIF($C$4:C99,C99)),1))","v":""},{"$f":"IF(ISERROR(_xlfn.AGGREGATE(15,6,Laufliste!G:G,ROW()-3)),\"\",IF(ROWS($A$4:A99)<=Hilfsregister!$C$2,_xlfn.AGGREGATE(15,6,Laufliste!G:G,ROW()-3),\"\"))","v":""},{"$f":"IF(C99 = \"\", \"\", IF(AND(Notentabellen!$J$3=1,Notentabellen!$L$3=1),INDEX(Notentabellen!B:B,MATCH(C:C,Notentabellen!A:A,1)),IF(AND(Notentabellen!$J$3=1,Notentabellen!$L$3=2),INDEX(Notentabellen!C:C,MATCH(C:C,Notentabellen!A:A,1)),IF(AND(Notentabellen!$J$3=2,Notentabellen!$L$3=1),INDEX(Notentabellen!D:D,MATCH(C:C,Notentabellen!A:A,1)),IF(AND(Notentabellen!$J$3=2,Notentabellen!$L$3=2),INDEX(Notentabellen!E:E,MATCH(C:C,Notentabellen!A:A,1)),IF(AND(Notentabellen!$J$3 =3,Notentabellen!$L$3=1), INDEX(Notentabellen!F:F,MATCH(C:C,Notentabellen!A:A,1)), IF(AND(Notentabellen!$J$3 =3,Notentabellen!$L$3=2), INDEX(Notentabellen!G:G,MATCH(C:C,Notentabellen!A:A,1)))))))))","v":""}]
["",{"$f":"IF(C100=\"\",\"\",INDEX(Laufliste!B:B,_xlfn.AGGREGATE(15,6,ROW(Laufliste!G:G)/(Laufliste!G:G=C100),COUNTIF($C$4:C100,C100)),1))","v":""},{"$f":"IF(ISERROR(_xlfn.AGGREGATE(15,6,Laufliste!G:G,ROW()-3)),\"\",IF(ROWS($A$4:A100)<=Hilfsregister!$C$2,_xlfn.AGGREGATE(15,6,Laufliste!G:G,ROW()-3),\"\"))","v":""},{"$f":"IF(C100 = \"\", \"\", IF(AND(Notentabellen!$J$3=1,Notentabellen!$L$3=1),INDEX(Notentabellen!B:B,MATCH(C:C,Notentabellen!A:A,1)),IF(AND(Notentabellen!$J$3=1,Notentabellen!$L$3=2),INDEX(Notentabellen!C:C,MATCH(C:C,Notentabellen!A:A,1)),IF(AND(Notentabellen!$J$3=2,Notentabellen!$L$3=1),INDEX(Notentabellen!D:D,MATCH(C:C,Notentabellen!A:A,1)),IF(AND(Notentabellen!$J$3=2,Notentabellen!$L$3=2),INDEX(Notentabellen!E:E,MATCH(C:C,Notentabellen!A:A,1)),IF(AND(Notentabellen!$J$3 =3,Notentabellen!$L$3=1), INDEX(Notentabellen!F:F,MATCH(C:C,Notentabellen!A:A,1)), IF(AND(Notentabellen!$J$3 =3,Notentabellen!$L$3=2), INDEX(Notentabellen!G:G,MATCH(C:C,Notentabellen!A:A,1)))))))))","v":""}]
[{"$f":"IF(C101=\"\",\"\",_xlfn.RANK.EQ(C101,C:C,1))","v":""}," ",""]
[""," ",""]
[""," ",""]

{"sheet":"Notentabellen","index":4,"n_rows":39,"n_cols":12,"rows_kept":39,"cut":false,"hidden":false,"merged":[[0,0,0,6]]}
["Notentabellen\nerstellt von Roman Marxer (romanmarxer@hotmail.com)  "]
["Zeit","Noten Knaben 1. Sek","Noten Mädchen 1. Sek","Noten Jungs 2. Sek","Noten Mädchen 2. Sek","Noten Jungs 3. Sek","Noten Mädchen 3. Sek",null,"Hilfsfelder"]
["00:00:00",6,6,6,6,6,6,null,"Sekundarstufe 1",1,"Jungs",1]
["00:00:05",6,6,6,6,6,6,null,"Sekundarstufe 2",null,"Mädchen"]
["00:00:10",6,6,6,6,6,6,null,"Sekundarstufe 3"]
["00:00:15",6,6,6,6,6,6]
["00:00:20",6,6,6,6,6,6]
["00:00:25",5.75,6,5.75,6,5.75,6]
["00:00:30",5.5,6,5.5,6,5.5,6]
["00:00:35",5.25,5.75,5.25,5.75,5.25,5.75]
["00:00:40",5,5.5,5,5.5,5,5.5]
["00:00:45",4.75,5.25,4.75,5.25,4.75,5.25]
["00:00:50",4.5,5,4.5,5,4.5,5]
["00:00:55",4.25,4.75,4.25,4.75,4.25,4.75]
["00:01:00",4,4.5,4,4.5,4,4.5]
["00:01:05",3.75,4.25,3.75,4.25,3.75,4.25]
["00:01:10",3.5,4,3.5,4,3.5,4]
["00:01:15",3.25,3.75,3.25,3.75,3.25,3.75]
["00:01:20",3,3.5,3,3.5,3,3.5]
["00:01:25",2.75,3.25,2.75,3.25,2.75,3.25]
["00:01:30",2.5,3,2.5,3,2.5,3]
["00:01:35",2.25,2.75,2.25,2.75,2.25,2.75]
["00:01:40",2,2.5,2,2.5,2,2.5]
["00:01:45",1.75,2.25,1.75,2.25,1.75,2.25]
["00:01:50",1.5,2,1.5,2,1.5,2]
["00:01:55",1.25,1.75,1.25,1.75,1.25,1.75]
["00:02:00",1,1.5,1,1.5,1,1.5]
["00:02:05",1,1.25,1,1.25,1,1.25]
["00:02:10",1,1,1,1,1,1]
["00:02:15",1,1,1,1,1,1]
["00:02:20",1,1,1,1,1,1]
["00:02:25",1,1,1,1,1,1]
["00:02:30",1,1,1,1,1,1]
["00:02:35",1,1,1,1,1,1]
["00:02:40",1,1,1,1,1,1]
["00:02:45",1,1,1,1,1,1]
["00:02:50",1,1,1,1,1,1]
["00:02:55",1,1,1,1,1,1]
["00:03:00",1,1,1,1,1,1]

{"sheet":"Hilfsregister","index":5,"n_rows":12,"n_cols":3,"rows_kept":12,"cut":false,"hidden":true,"merged":[]}
[null,"Ausgabe:","Umrechung Ausgabe in Top"]
["Top 5",6,{"$f":"IF(B2<=10,B2*5,100)","v":30}]
["Top 10"]
["Top 15"]
["Top 20"]
["Top 25"]
["Top 30"]
["Top 35"]
["Top 40"]
["Top 45"]
["Top 50"]
["Alle"]